Workbook

Sheet SolCotizacion
B2: Solicitud de Cotización Nube Pública 3G
C3: Versión: 10 | D3: 2020-02-26
B4: Información de la Entidad Compradora
B6: Nombre de la Entidad | E6: UNIVERSIDAD DISTRITAL FRANCISCO JOSÉ DE CALDAS | J6: NIT | L6: 899999230-7
B8: Dirección de la Entidad | E8: Carrera 7 N. 40B 53 | J8: Correo de contacto | L8: planesticud@udistrital.edu.co
B10: Municipio | E10: Bogotá D.C. | J10: Teléfono de contacto | L10: 3239300 Ext. 6338
B12: Nombre funcionario Comprador | E12: EDUARD ARNULFO PINILLA
B15: Solicitud de Cotización
B17: Tasa de intermediación | E17: Autogestionado | J17: TRM | L17: 3858.56
B19: Cloud Service Provider | E19: Segmento | F19: link Catálogo Productos/Servicios | I19: Link Calculadora | L19: USD | M19: Valor
B21: Segm 1. Amazon | E21: Si | F21: https://aws.amazon.com/es/products/ | I21: https://calculator.s3.amazonaws.com/index.html | L21: 73738.82 | M21: =L21*$L$17 -> 284525661.3
B22: Segm 2. Google | E22: No | F22: https://cloud.google.com/products/ | I22: https://cloud.google.com/products/calculator/ | L22: 0 | M22: =L22*$L$17 -> 0
I23: https://cloud.google.com/maps-platform/pricing/?hl=es
B24: Segm 4. Microsoft | E24: No | F24: https://azure.microsoft.com/es-mx/services/ | I24: https://azure.microsoft.com/en-us/pricing/calculator/ | L24: 0 | M24: 0
B25: Segm 5. Oracle | E25: No | F25: https://www.oracle.com/co/cloud/ | I25: https://cloud.oracle.com/en_US/cost-estimator | L25: 0 | M25: 0
B26: Cantidad de filas:
B28: 1
B30: Paquete de Servicios
B31: Item | C31: Cod. Matriz | D31: Nombre del Servicio | F31: Tipo de Servicio | H31: Característica 1 | I31: Característica 2 | J31: Capacidad | K31: Unidad x Capacidad | L31: Cantidad en Tiempo | M31: Unidad x Cantidad
B32: 1 | C32: CO-NP-01 | D32: =VLOOKUP($C32,Consolidado!$A:$H,2,0) -> Servicios en la Nube | F32: =VLOOKUP($C32,Consolidado!$A:$H,3,0) -> NA | H32: =VLOOKUP($C32,Consolidado!$A:$H,4,0) -> NA | I32: =VLOOKUP($C32,Consolidado!$A:$H,5,0) -> NA | J32: 1 | K32: =VLOOKUP($C32,Consolidado!$A:$H,6,0) -> Unidad | L32: 1 | M32: =VLOOKUP($C32,Consolidado!$A:$H,7,0) -> Und | N32: =C32&" - "&D32&"-"&F32&"-"&H32&"-"&I32&"-"&J32&" "&K32 -> CO-NP-01 - Servicios en la Nube-NA-NA-NA-1 Unidad
B33: 2 | C33: CO-GE-01 | D33: =VLOOKUP($C33,Consolidado!$A:$H,2,0) -> Tasa de intermediación para servicios autogestionados | F33: =VLOOKUP($C33,Consolidado!$A:$H,3,0) -> Servicio de Computación en la Nube | H33: =VLOOKUP($C33,Consolidado!$A:$H,4,0) -> NA | I33: =VLOOKUP($C33,Consolidado!$A:$H,5,0) -> NA | J33: 1 | K33: =VLOOKUP($C33,Consolidado!$A:$H,6,0) -> Tasa | L33: 1 | M33: =VLOOKUP($C33,Consolidado!$A:$H,7,0) -> Und | N33: =C33&" - "&D33&"-"&F33&"-"&H33&"-"&I33&"-"&J33&" "&K33 -> CO-GE-01 - Tasa de intermediación para servicios autogestionados-Servicio de Computación en la Nube-NA-NA-1 Tasa
B34: 3 | C34: CO-MI-01 | D34: =VLOOKUP($C34,Consolidado!$A:$H,2,0) -> Servicio de Preparación para la migración | F34: =VLOOKUP($C34,Consolidado!$A:$H,3,0) -> Servicios de migración | H34: =VLOOKUP($C34,Consolidado!$A:$H,4,0) -> NA | I34: =VLOOKUP($C34,Consolidado!$A:$H,5,0) -> NA | J34: 1 | K34: =VLOOKUP($C34,Consolidado!$A:$H,6,0) -> Precio por hora | L34: 2 | M34: =VLOOKUP($C34,Consolidado!$A:$H,7,0) -> Hora | N34: CO-MI-01 - Servicio de Preparación para la migración-Servicios de migración-NA-NA-1 Precio por hora
B35: 1. Si requiere agregue o elimine filas
B38: Gravámenes adicionales*
B40: Gravámenes adicionales (estampillas)
B41: No | C41: Descripción | G41: Porcentaje
B42: 1 | C42: Estampilla Universidad Distrital Francisco José de Caldas 50 años | G42: 0.011
B43: 2 | C43: Estampilla Pro Adultos Mayores | G43: 0.02
B44: 3 | C44: Estampilla Pro Cultura | G44: 0.005
F45: Total porcentaje: | G45: =ROUND(SUM(G42:G44),4) -> 0.036
D46: Filas a agregar o eliminar Gravámenes:
D47: 1

Sheet Anexo
A2: Con el objetivo de complementar el entendimiento sobre la solicitud de Servicios de Centos de Contacto , por favor diligencie la totalidad de la información que se pide a continuación.
A4: Tenga en cuenta que esta información es de utilidad para que el Proveedor pueda cotizar de la manera más precisa posible los servicios solicitados, por lo cual la exactitud y completitud es muy importante.
A6: Entidad solicitante
A7: Nit
A8: Contacto técnico
A9: Correo contacto técnico
A10: Teléfono contacto técnico
A14: Requerimiento adicional | B14: Descripción | C14: INFORMACION SUMINISTRADA POR LA ENTIDAD COMPRADORA
A15: Redireccionamiento a otros Centros de Contacto | B15: [Si requiere / No requiere]
A16: Imagen Institucional en el Centro de Contacto | B16: [Si requiere / No requiere] La Entidad Compradora Requiere que se disponga de la imagen institucional en las instalaciones del Centro de Contacto
A17: Area de gestión del Servicio | B17: [Si requiere / No requiere] La Entidad Compradora requiere que se disponga de una area exclusiva para la ubicación de su personal en las instalaciones del Centro de Contacto
A18: Visita técnica | B18: [Si requiere / No requiere] Se debe realizar visita técnica a la Entidad Compradora dado que los servicios adquiridos son in-house
A19: Información adicional de canales | B19: La Entidad Compradora entregar la siguiente información que amplia los flujos de entrada y salida de los diferentes canales, según la operación de los ultimos seis (6) meses
A20: Traslado de Líneas teléfonicas | B20: [Si requiere / No requiere] La Entidad Compradora indica si requiere el traslado de líneas teléfonicas , para lo cual suministra la información de las mismas
A21: TMO | B21: La Entidad Compradora indica los TMO establecidos para la prestación del servicio
A22: item | B22: Servicio a contratar | C22: Especificación
A23: =SolCotizacion!B32 -> 1 | B23: =SolCotizacion!N32 -> CO-NP-01 - Servicios en la Nube-NA-NA-NA-1 Unidad | C23: Especificaciones Técnicas de Infraestructuras de la Necesidad a Adquirir *Amazon Elastic File System (EFS): Data stored in Standard storage -2 TB per month _ Funcionalidad: Espacio de almacenamiento compartido para integración de aulas virtuales, proyectado de consumo hasta 2TB -1 TB per month _ Funcionalidad: Espacio de almacenamiento compartido para ambiente de prueba de integración de aulas virtuales, proyectado de consumo hasta 1TB * Amazon Simple Storage Service (S3) - S3 Standard storage (40 GB per month) - Funcionalidad: Espacio de almacenamiento de interfaces de Campus Virtual (desarrollo), proyectado hasta 40GB * Amazon Route 53 - Hosted Zones (5) _ Funcionalidad: Servicio de gestión de dominios DNS de Planestic-UD - Hosted Zones (5) _ Funcionalidad: Servicio de gestión de dominios DNS para integración de aulas *Elastic Load Balancing - Application Load Balancer, Number of Application Load Balancers (5) _ Funcionalidad: Balanceador de carga para integración de aulas, estimado de por facultad *Amazon Relational Database Service - RDS for MySQL: Pricing strategy (On-Demand Instances), Storage for each RDS instance (General Purpose SSD (gp2)) - Quantity (1), Storage amount (155 GB) db.t3.small 2GB de RAM (instancia reservada) _ Funcionalidad: Motor de base de datos para plataformas de Planestic-UD de pruebas - Quantity (1), Storage amount (200 GB) db.r5.xlarge MySQL 200GB de disco 32GB de RAM (instancia reservada) _ Funcionalidad: Motor de base de datos para plataformas de Planestic-UD de producción - Quantity (1), Multi A-Z, Storage amount (500 GB) db.r5.xlarge 32GB de ram (instancia reservada) _ Funcionalidad: Motor de base de datos para integración de aulas * Amazon ElastiCache - ( 1 instances of type Memcached Standard cache m5.large Reserved All Upfront 1yr ) (instancia reservada) _ Funcionalidad: Servicio de Memoria Caché para escalamiento de almacenamiento * Amazon Elastic Compute Cloud - EC2: Operating system (Linux), Storage for each EC2 instance (General Purpose SSD (gp2)), Snapshot Frequency (No snapshot storage) - Storage amount (50 GB), Workload (Consistent, Number of instances: 1), Advance EC2 instance (m5.large) (instancia reservada) _ Funcionalidad: Espacio de cómputo para ambiente de desarrollo de Campus Virtual - Storage amount (300 GB), Workload (Consistent, Number of instances: 2), Advance EC2 instance (m5.large) (1 instancia reservada y la otra por demanda) _ Funcionalidad: Espacios de cómputo para: ambiente de pruebas de Campus Virtual (actual), y ambiente de producción de Campus Virtual (actual) - Storage amount (30 GB), Workload (Consistent, Number of instances: 4), Advance EC2 instance (m5.large) (3 instancias reservadas y la otra por demanda) _ Funcionalidad: Espacios de cómputo para: ambiente de desarrollo de observatorio TIC, ambiente de desarrollo de integración de aulas, ambiente de producción de mesa de ayuda y ambiente de producción de generador de certificados para plataforma EDX - Storage amount (100 GB), Workload (Consistent, Number of instances: 2), Advance EC2 instance (m5.large) (las 2 instancias reservadas) _ Funcionalidad: Espacios de cómputo para: página de semillero de investigación GEIPER y portal web de Planestic-UD. - Storage amount (60 GB), Workload (Consistent, Number of instances: 2), Advance EC2 instance (m5.xlarge) (1 instancias reservadas y la otra por demanda) _ Funcionalidad: Espacios de cómputo para: ambiente de producción de aulas virtuales EDX y ambiente de pruebas de aulas virtuales EDX. - Storage amount (600 GB), Snapshot Frequency (No snapshot storage), Workload (Consistent, Number of instances: 1), Advance EC2 instance (m5.2xlarge) (1 instancia reservada) _ Funcionalidad: Espacio de cómputo para aulas virtuales de la facultad de ingeniería - UDIN (actual) - Storage amount (600 GB), Workload (Consistent, Number of instances: 1), Advance EC2 instance (m5.xlarge) (1 instancia reservada) _ Funcionalidad: Espacio de cómputo para aulas virtuales de programas con metodología virtual y cátedras transversales (actual) - Storage amount (30 GB), workload (Consistent, Number of instances: 4), Advance EC2 instance (m5.xlarge) (las 4 instancias por demanda) _ Funcionalidad: Espacios de cómputo vinculados a balanceador de carga proyectados en la integración de aulas virtuales para soportar facultad de artes, proyectado hasta 4 instancias - Storage amount (30 GB), workload (Consistent, Number of instances: 4), Advance EC2 instance (m5.xlarge) (las 4 instancias por demanda) _ Funcionalidad: Espacios de cómputo vinculados a balanceador de carga proyectados en la integración de aulas virtuales para soportar facultad de ciencias, proyectado hasta 4 instancias - Storage amount (30 GB), workload (Consistent, Number of instances: 4), Advance EC2 instance (m5.xlarge) (las 4 instancias reservadas) _ Funcionalidad: Espacios de cómputo vinculados a balanceador de carga proyectados en la integración de aulas virtuales para soportar facultad de ingeniería, proyectado hasta 4 instancias - Storage amount (30 GB), workload (Consistent, Number of instances: 4), Advance EC2 instance (m5.xlarge) (las 4 instancias por demanda) _ Funcionalidad: Espacios de cómputo vinculados a balanceador de carga proyectados en la integración de aulas virtuales para soportar facultad de medio ambiente, proyectado hasta 4 instancias - Storage amount (30 GB), workload (Consistent, Number of instances: 4), Advance EC2 instance (m5.xlarge) (las 4 instancias por demanda) _ Funcionalidad: Espacios de cómputo vinculados a balanceador de carga proyectados en la integración de aula virtuales para soportar facultad tecnológica, proyectado hasta 4 instancias * Business support plan: First month including upfront and monthly fee Supports 24/7 phone, chat, and email access to Cloud Support Engineers for unlimited contacts, with and a response time of less than 1 hour.
A24: =SolCotizacion!B33 -> 2 | B24: =SolCotizacion!N33 -> CO-GE-01 - Tasa de intermediación para servicios autogestionados-Servicio de Computación en la Nube-NA-NA-1 Tasa
A25: =SolCotizacion!#REF! ->  | B25: =SolCotizacion!#REF! -> 
A26: =SolCotizacion!#REF! ->  | B26: =SolCotizacion!#REF! -> 

Sheet ResumenCotizacion
B2: Solicitud de Cotización Nube Pública 2G
B4: Información de la Entidad Compradora
B6: Nombre de la Entidad | E6: =SolCotizacion!E6 -> UNIVERSIDAD DISTRITAL FRANCISCO JOSÉ DE CALDAS | J6: NIT | L6: =SolCotizacion!L6 -> 899999230-7
B8: Dirección de la Entidad | E8: =SolCotizacion!E8 -> Carrera 7 N. 40B 53 | J8: Correo de contacto | L8: =SolCotizacion!L8 -> planesticud@udistrital.edu.co
B10: Municipio | E10: =SolCotizacion!E10 -> Bogotá D.C. | J10: Teléfono de contacto | L10: =SolCotizacion!L10 -> 3239300 Ext. 6338
B12: Nombre funcionario Comprador | E12: =SolCotizacion!E12 -> EDUARD ARNULFO PINILLA
B15: Resumen de Cotización
B17: Tasa de intermediación | E17: Autogestionado | J17: TRM | L17: 3858.56
B19: Cloud Service Provider | E19: Segmento | F19: link Catálogo Productos/Servicios | I19: Link Calculadora | L19: USD | M19: Valor
B21: Segm 1. Amazon | E21: Si | F21: https://aws.amazon.com/es/products/ | I21: https://calculator.s3.amazonaws.com/index.html | L21: 73738.82 | M21: =L21*$L$17 -> 284525661.3
B22: Segm 2. Google | E22: No | F22: https://cloud.google.com/products/ | I22: https://cloud.google.com/products/calculator/ | L22: 0 | M22: =L22*$L$17 -> 0
I23: https://cloud.google.com/maps-platform/pricing/?hl=es
B24: Segm 4. Microsoft | E24: No | F24: https://azure.microsoft.com/es-mx/services/ | I24: https://azure.microsoft.com/en-us/pricing/calculator/ | L24: 0 | M24: 0
B25: Segm 5. Oracle | E25: No | F25: https://www.oracle.com/co/cloud/ | I25: https://cloud.oracle.com/en_US/cost-estimator | L25: 0 | M25: 0
B26: Cantidad de filas:
B28: 1
N29: =VLOOKUP(C33,temp!$A:$BD,53,0) -> 0.12
B30: Paquete de Servicios | N30: Valores
B31: Item | C31: Cod. Matriz | D31: Nombre del Servicio | F31: Tipo de Servicio | H31: Característica 1 | I31: Característica 2 | J31: Capacidad | K31: Unidad x Capacidad | L31: Cantidad en Tiempo | M31: Unidad x Cantidad | N31: Valor Unitario | O31: Precio maximo autorizado | P31: Valor X Capacidad | Q31: Precio Total | R31: IVA | S31: Total
B32: 1 | C32: CO-NP-01 | D32: =VLOOKUP($C32,Consolidado!$A:$H,2,0) -> Servicios en la Nube | F32: =VLOOKUP($C32,Consolidado!$A:$H,3,0) -> NA | H32: =VLOOKUP($C32,Consolidado!$A:$H,4,0) -> NA | I32: =VLOOKUP($C32,Consolidado!$A:$H,5,0) -> NA | J32: 1 | K32: =VLOOKUP($C32,Consolidado!$A:$H,6,0) -> Unidad | L32: 1 | M32: =VLOOKUP($C32,Consolidado!$A:$H,7,0) -> Und | N32: =VLOOKUP(C32,temp!$A:$BD,53,0) -> 284525661.3 | O32: =N32/(1-(VLOOKUP("Total porcentaje:",$F:$G,2,0))) -> 295151100.9 | P32: =O32*J32 -> 295151100.9 | Q32: =P32*L32 -> 295151100.9 | R32: =IF(VLOOKUP(C32,temp!$A:$H,8,0)="SI",Q32*19%,0) -> 0 | S32: =R32+Q32 -> 295151100.9 | T32: =C32&" - "&D32&"-"&F32&"_"&H32&"-"&I32&" - "&J32&" "&K32 -> CO-NP-01 - Servicios en la Nube-NA_NA-NA - 1 Unidad
B33: 2 | C33: CO-GE-01 | D33: =VLOOKUP($C33,Consolidado!$A:$H,2,0) -> Tasa de intermediación para servicios autogestionados | F33: =VLOOKUP($C33,Consolidado!$A:$H,3,0) -> Servicio de Computación en la Nube | H33: =VLOOKUP($C33,Consolidado!$A:$H,4,0) -> NA | I33: =VLOOKUP($C33,Consolidado!$A:$H,5,0) -> NA | J33: 1 | K33: =VLOOKUP($C33,Consolidado!$A:$H,6,0) -> Tasa | L33: 1 | M33: =VLOOKUP($C33,Consolidado!$A:$H,7,0) -> Und | N33: =$N$32*$N$29 -> 34143079.36 | O33: =N33/(1-(VLOOKUP("Total porcentaje:",$F:$G,2,0))) -> 35418132.11 | P33: =O33*J33 -> 35418132.11 | Q33: =P33*L33 -> 35418132.11 | R33: =IF(VLOOKUP(C33,temp!$A:$H,8,0)="SI",Q33*19%,0) -> 6729445.101 | S33: =R33+Q33 -> 42147577.21 | T33: =C33&" - "&D33&"-"&F33&"_"&H33&"-"&I33&" - "&J33&" "&K33 -> CO-GE-01 - Tasa de intermediación para servicios autogestionados-Servicio de Computación en la Nube_NA-NA - 1 Tasa
B34: 3 | C34: CO-MI-01 | D34: =VLOOKUP($C34,Consolidado!$A:$H,2,0) -> Servicio de Preparación para la migración | F34: =VLOOKUP($C34,Consolidado!$A:$H,3,0) -> Servicios de migración | H34: =VLOOKUP($C34,Consolidado!$A:$H,4,0) -> NA | I34: =VLOOKUP($C34,Consolidado!$A:$H,5,0) -> NA | J34: 1 | K34: =VLOOKUP($C34,Consolidado!$A:$H,6,0) -> Precio por hora | L34: 2 | M34: =VLOOKUP($C34,Consolidado!$A:$H,7,0) -> Hora | N34: =VLOOKUP(C34,temp!$A:$BD,53,0) -> 99844 | O34: 103572.6141 | P34: 103572.6141 | Q34: 207145.2282 | R34: =IF(VLOOKUP(C34,temp!$A:$H,8,0)="SI",Q34*19%,0) -> 39357.59336 | S34: 246502.8216 | T34: CO-MI-01 - Servicio de Preparación para la migración-Servicios de migración_NA-NA - 1 Precio por hora
B35: 1. Si requiere agregue o elimine filas
Q36: Total Servicios | R36: IVA | S36: Total
Q37: =ROUND(SUM($Q$32:$Q$34),2) -> 330776378.3 | R37: =ROUND(SUM($R$32:$R$34),2) -> 6768802.69 | S37: =ROUND(R37+Q37,2) -> 337545181
B38: Gravámenes adicionales*
B40: Gravámenes adicionales (estampillas)
B41: No | C41: Descripción | G41: Porcentaje
B42: 1 | C42: Estampilla Universidad Distrital Francisco José de Caldas 50 años | G42: 0.011
B43: 2 | C43: Estampilla Pro Adultos Mayores | G43: 0.02
B44: 3 | C44: Estampilla Pro Cultura | G44: 0.005
F45: Total porcentaje: | G45: =ROUND(SUM(G42:G44),4) -> 0.036
D46: Filas a agregar o eliminar Gravámenes:
D47: 1

Sheet Cotizacion
A1: =SolCotizacion!$L$17 -> 3858.56
B2: Solicitud de Cotización Nube Pública 2G
B4: Información de la Entidad Compradora
B6: Nombre de la Entidad | E6: =SolCotizacion!E6 -> UNIVERSIDAD DISTRITAL FRANCISCO JOSÉ DE CALDAS | J6: NIT | L6: =SolCotizacion!L6 -> 899999230-7
B8: Dirección de la Entidad | E8: =SolCotizacion!E8 -> Carrera 7 N. 40B 53 | J8: Correo de contacto | L8: =SolCotizacion!L8 -> planesticud@udistrital.edu.co
B10: Municipio | E10: =SolCotizacion!E10 -> Bogotá D.C. | J10: Teléfono de contacto | L10: =SolCotizacion!L10 -> 3239300 Ext. 6338
B12: Nombre funcionario Comprador | E12: =SolCotizacion!E12 -> EDUARD ARNULFO PINILLA
B15: Cotización
B16: Proveedor | E16: UT Gestion integral cloud - Segm 1. Amazon
B17: Tasa de intermediación | E17: Autogestionado | J17: TRM | L17: 3858.56
B19: Cloud Service Provider | E19: Segmento | F19: link Catálogo Productos/Servicios | I19: Link Calculadora | L19: USD | M19: Valor
B21: Segm 1. Amazon | E21: Si | F21: https://aws.amazon.com/es/products/ | I21: https://calculator.s3.amazonaws.com/index.html | L21: 73738.82 | M21: =L21*$L$17 -> 284525661.3
B22: Segm 2. Google | E22: No | F22: https://cloud.google.com/products/ | I22: https://cloud.google.com/products/calculator/ | L22: 0 | M22: =L22*$L$17 -> 0
I23: https://cloud.google.com/maps-platform/pricing/?hl=es
B24: Segm 4. Microsoft | E24: No | F24: https://azure.microsoft.com/es-mx/services/ | I24: https://azure.microsoft.com/en-us/pricing/calculator/ | L24: 0 | M24: 0
B25: Segm 5. Oracle | E25: No | F25: https://www.oracle.com/co/cloud/ | I25: https://cloud.oracle.com/en_US/cost-estimator | L25: 0 | M25: 0
B26: Cantidad de filas:
B28: 1
N29: =VLOOKUP($C$33,temp!$A:$AZ,MATCH(Cotizacion!$E$16,temp!$A$1:$AZ$1,0),0) -> 0.1 | P29: =VLOOKUP("CO-GE-03",Consolidado!$A:$AZ,MATCH(Cotizacion!$E$16,Consolidado!$A$1:$AZ$1,0),0) -> 0.04
B30: Paquete de Servicios | N30: Valores
B31: Item | C31: Cod. Matriz | D31: Nombre del Servicio | F31: Tipo de Servicio | H31: Característica 1 | I31: Característica 2 | J31: Capacidad | K31: Unidad x Capacidad | L31: Cantidad en Tiempo | M31: Unidad x Cantidad | N31: Valor Unitario | O31: Precio maximo autorizado | P31: Descuento adicional | Q31: Precio con Descuento | R31: Valor X Capacidad | S31: Precio Total | T31: Incluir IVA | U31: IVA | V31: Total
B32: 1 | C32: CO-NP-01 | D32: =VLOOKUP($C32,Consolidado!$A:$H,2,0) -> Servicios en la Nube | F32: =VLOOKUP($C32,Consolidado!$A:$H,3,0) -> NA | H32: =VLOOKUP($C32,Consolidado!$A:$H,4,0) -> NA | I32: =VLOOKUP($C32,Consolidado!$A:$H,5,0) -> NA | J32: 1 | K32: =VLOOKUP($C32,Consolidado!$A:$H,6,0) -> Unidad | L32: 1 | M32: =VLOOKUP($C32,Consolidado!$A:$H,7,0) -> Und | N32: =VLOOKUP($C32,temp!$A:$AZ,MATCH(Cotizacion!$E$16,temp!$A$1:$AZ$1,0),0) -> 284525661.3 | O32: =N32/(1-(VLOOKUP("Total porcentaje:",$F:$H,2,0))) -> 295151100.9 | P32: 0.04 | Q32: =O32*(1-P32) -> 283345056.9 | R32: =Q32*J32 -> 283345056.9 | S32: =R32*L32 -> 283345056.9 | U32: =IF(T32="SI",S32*19%,0) -> 0 | V32: =S32+U32 -> 283345056.9
B33: 2 | C33: CO-GE-01 | D33: =VLOOKUP($C33,Consolidado!$A:$H,2,0) -> Tasa de intermediación para servicios autogestionados | F33: =VLOOKUP($C33,Consolidado!$A:$H,3,0) -> Servicio de Computación en la Nube | H33: =VLOOKUP($C33,Consolidado!$A:$H,4,0) -> NA | I33: =VLOOKUP($C33,Consolidado!$A:$H,5,0) -> NA | J33: 1 | K33: =VLOOKUP($C33,Consolidado!$A:$H,6,0) -> Tasa | L33: 1 | M33: =VLOOKUP($C33,Consolidado!$A:$H,7,0) -> Und | N33: =$N$32*$N$29 -> 28452566.13 | O33: =N33/(1-(VLOOKUP("Total porcentaje:",$F:$H,2,0))) -> 29515110.09 | Q33: =O33*(1-P33) -> 29515110.09 | R33: =Q33*J33 -> 29515110.09 | S33: =R33*L33 -> 29515110.09 | T33: SI | U33: =IF(T33="SI",S33*19%,0) -> 5607870.918 | V33: =S33+U33 -> 35122981.01
B34: 3 | C34: CO-MI-01 | D34: =VLOOKUP($C34,Consolidado!$A:$H,2,0) -> Servicio de Preparación para la migración | F34: =VLOOKUP($C34,Consolidado!$A:$H,3,0) -> Servicios de migración | H34: =VLOOKUP($C34,Consolidado!$A:$H,4,0) -> NA | I34: =VLOOKUP($C34,Consolidado!$A:$H,5,0) -> NA | J34: 1 | K34: =VLOOKUP($C34,Consolidado!$A:$H,6,0) -> Precio por hora | L34: 2 | M34: =VLOOKUP($C34,Consolidado!$A:$H,7,0) -> Hora | N34: =VLOOKUP($C34,temp!$A:$AZ,MATCH(Cotizacion!$E$16,temp!$A$1:$AZ$1,0),0) -> 136000 | O34: 141078.8382 | Q34: 141078.8382 | R34: 141078.8382 | S34: 282157.6763 | T34: SI | U34: 53609.95851 | V34: 335767.6349
B35: 1. Si requiere agregue o elimine filas
S36: Total Servicios | U36: IVA | V36: Total
S37: =ROUND(SUM($S$32:$S$34),2) -> 313142324.7 | U37: =ROUND(SUM($U$32:$U$34),2) -> 5661480.88 | V37: =ROUND(U37+S37,2) -> 318803805.6
B38: Gravámenes adicionales*
B40: Gravámenes adicionales (estampillas)
B41: No | C41: Descripción | G41: Porcentaje
B42: 1 | C42: Estampilla Universidad Distrital Francisco José de Caldas 50 años | G42: 0.011
B43: 2 | C43: Estampilla Pro Adultos Mayores | G43: 0.02
B44: 3 | C44: Estampilla Pro Cultura | G44: 0.005
F45: Total porcentaje: | G45: =ROUND(SUM(G42:G44),4) -> 0.036
D46: Filas a agregar o eliminar Gravámenes:
D47: 1

Sheet Consolidado (hidden)
A1: Código del servicio | B1: Nombre del servicio | C1: Tipo de servicio | D1: Característica 1 | E1: Característica 2 | F1: Unidad | G1: Unidad TVEC | H1: IVA | I1: Avanxo - Segm 1. Amazon | J1: Soluciones Orion - Segm 2. Google | K1: UT Goldsvada - Segm 1. Amazon | L1: Hightech - Segm 1. Amazon | M1: UT Tecnologia Oracle Eficiente - Segm 5. Oracle | N1: Colombia telecomunicaciones SA - Segm 4. Microsoft | O1: Colsof - Segm 4. Microsoft | P1: Mercanet SAS - Segm 4. Microsoft | Q1: Comcel - Segm 4. Microsoft | R1: SETI - Segm 5. Oracle | S1: Eforcers - Segm 2. Google | T1: informacion localizada - Segm 2. Google | U1: S3 SAS - Segm 1. Amazon | V1: UT DPN 2019 - Segm 5. Oracle | W1: UT Gestion integral cloud - Segm 1. Amazon | X1: UT TAKWC - Segm 5. Oracle | Y1: UT Nubepublica2019 - Segm 1. Amazon | Z1: UT Nubepublica2019 - Segm 4. Microsoft | AA1: Clouxter - Segm 1. Amazon | AB1: Controles empresariales - Segm 4. Microsoft
A2: CO-GE-01 | B2: Tasa de intermediación para servicios autogestionados | C2: Servicio de Computación en la Nube | D2: NA | E2: NA | F2: Tasa | G2: Und | H2: SI | I2: 0.12 | J2: 0.12 | K2: 0.15 | L2: 0.06 | M2: 0.098 | N2: 0.08 | O2: 0 | P2: 0.039 | Q2: 0.0005 | R2: 0.12 | S2: 0.01 | T2: 0 | U2: 0.001 | V2: 0.22 | W2: 0.1 | X2: 0.06 | Y2: 0.1 | Z2: 0.1 | AA2: 0.01 | AB2: 0.19
A3: CO-GE-02 | B3: Tasa de intermediación para servicios gestionados por el Proveedor | C3: Servicio de Computación en la Nube | D3: NA | E3: NA | F3: Tasa | G3: Und | H3: SI | I3: 0.19 | J3: 0.22 | K3: 0.3 | L3: 0.6 | M3: 0.138 | N3: 0.13 | O3: 0 | P3: 0.055 | Q3: 0.5 | R3: 0.1 | S3: 0.17 | T3: 0.15 | U3: 0.001 | V3: 0.28 | W3: 0.12 | X3: 0.06 | Y3: 0.19 | Z3: 0.19 | AA3: 0.2 | AB3: 0.24
A4: CO-GE-03 | B4: Tasa de descuento ofrecido por el proponente sobre el precio de los servicios de computación en la nube | D4: NA | E4: NA | F4: Tasa | G4: Und | H4: SI | I4: 0.02 | J4: 0.02 | K4: 0.1 | L4: 0.05 | M4: 0.011 | N4: 0.15 | O4: 0.1 | P4: 0.095 | Q4: 0.08 | R4: 0.02 | S4: 0.02 | T4: 0.02 | U4: 0 | V4: 0.005 | W4: 0.04 | X4: 0.03 | Y4: 0.07 | Z4: 0.07 | AA4: 0.01 | AB4: 0.04
A5: CO-AD-01-01 | B5: Sesión formación o capacitación - remoto | C5: Servicios profesionales | D5: NA | E5: NA | F5: Precio por sesión (sesión de 4 horas hasta 10 asistentes) | G5: Sesion | H5: SI | I5: 347942.88 | J5: 496080 | K5: 836976 | L5: 2120000 | M5: 1198224 | N5: 627338.74 | O5: 1113000 | P5: 366336 | Q5: 1958894.84 | R5: 876581.84 | S5: 3243600 | T5: 1904791.38 | U5: 659564.3078 | V5: 1821461.6 | W5: 576640 | X5: 3737621.462 | Y5: 757158 | Z5: 757158 | AA5: 407040 | AB5: 1534091.36
A6: CO-AD-01-02 | B6: Sesión formación o capacitación - zona 1 | C6: Servicios profesionales | D6: NA | E6: NA | F6: Precio por sesión (sesión de 4 horas hasta 10 asistentes) | G6: Sesion | H6: SI | I6: 549766.88 | J6: 545688 | K6: 2175544 | L6: 3710000 | M6: 1463224 | N6: 658828.16 | O6: 1309418 | P6: 439603.2 | Q6: 2350674.02 | R6: 1236735.359 | S6: 3243600 | T6: 2242536 | U6: 936925.2447 | V6: 3531920 | W6: 720800 | X6: 4049090.437 | Y6: 1055018 | Z6: 1055018 | AA6: 424000 | AB6: 1687499.86
A7: CO-AD-01-03 | B7: Sesión formación o capacitación - zona 2 | C7: Servicios profesionales | D7: NA | E7: NA | F7: Precio por sesión (sesión de 4 horas hasta 10 asistentes) | G7: Sesion | H7: SI | I7: 665094.88 | J7: 580413.6 | K7: 2415952 | L7: 4240000 | M7: 1516224 | N7: 690873.02 | O7: 1590000 | P7: 517754.88 | Q7: 3134232.38 | R7: 1236735.359 | S7: 3243600 | T7: 3918505.18 | U7: 1491647.118 | V7: 3531920 | W7: 1153280 | X7: 4983495.58 | Y7: 1294260 | Z7: 1294260 | AA7: 508800 | AB7: 1840909.42
A8: CO-AD-01-04 | B8: Sesión formación o capacitación - zona 3 | C8: Servicios profesionales | D8: NA | E8: NA | F8: Precio por sesión (sesión de 4 horas hasta 10 asistentes) | G8: Sesion | H8: SI | I8: 708342.88 | J8: 605217.6 | K8: 2656360 | L8: 4770000 | M8: 1728224 | N8: 721501.72 | O8: 1590000 | P8: 558784.512 | Q8: 3917789.68 | R8: 1236735.359 | S8: 3243600 | T8: 4485072 | U8: 3294493.208 | V8: 3531920 | W8: 1441600 | X8: 6229368.807 | Y8: 1499158 | Z8: 1499158 | AA8: 508800 | AB8: 1994318.98
A9: CO-AD-02-01 | B9: Experto para la definición, análisis y adopción de Nube Pública - remoto | C9: Servicios profesionales | D9: NA | E9: NA | F9: Precio por hora | G9: Hora | H9: SI | I9: 269876 | J9: 124020 | K9: 209244 | L9: 254400 | M9: 249630 | N9: 156970.1 | O9: 265212 | P9: 57240 | Q9: 178245.0475 | R9: 205274.3 | S9: 396440 | T9: 191860 | U9: 249208.8018 | V9: 455365.4 | W9: 180200 | X9: 249174.8235 | Y9: 138860 | Z9: 138860 | AA9: 201188 | AB9: 191761.42
A10: CO-AD-02-02 | B10: Experto para la definición, análisis y adopción de Nube Pública - zona 1 | C10: Servicios profesionales | D10: NA | E10: NA | F10: Precio por hora | G10: Hora | H10: SI | I10: 330296 | J10: 136422 | K10: 469686 | L10: 307400 | M10: 315880 | N10: 156970.1 | O10: 398242 | P10: 114480 | Q10: 207952.5555 | R10: 250293.56 | S10: 396440 | T10: 234260 | U10: 318549.036 | V10: 567630 | W10: 216240 | X10: 373762.2353 | Y10: 238500 | Z10: 238500 | AA10: 201188 | AB10: 210936.82
A11: CO-AD-02-03 | B11: Experto para la definición, análisis y adopción de Nube Pública - zona 2 | C11: Servicios profesionales | D11: NA | E11: NA | F11: Precio por hora | G11: Hora | H11: SI | I11: 358492 | J11: 145103.4 | K11: 529788 | L11: 371000 | M11: 329130 | N11: 156970.1 | O11: 442020 | P11: 134832 | Q11: 265387.0708 | R11: 250293.56 | S11: 324360 | T11: 221646 | U11: 457229.5044 | V11: 567630 | W11: 288320 | X11: 622937.0588 | Y11: 298390 | Z11: 298390 | AA11: 201188 | AB11: 230113.28
A12: CO-AD-02-04 | B12: Experto para la definición, análisis y adopción de Nube Pública - zona 3 | C12: Servicios profesionales | D12: NA | E12: NA | F12: Precio por hora | G12: Hora | H12: SI | I12: 370576 | J12: 151304.4 | K12: 589890 | L12: 381600 | M12: 382130 | N12: 156970.1 | O12: 442020 | P12: 145516.8 | Q12: 308165.8821 | R12: 250293.56 | S12: 180200 | T12: 209032 | U12: 907941.0268 | V12: 693770 | W12: 396440 | X12: 1557342.202 | Y12: 292772 | Z12: 292772 | AA12: 201188 | AB12: 249289.74
A13: CO-EX-01-01 | B13: Experto Junior en Recuperacion ante Desastres - remoto | C13: Servicios profesionales | D13: NA | E13: NA | F13: Precio por hora | G13: Hora | H13: SI | I13: 88616 | J13: 124020 | K13: 124656 | L13: 190800 | M13: 149778 | N13: 122144.86 | O13: 161438 | P13: 45792 | Q13: 82808.03083 | R13: 371184.44 | S13: 162180 | T13: 101760 | U13: 164891.077 | V13: 379681.4 | W13: 180200 | X13: 280321.8991 | Y13: 138860 | Z13: 138860 | AA13: 166303.4 | AB13: 116854.4
A14: CO-EX-01-02 | B14: Experto Junior en Recuperacion ante Desastres - zona 1 | C14: Servicios profesionales | D14: NA | E14: NA | F14: Precio por hora | G14: Hora | H14: SI | I14: 153064 | J14: 136422 | K14: 272685 | L14: 243800 | M14: 216028 | N14: 122144.86 | O14: 242422 | P14: 54950.4 | Q14: 112515.5388 | R14: 445421.54 | S14: 180200 | T14: 144160 | U14: 234231.3112 | V14: 567630 | W14: 216240 | X14: 311468.9748 | Y14: 181790 | Z14: 181790 | AA14: 166303.4 | AB14: 128539.84
A15: CO-EX-01-03 | B15: Experto Junior en Recuperacion ante Desastres - zona 2 | C15: Servicios profesionales | D15: NA | E15: NA | F15: Precio por hora | G15: Hora | H15: SI | I15: 177232 | J15: 145103.4 | K15: 302736 | L15: 307400 | M15: 229278 | N15: 122144.86 | O15: 269028 | P15: 64719.36 | Q15: 169950.0541 | R15: 541035.66 | S15: 162180 | T15: 131546 | U15: 372911.7796 | V15: 567630 | W15: 288320 | X15: 498349.6471 | Y15: 247934 | Z15: 247934 | AA15: 166303.4 | AB15: 140225.28
A16: CO-EX-01-04 | B16: Experto Junior en Recuperacion ante Desastres - zona 3 | C16: Servicios profesionales | D16: NA | E16: NA | F16: Precio por hora | G16: Hora | H16: SI | I16: 189316 | J16: 151304.4 | K16: 237970 | L16: 318000 | M16: 282278 | N16: 122144.86 | O16: 269028 | P16: 69848.064 | Q16: 212728.8654 | R16: 619265.78 | S16: 162180 | T16: 118932 | U16: 823623.302 | V16: 630700 | W16: 396440 | X16: 1245874.118 | Y16: 292772 | Z16: 292772 | AA16: 166303.4 | AB16: 151910.72
A17: CO-EX-02-01 | B17: Experto Senior en Recuperacion ante Desastres - remoto | C17: Servicios profesionales | D17: NA | E17: NA | F17: Precio por hora | G17: Hora | H17: SI | I17: 136952 | J17: 148824 | K17: 213696 | L17: 296800 | M17: 216346 | N17: 156970.1 | O17: 265212 | P17: 80136 | Q17: 127197.2034 | R17: 521913.26 | S17: 288320 | T17: 191860 | U17: 249208.8018 | V17: 455365.4 | W17: 234260 | X17: 373762.2353 | Y17: 189316 | Z17: 189316 | AA17: 232988 | AB17: 191761.42
A18: CO-EX-02-02 | B18: Experto Senior en Recuperacion ante Desastres - zona 1 | C18: Servicios profesionales | D18: NA | E18: NA | F18: Precio por hora | G18: Hora | H18: SI | I18: 201400 | J18: 163706.4 | K18: 415149 | L18: 349800 | M18: 282596 | N18: 156970.1 | O18: 398242 | P18: 96163.2 | Q18: 156904.7113 | R18: 521913.26 | S18: 324360 | T18: 234260 | U18: 318549.036 | V18: 630700 | W18: 342380 | X18: 436056.3866 | Y18: 256202 | Z18: 256202 | AA18: 232988 | AB18: 210936.82
A19: CO-EX-02-03 | B19: Experto Senior en Recuperacion ante Desastres - zona 2 | C19: Servicios profesionales | D19: NA | E19: NA | F19: Precio por hora | G19: Hora | H19: SI | I19: 225568 | J19: 174124.08 | K19: 445200 | L19: 413400 | M19: 295846 | N19: 156970.1 | O19: 442020 | P19: 113258.88 | Q19: 214339.2266 | R19: 584496.72 | S19: 252280 | T19: 221646 | U19: 457229.5044 | V19: 630700 | W19: 432480 | X19: 622937.0588 | Y19: 317682 | Z19: 317682 | AA19: 232988 | AB19: 230113.28
A20: CO-EX-02-04 | B20: Experto Senior en Recuperacion ante Desastres - zona 3 | C20: Servicios profesionales | D20: NA | E20: NA | F20: Precio por hora | G20: Hora | H20: SI | I20: 237652 | J20: 181565.28 | K20: 475251 | L20: 424000 | M20: 348846 | N20: 156970.1 | O20: 442020 | P20: 122234.112 | Q20: 257118.038 | R20: 730525.5 | S20: 180200 | T20: 209032 | U20: 907941.0268 | V20: 693770 | W20: 486540 | X20: 1557342.202 | Y20: 374816 | Z20: 374816 | AA20: 232988 | AB20: 249289.74
A21: CO-EX-03-01 | B21: Experto Junior en Backup y Archivado - remoto | C21: Servicios profesionales | D21: NA | E21: NA | F21: Precio por hora | G21: Hora | H21: SI | I21: 88616 | J21: 124020 | K21: 119647.5 | L21: 190800 | M21: 149778 | N21: 122144.86 | O21: 115328 | P21: 45792 | Q21: 58348.03613 | R21: 445421.54 | S21: 162180 | T21: 101760 | U21: 164891.077 | V21: 379681.4 | W21: 144160 | X21: 280321.8991 | Y21: 138860 | Z21: 138860 | AA21: 127072.8 | AB21: 116854.4
A22: CO-EX-03-02 | B22: Experto Junior en Backup y Archivado - zona 1 | C22: Servicios profesionales | D22: NA | E22: NA | F22: Precio por hora | G22: Hora | H22: SI | I22: 153064 | J22: 136422 | K22: 249868.5 | L22: 243800 | M22: 216028 | N22: 122144.86 | O22: 173204 | P22: 54950.4 | Q22: 88055.54408 | R22: 445421.54 | S22: 180200 | T22: 144160 | U22: 234231.3112 | V22: 567630 | W22: 180200 | X22: 311468.9748 | Y22: 181790 | Z22: 181790 | AA22: 127072.8 | AB22: 128539.84
A23: CO-EX-03-03 | B23: Experto Junior en Backup y Archivado - zona 2 | C23: Servicios profesionales | D23: NA | E23: NA | F23: Precio por hora | G23: Hora | H23: SI | I23: 177232 | J23: 145103.4 | K23: 279919.5 | L23: 307400 | M23: 229278 | N23: 122144.86 | O23: 192178 | P23: 64719.36 | Q23: 145490.0594 | R23: 541035.66 | S23: 162180 | T23: 131546 | U23: 372911.7796 | V23: 567630 | W23: 216240 | X23: 498349.6471 | Y23: 247934 | Z23: 247934 | AA23: 127072.8 | AB23: 140225.28
A24: CO-EX-03-04 | B24: Experto Junior en Backup y Archivado - zona 3 | C24: Servicios profesionales | D24: NA | E24: NA | F24: Precio por hora | G24: Hora | H24: SI | I24: 189316 | J24: 151304.4 | K24: 309970.5 | L24: 318000 | M24: 282278 | N24: 122144.86 | O24: 192178 | P24: 69848.064 | Q24: 188268.8707 | R24: 619265.78 | S24: 162180 | T24: 118932 | U24: 823623.302 | V24: 630700 | W24: 252280 | X24: 1245874.118 | Y24: 292772 | Z24: 292772 | AA24: 127072.8 | AB24: 151910.72
A25: CO-EX-04-01 | B25: Experto Senior en Backup y Archivado - remoto | C25: Servicios profesionales | D25: NA | E25: NA | F25: Precio por hora | G25: Hora | H25: SI | I25: 136952 | J25: 148824 | K25: 191436 | L25: 296800 | M25: 249630 | N25: 156970.1 | O25: 172992 | P25: 57240 | Q25: 122473.3487 | R25: 521913.26 | S25: 288320 | T25: 191860 | U25: 249208.8018 | V25: 455365.4 | W25: 234260 | X25: 373762.2353 | Y25: 189316 | Z25: 189316 | AA25: 210728 | AB25: 191761.42
A26: CO-EX-04-02 | B26: Experto Senior en Backup y Archivado - zona 1 | C26: Servicios profesionales | D26: NA | E26: NA | F26: Precio por hora | G26: Hora | H26: SI | I26: 201400 | J26: 163706.4 | K26: 321657 | L26: 349800 | M26: 315880 | N26: 156970.1 | O26: 259700 | P26: 68688 | Q26: 152180.8567 | R26: 521913.26 | S26: 324360 | T26: 234260 | U26: 318549.036 | V26: 630700 | W26: 252280 | X26: 436056.3866 | Y26: 256202 | Z26: 256202 | AA26: 210728 | AB26: 210936.82
A27: CO-EX-04-03 | B27: Experto Senior en Backup y Archivado - zona 2 | C27: Servicios profesionales | D27: NA | E27: NA | F27: Precio por hora | G27: Hora | H27: SI | I27: 225568 | J27: 174124.08 | K27: 351708 | L27: 413400 | M27: 329130 | N27: 156970.1 | O27: 288320 | P27: 80899.2 | Q27: 209615.372 | R27: 584496.72 | S27: 252280 | T27: 221646 | U27: 457229.5044 | V27: 630700 | W27: 270300 | X27: 622937.0588 | Y27: 317682 | Z27: 317682 | AA27: 210728 | AB27: 230113.28
A28: CO-EX-04-04 | B28: Experto Senior en Backup y Archivado - zona 3 | C28: Servicios profesionales | D28: NA | E28: NA | F28: Precio por hora | G28: Hora | H28: SI | I28: 237652 | J28: 181565.28 | K28: 381759 | L28: 424000 | M28: 382130 | N28: 156970.1 | O28: 288320 | P28: 87310.08 | Q28: 252394.1833 | R28: 730525.5 | S28: 180200 | T28: 209032 | U28: 907941.0268 | V28: 693770 | W28: 306340 | X28: 1557342.202 | Y28: 374816 | Z28: 374816 | AA28: 210728 | AB28: 249289.74
A29: CO-EX-05-01 | B29: Experto Junior en Seguridad en la Nube - remoto | C29: Servicios profesionales | D29: NA | E29: NA | F29: Precio por hora | G29: Hora | H29: SI | I29: 229596 | J29: 124020 | K29: 163833.6 | L29: 190800 | M29: 199704 | N29: 122144.86 | O29: 161438 | P29: 45792 | Q29: 93971.69272 | R29: 445421.54 | S29: 162180 | T29: 101760 | U29: 164891.077 | V29: 379681.4 | W29: 165784 | X29: 280321.8991 | Y29: 138860 | Z29: 138860 | AA29: 157728 | AB29: 191761.42
A30: CO-EX-05-02 | B30: Experto Junior en Seguridad en la Nube - zona 1 | C30: Servicios profesionales | D30: NA | E30: NA | F30: Precio por hora | G30: Hora | H30: SI | I30: 294044 | J30: 136422 | K30: 308301 | L30: 243800 | M30: 265954 | N30: 122144.86 | O30: 242422 | P30: 54950.4 | Q30: 123679.2007 | R30: 445421.54 | S30: 180200 | T30: 144160 | U30: 234231.3112 | V30: 567630 | W30: 187408 | X30: 311468.9748 | Y30: 181790 | Z30: 181790 | AA30: 157728 | AB30: 210936.82
A31: CO-EX-05-03 | B31: Experto Junior en Seguridad en la Nube - zona 2 | C31: Servicios profesionales | D31: NA | E31: NA | F31: Precio por hora | G31: Hora | H31: SI | I31: 318212 | J31: 145103.4 | K31: 338352 | L31: 307400 | M31: 279204 | N31: 122144.86 | O31: 269028 | P31: 64719.36 | Q31: 181113.716 | R31: 541035.66 | S31: 162180 | T31: 131546 | U31: 372911.7796 | V31: 567630 | W31: 216240 | X31: 498349.6471 | Y31: 247934 | Z31: 247934 | AA31: 157728 | AB31: 230113.28
A32: CO-EX-05-04 | B32: Experto Junior en Seguridad en la Nube - zona 3 | C32: Servicios profesionales | D32: NA | E32: NA | F32: Precio por hora | G32: Hora | H32: SI | I32: 330296 | J32: 151304.4 | K32: 368403 | L32: 318000 | M32: 332204 | N32: 122144.86 | O32: 269028 | P32: 69848.064 | Q32: 223892.5273 | R32: 619265.78 | S32: 162180 | T32: 118932 | U32: 823623.302 | V32: 630700 | W32: 270300 | X32: 1245874.118 | Y32: 292772 | Z32: 292772 | AA32: 157728 | AB32: 249289.74
A33: CO-EX-06-01 | B33: Experto Senior en Seguridad en la Nube - remoto | C33: Servicios profesionales | D33: NA | E33: NA | F33: Precio por hora | G33: Hora | H33: SI | I33: 269876 | J33: 148824 | K33: 258216 | L33: 296800 | M33: 490939 | N33: 156970.1 | O33: 294044 | P33: 57240 | Q33: 138660.8215 | R33: 521913.26 | S33: 396440 | T33: 191860 | U33: 249208.8018 | V33: 455365.4 | W33: 252280 | X33: 373762.2353 | Y33: 189316 | Z33: 189316 | AA33: 210728 | AB33: 221724.44
A34: CO-EX-06-02 | B34: Experto Senior en Seguridad en la Nube - zona 1 | C34: Servicios profesionales | D34: NA | E34: NA | F34: Precio por hora | G34: Hora | H34: SI | I34: 334324 | J34: 163706.4 | K34: 450765 | L34: 349800 | M34: 557189 | N34: 156970.1 | O34: 441490 | P34: 68688 | Q34: 168368.3295 | R34: 521913.26 | S34: 396440 | T34: 234260 | U34: 318549.036 | V34: 630700 | W34: 273904 | X34: 436056.3866 | Y34: 256202 | Z34: 256202 | AA34: 210728 | AB34: 243896.46
A35: CO-EX-06-03 | B35: Experto Senior en Seguridad en la Nube - zona 2 | C35: Servicios profesionales | D35: NA | E35: NA | F35: Precio por hora | G35: Hora | H35: SI | I35: 358492 | J35: 174124.08 | K35: 480816 | L35: 413400 | M35: 570439 | N35: 156970.1 | O35: 490038 | P35: 80899.2 | Q35: 255510.3528 | R35: 584496.72 | S35: 324360 | T35: 221646 | U35: 457229.5044 | V35: 630700 | W35: 306340 | X35: 622937.0588 | Y35: 317682 | Z35: 317682 | AA35: 210728 | AB35: 266068.48
A36: CO-EX-06-04 | B36: Experto Senior en Seguridad en la Nube - zona 3 | C36: Servicios profesionales | D36: NA | E36: NA | F36: Precio por hora | G36: Hora | H36: SI | I36: 370576 | J36: 181565.28 | K36: 510867 | L36: 424000 | M36: 623439 | N36: 156970.1 | O36: 490038 | P36: 87310.08 | Q36: 385431.1874 | R36: 730525.5 | S36: 180200 | T36: 209032 | U36: 907941.0268 | V36: 693770 | W36: 360400 | X36: 1557342.202 | Y36: 374816 | Z36: 374816 | AA36: 210728 | AB36: 288241.56
A37: CO-EX-07-01 | B37: Experto Junior en Migración - remoto | C37: Servicios profesionales | D37: NA | E37: NA | F37: Precio por hora | G37: Hora | H37: SI | I37: 105877.04 | J37: 124020 | K37: 130777.5 | L37: 190800 | M37: 149778 | N37: 122144.86 | O37: 161438 | P37: 45792 | Q37: 47897.48786 | R37: 186331.04 | S37: 162180 | T37: 101760 | U37: 164891.077 | V37: 379681.4 | W37: 180200 | X37: 280321.8991 | Y37: 138860 | Z37: 138860 | AA37: 104728 | AB37: 116854.4
A38: CO-EX-07-02 | B38: Experto Junior en Migración - zona 1 | C38: Servicios profesionales | D38: NA | E38: NA | F38: Precio por hora | G38: Hora | H38: SI | I38: 156333.04 | J38: 136422 | K38: 260998.5 | L38: 243800 | M38: 216028 | N38: 122144.86 | O38: 242422 | P38: 54950.4 | Q38: 77604.99571 | R38: 276369.56 | S38: 180200 | T38: 144160 | U38: 234231.3112 | V38: 567630 | W38: 216240 | X38: 311468.9748 | Y38: 181790 | Z38: 181790 | AA38: 104728 | AB38: 128539.84
A39: CO-EX-07-03 | B39: Experto Junior en Migración - zona 2 | C39: Servicios profesionales | D39: NA | E39: NA | F39: Precio por hora | G39: Hora | H39: SI | I39: 185165.04 | J39: 145103.4 | K39: 291049.5 | L39: 307400 | M39: 229278 | N39: 122144.86 | O39: 269028 | P39: 64719.36 | Q39: 164747.019 | R39: 276369.56 | S39: 162180 | T39: 131546 | U39: 372911.7796 | V39: 567630 | W39: 252280 | X39: 498349.6471 | Y39: 247934 | Z39: 247934 | AA39: 104728 | AB39: 140225.28
A40: CO-EX-07-04 | B40: Experto Junior en Migración - zona 3 | C40: Servicios profesionales | D40: NA | E40: NA | F40: Precio por hora | G40: Hora | H40: SI | I40: 195977.04 | J40: 151304.4 | K40: 321100.5 | L40: 318000 | M40: 282278 | N40: 122144.86 | O40: 269028 | P40: 69848.064 | Q40: 294667.8536 | R40: 276369.56 | S40: 162180 | T40: 118932 | U40: 823623.302 | V40: 630700 | W40: 288320 | X40: 1245874.118 | Y40: 292772 | Z40: 292772 | AA40: 104728 | AB40: 151910.72
A41: CO-EX-08-01 | B41: Experto Senior en Migración - remoto | C41: Servicios profesionales | D41: NA | E41: NA | F41: Precio por hora | G41: Hora | H41: SI | I41: 137073.9 | J41: 148824 | K41: 183088.5 | L41: 296800 | M41: 216346 | N41: 156970.1 | O41: 294044 | P41: 57240 | Q41: 99939.16836 | R41: 348909.6 | S41: 396440 | T41: 191860 | U41: 249208.8018 | V41: 455365.4 | W41: 234260 | X41: 373762.2353 | Y41: 189316 | Z41: 189316 | AA41: 263728 | AB41: 191761.42
A42: CO-EX-08-02 | B42: Experto Senior en Migración - zona 1 | C42: Servicios profesionales | D42: NA | E42: NA | F42: Precio por hora | G42: Hora | H42: SI | I42: 187529.9 | J42: 163706.4 | K42: 313309.5 | L42: 349800 | M42: 282596 | N42: 156970.1 | O42: 441490 | P42: 68688 | Q42: 129646.6762 | R42: 438948.12 | S42: 396440 | T42: 234260 | U42: 318549.036 | V42: 630700 | W42: 270300 | X42: 436056.3866 | Y42: 256202 | Z42: 256202 | AA42: 263728 | AB42: 210936.82
A43: CO-EX-08-03 | B43: Experto Senior en Migración - zona 2 | C43: Servicios profesionales | D43: NA | E43: NA | F43: Precio por hora | G43: Hora | H43: SI | I43: 216361.9 | J43: 174124.08 | K43: 343360.5 | L43: 413400 | M43: 295846 | N43: 156970.1 | O43: 490038 | P43: 80899.2 | Q43: 216788.6995 | R43: 438948.12 | S43: 324360 | T43: 221646 | U43: 457229.5044 | V43: 630700 | W43: 306340 | X43: 622937.0588 | Y43: 317682 | Z43: 317682 | AA43: 263728 | AB43: 230113.28
A44: CO-EX-08-04 | B44: Experto Senior en Migración - zona 3 | C44: Servicios profesionales | D44: NA | E44: NA | F44: Precio por hora | G44: Hora | H44: SI | I44: 227173.9 | J44: 181565.28 | K44: 373411.5 | L44: 424000 | M44: 348846 | N44: 156970.1 | O44: 490038 | P44: 87310.08 | Q44: 346709.5341 | R44: 438948.12 | S44: 180200 | T44: 209032 | U44: 907941.0268 | V44: 693770 | W44: 342380 | X44: 1557342.202 | Y44: 374816 | Z44: 374816 | AA44: 263728 | AB44: 249289.74
A45: CO-EX-09-01 | B45: Arquitecto Junior en Nube Hibrida - remoto | C45: Servicios profesionales | D45: NA | E45: NA | F45: Precio por hora | G45: Hora | H45: SI | I45: 161120 | J45: 124020 | K45: 130777.5 | L45: 254400 | M45: 199704 | N45: 156970.1 | O45: 184546 | P45: 45792 | Q45: 138933.1229 | R45: 445421.54 | S45: 162180 | T45: 101760 | U45: 164891.077 | V45: 379681.4 | W45: 180200 | X45: 280321.8991 | Y45: 138860 | Z45: 138860 | AA45: 232988 | AB45: 191761.42
A46: CO-EX-09-02 | B46: Arquitecto Junior en Nube Hibrida - zona 1 | C46: Servicios profesionales | D46: NA | E46: NA | F46: Precio por hora | G46: Hora | H46: SI | I46: 221540 | J46: 136422 | K46: 260998.5 | L46: 307400 | M46: 265954 | N46: 156970.1 | O46: 277084 | P46: 54950.4 | Q46: 168640.6309 | R46: 445421.54 | S46: 180200 | T46: 144160 | U46: 234231.3112 | V46: 567630 | W46: 216240 | X46: 311468.9748 | Y46: 181790 | Z46: 181790 | AA46: 232988 | AB46: 210936.82
A47: CO-EX-09-03 | B47: Arquitecto Junior en Nube Hibrida - zona 2 | C47: Servicios profesionales | D47: NA | E47: NA | F47: Precio por hora | G47: Hora | H47: SI | I47: 249736 | J47: 145103.4 | K47: 291049.5 | L47: 371000 | M47: 279204 | N47: 156970.1 | O47: 307506 | P47: 64719.36 | Q47: 255782.6541 | R47: 541035.66 | S47: 162180 | T47: 131546 | U47: 372911.7796 | V47: 567630 | W47: 252280 | X47: 498349.6471 | Y47: 247934 | Z47: 247934 | AA47: 232988 | AB47: 230113.28
A48: CO-EX-09-04 | B48: Arquitecto Junior en Nube Hibrida - zona 3 | C48: Servicios profesionales | D48: NA | E48: NA | F48: Precio por hora | G48: Hora | H48: SI | I48: 261820 | J48: 151304.4 | K48: 321100.5 | L48: 381600 | M48: 332204 | N48: 156970.1 | O48: 307506 | P48: 69848.064 | Q48: 385703.4887 | R48: 619265.78 | S48: 162180 | T48: 118932 | U48: 823623.302 | V48: 630700 | W48: 288320 | X48: 1245874.118 | Y48: 292772 | Z48: 292772 | AA48: 232988 | AB48: 249289.74
A49: CO-EX-10-01 | B49: Arquitecto Senior en Nube Hibrida - remoto | C49: Servicios profesionales | D49: NA | E49: NA | F49: Precio por hora | G49: Hora | H49: SI | I49: 269876 | J49: 148824 | K49: 209244 | L49: 402800 | M49: 249630 | N49: 156970.1 | O49: 294044 | P49: 80136 | Q49: 178245.0475 | R49: 521913.26 | S49: 396440 | T49: 191860 | U49: 249208.8018 | V49: 455365.4 | W49: 234260 | X49: 373762.2353 | Y49: 189316 | Z49: 189316 | AA49: 338988 | AB49: 221724.44
A50: CO-EX-10-02 | B50: Arquitecto Senior en Nube Hibrida - zona 1 | C50: Servicios profesionales | D50: NA | E50: NA | F50: Precio por hora | G50: Hora | H50: SI | I50: 330296 | J50: 163706.4 | K50: 339465 | L50: 455800 | M50: 315880 | N50: 156970.1 | O50: 441490 | P50: 96163.2 | Q50: 207952.5555 | R50: 521913.26 | S50: 396440 | T50: 234260 | U50: 318549.036 | V50: 630700 | W50: 252280 | X50: 436056.3866 | Y50: 256202 | Z50: 256202 | AA50: 338988 | AB50: 243896.46
A51: CO-EX-10-03 | B51: Arquitecto Senior en Nube Hibrida - zona 2 | C51: Servicios profesionales | D51: NA | E51: NA | F51: Precio por hora | G51: Hora | H51: SI | I51: 358492 | J51: 174124.08 | K51: 369516 | L51: 519400 | M51: 329130 | N51: 156970.1 | O51: 490038 | P51: 113258.88 | Q51: 295094.5786 | R51: 584496.72 | S51: 324360 | T51: 221646 | U51: 457229.5044 | V51: 630700 | W51: 306340 | X51: 622937.0588 | Y51: 317682 | Z51: 317682 | AA51: 338988 | AB51: 266068.48
A52: CO-EX-10-04 | B52: Arquitecto Senior en Nube Hibrida - zona 3 | C52: Servicios profesionales | D52: NA | E52: NA | F52: Precio por hora | G52: Hora | H52: SI | I52: 370576 | J52: 181565.28 | K52: 399567 | L52: 530000 | M52: 382130 | N52: 156970.1 | O52: 490038 | P52: 122234.112 | Q52: 425015.4132 | R52: 730525.5 | S52: 252280 | T52: 209032 | U52: 907941.0268 | V52: 693770 | W52: 414460 | X52: 1557342.202 | Y52: 374816 | Z52: 374816 | AA52: 338988 | AB52: 288241.56
A53: CO-EX-11-01 | B53: Experto Junior en Bases de Datos - remoto | C53: Servicios profesionales | D53: NA | E53: NA | F53: Precio por hora | G53: Hora | H53: SI | I53: 132924 | J53: 124020 | K53: 143100 | L53: 190800 | M53: 149778 | N53: 122144.86 | O53: 184546 | P53: 45792 | Q53: 57037.84009 | R53: 79268.92 | S53: 162180 | T53: 101760 | U53: 164891.077 | V53: 379681.4 | W53: 165784 | X53: 280321.8991 | Y53: 138860 | Z53: 138860 | AA53: 136528 | AB53: 116854.4
A54: CO-EX-11-02 | B54: Experto Junior en Bases de Datos - zona 1 | C54: Servicios profesionales | D54: NA | E54: NA | F54: Precio por hora | G54: Hora | H54: SI | I54: 197372 | J54: 136422 | K54: 228960 | L54: 243800 | M54: 216028 | N54: 122144.86 | O54: 277084 | P54: 54950.4 | Q54: 86745.34804 | R54: 124288.18 | S54: 180200 | T54: 144160 | U54: 234231.3112 | V54: 567630 | W54: 187408 | X54: 311468.9748 | Y54: 181790 | Z54: 181790 | AA54: 136528 | AB54: 128539.84
A55: CO-EX-11-03 | B55: Experto Junior en Bases de Datos - zona 2 | C55: Servicios profesionales | D55: NA | E55: NA | F55: Precio por hora | G55: Hora | H55: SI | I55: 221540 | J55: 145103.4 | K55: 256435.2 | L55: 307400 | M55: 229278 | N55: 122144.86 | O55: 307506 | P55: 64719.36 | Q55: 173887.3713 | R55: 124288.18 | S55: 162180 | T55: 131546 | U55: 372911.7796 | V55: 567630 | W55: 216240 | X55: 498349.6471 | Y55: 247934 | Z55: 247934 | AA55: 136528 | AB55: 140225.28
A56: CO-EX-11-04 | B56: Experto Junior en Bases de Datos - zona 3 | C56: Servicios profesionales | D56: NA | E56: NA | F56: Precio por hora | G56: Hora | H56: SI | I56: 233624 | J56: 151304.4 | K56: 282078.72 | L56: 318000 | M56: 282278 | N56: 122144.86 | O56: 307506 | P56: 69848.064 | Q56: 303808.2059 | R56: 124288.18 | S56: 162180 | T56: 118932 | U56: 823623.302 | V56: 630700 | W56: 270300 | X56: 1245874.118 | Y56: 292772 | Z56: 292772 | AA56: 136528 | AB56: 151910.72
A57: CO-EX-12-01 | B57: Experto Senior en Bases de Datos - remoto | C57: Servicios profesionales | D57: NA | E57: NA | F57: Precio por hora | G57: Hora | H57: SI | I57: 185288 | J57: 148824 | K57: 200340 | L57: 296800 | M57: 216346 | N57: 156970.1 | O57: 368986 | P57: 80136 | Q57: 189797.8499 | R57: 125383.16 | S57: 288320 | T57: 191860 | U57: 249208.8018 | V57: 455365.4 | W57: 252280 | X57: 373762.2353 | Y57: 189316 | Z57: 189316 | AA57: 222388 | AB57: 191761.42
A58: CO-EX-12-02 | B58: Experto Senior en Bases de Datos - zona 1 | C58: Servicios profesionales | D58: NA | E58: NA | F58: Precio por hora | G58: Hora | H58: SI | I58: 249736 | J58: 163706.4 | K58: 280476 | L58: 349800 | M58: 282596 | N58: 156970.1 | O58: 554062 | P58: 96163.2 | Q58: 219505.3578 | R58: 170402.42 | S58: 324360 | T58: 234260 | U58: 318549.036 | V58: 630700 | W58: 273904 | X58: 436056.3866 | Y58: 256202 | Z58: 256202 | AA58: 222388 | AB58: 210936.82
A59: CO-EX-12-03 | B59: Experto Senior en Bases de Datos - zona 2 | C59: Servicios profesionales | D59: NA | E59: NA | F59: Precio por hora | G59: Hora | H59: SI | I59: 273904 | J59: 174124.08 | K59: 364618.8 | L59: 413400 | M59: 295846 | N59: 156970.1 | O59: 614906 | P59: 113258.88 | Q59: 306647.381 | R59: 170402.42 | S59: 252280 | T59: 221646 | U59: 457229.5044 | V59: 630700 | W59: 306340 | X59: 622937.0588 | Y59: 317682 | Z59: 317682 | AA59: 222388 | AB59: 230113.28
A60: CO-EX-12-04 | B60: Experto Senior en Bases de Datos - zona 3 | C60: Servicios profesionales | D60: NA | E60: NA | F60: Precio por hora | G60: Hora | H60: SI | I60: 285988 | J60: 181565.28 | K60: 419311.62 | L60: 424000 | M60: 348846 | N60: 156970.1 | O60: 614906 | P60: 122234.112 | Q60: 436568.2156 | R60: 170402.42 | S60: 180200 | T60: 209032 | U60: 907941.0268 | V60: 693770 | W60: 360400 | X60: 1557342.202 | Y60: 374816 | Z60: 374816 | AA60: 222388 | AB60: 249289.74
A61: CO-EX-13-01 | B61: Experto Junior en Servidores y Aplicaciones Web - remoto | C61: Servicios profesionales | D61: NA | E61: NA | F61: Precio por hora | G61: Hora | H61: SI | I61: 88616 | J61: 124020 | K61: 130777.5 | L61: 190800 | M61: 149778 | N61: 122144.86 | O61: 184546 | P61: 40068 | Q61: 56693.97291 | R61: 93840.74 | S61: 162180 | T61: 101760 | U61: 164891.077 | V61: 379681.4 | W61: 165784 | X61: 280321.8991 | Y61: 138860 | Z61: 138860 | AA61: 137588 | AB61: 116854.4
A62: CO-EX-13-02 | B62: Experto Junior en Servidores y Aplicaciones Web - zona 1 | C62: Servicios profesionales | D62: NA | E62: NA | F62: Precio por hora | G62: Hora | H62: SI | I62: 153064 | J62: 136422 | K62: 260998.5 | L62: 243800 | M62: 216028 | N62: 122144.86 | O62: 277084 | P62: 48081.6 | Q62: 86401.48086 | R62: 138860 | S62: 180200 | T62: 144160 | U62: 234231.3112 | V62: 567630 | W62: 187408 | X62: 311468.9748 | Y62: 181790 | Z62: 181790 | AA62: 137588 | AB62: 128539.84
A63: CO-EX-13-03 | B63: Experto Junior en Servidores y Aplicaciones Web - zona 2 | C63: Servicios profesionales | D63: NA | E63: NA | F63: Precio por hora | G63: Hora | H63: SI | I63: 177232 | J63: 145103.4 | K63: 291049.5 | L63: 307400 | M63: 229278 | N63: 122144.86 | O63: 307506 | P63: 56629.44 | Q63: 143835.9962 | R63: 138860 | S63: 162180 | T63: 131546 | U63: 372911.7796 | V63: 567630 | W63: 216240 | X63: 498349.6471 | Y63: 247934 | Z63: 247934 | AA63: 137588 | AB63: 140225.28
A64: CO-EX-13-04 | B64: Experto Junior en Servidores y Aplicaciones Web - zona 3 | C64: Servicios profesionales | D64: NA | E64: NA | F64: Precio por hora | G64: Hora | H64: SI | I64: 189316 | J64: 151304.4 | K64: 321100.5 | L64: 318000 | M64: 282278 | N64: 122144.86 | O64: 307506 | P64: 61117.056 | Q64: 186614.8076 | R64: 138860 | S64: 162180 | T64: 118932 | U64: 823623.302 | V64: 630700 | W64: 270300 | X64: 1245874.118 | Y64: 292772 | Z64: 292772 | AA64: 137588 | AB64: 151910.72
A65: CO-EX-14-01 | B65: Experto Senior en Servidores y Aplicaciones Web - remoto | C65: Servicios profesionales | D65: NA | E65: NA | F65: Precio por hora | G65: Hora | H65: SI | I65: 136952 | J65: 148824 | K65: 209244 | L65: 296800 | M65: 216346 | N65: 156970.1 | O65: 265212 | P65: 57240 | Q65: 168762.5104 | R65: 116080.6 | S65: 288320 | T65: 191860 | U65: 249208.8018 | V65: 455365.4 | W65: 252280 | X65: 373762.2353 | Y65: 189316 | Z65: 189316 | AA65: 201188 | AB65: 191761.42
A66: CO-EX-14-02 | B66: Experto Senior en Servidores y Aplicaciones Web - zona 1 | C66: Servicios profesionales | D66: NA | E66: NA | F66: Precio por hora | G66: Hora | H66: SI | I66: 201400 | J66: 163706.4 | K66: 339465 | L66: 349800 | M66: 282596 | N66: 156970.1 | O66: 398242 | P66: 68688 | Q66: 198470.0184 | R66: 161099.86 | S66: 324360 | T66: 234260 | U66: 318549.036 | V66: 630700 | W66: 273904 | X66: 436056.3866 | Y66: 256202 | Z66: 256202 | AA66: 201188 | AB66: 210936.82
A67: CO-EX-14-03 | B67: Experto Senior en Servidores y Aplicaciones Web - zona 2 | C67: Servicios profesionales | D67: NA | E67: NA | F67: Precio por hora | G67: Hora | H67: SI | I67: 225568 | J67: 174124.08 | K67: 369516 | L67: 413400 | M67: 295846 | N67: 156970.1 | O67: 442020 | P67: 80899.2 | Q67: 255904.5337 | R67: 161099.86 | S67: 252280 | T67: 221646 | U67: 457229.5044 | V67: 630700 | W67: 306340 | X67: 622937.0588 | Y67: 317682 | Z67: 317682 | AA67: 201188 | AB67: 230113.28
A68: CO-EX-14-04 | B68: Experto Senior en Servidores y Aplicaciones Web - zona 3 | C68: Servicios profesionales | D68: NA | E68: NA | F68: Precio por hora | G68: Hora | H68: SI | I68: 237652 | J68: 181565.28 | K68: 399577.6 | L68: 424000 | M68: 348846 | N68: 156970.1 | O68: 442020 | P68: 87310.08 | Q68: 298683.345 | R68: 161099.86 | S68: 180200 | T68: 209032 | U68: 907941.0268 | V68: 693770 | W68: 360400 | X68: 1557342.202 | Y68: 374816 | Z68: 374816 | AA68: 201188 | AB68: 249289.74
A69: CO-EX-15-01 | B69: Arquitecto Junior en Nube Publica - remoto | C69: Servicios profesionales | D69: NA | E69: NA | F69: Precio por hora | G69: Hora | H69: SI | I69: 161120 | J69: 124020 | K69: 130777.5 | L69: 254400 | M69: 199704 | N69: 156970.1 | O69: 184546 | P69: 45792 | Q69: 138933.1229 | R69: 93840.74 | S69: 162180 | T69: 101760 | U69: 164891.077 | V69: 379681.4 | W69: 180200 | X69: 280321.8991 | Y69: 138860 | Z69: 138860 | AA69: 137588 | AB69: 191761.42
A70: CO-EX-15-02 | B70: Arquitecto Junior en Nube Publica - zona 1 | C70: Servicios profesionales | D70: NA | E70: NA | F70: Precio por hora | G70: Hora | H70: SI | I70: 221540 | J70: 136422 | K70: 260998.5 | L70: 307400 | M70: 265954 | N70: 156970.1 | O70: 277084 | P70: 54950.4 | Q70: 168640.6309 | R70: 138860 | S70: 180200 | T70: 144160 | U70: 234231.3112 | V70: 567630 | W70: 216240 | X70: 311468.9748 | Y70: 181790 | Z70: 181790 | AA70: 137588 | AB70: 210936.82
A71: CO-EX-15-03 | B71: Arquitecto Junior en Nube Publica - zona 2 | C71: Servicios profesionales | D71: NA | E71: NA | F71: Precio por hora | G71: Hora | H71: SI | I71: 249736 | J71: 145103.4 | K71: 291049.5 | L71: 371000 | M71: 279204 | N71: 156970.1 | O71: 307506 | P71: 64719.36 | Q71: 226075.1462 | R71: 138860 | S71: 162180 | T71: 131546 | U71: 372911.7796 | V71: 567630 | W71: 252280 | X71: 498349.6471 | Y71: 247934 | Z71: 247934 | AA71: 137588 | AB71: 230113.28
A72: CO-EX-15-04 | B72: Arquitecto Junior en Nube Publica - zona 3 | C72: Servicios profesionales | D72: NA | E72: NA | F72: Precio por hora | G72: Hora | H72: SI | I72: 261820 | J72: 151304.4 | K72: 321100.5 | L72: 381600 | M72: 332204 | N72: 156970.1 | O72: 307506 | P72: 69848.064 | Q72: 268853.9576 | R72: 138860 | S72: 162180 | T72: 118932 | U72: 823623.302 | V72: 630700 | W72: 288320 | X72: 1245874.118 | Y72: 292772 | Z72: 292772 | AA72: 137588 | AB72: 249289.74
A73: CO-EX-16-01 | B73: Arquitecto Senior en Nube Publica - remoto | C73: Servicios profesionales | D73: NA | E73: NA | F73: Precio por hora | G73: Hora | H73: SI | I73: 269876 | J73: 148824 | K73: 209244 | L73: 360400 | M73: 249630 | N73: 156970.1 | O73: 265212 | P73: 80136 | Q73: 178245.0475 | R73: 205274.3 | S73: 396440 | T73: 191860 | U73: 249208.8018 | V73: 455365.4 | W73: 252280 | X73: 373762.2353 | Y73: 189316 | Z73: 189316 | AA73: 316728 | AB73: 221724.44
A74: CO-EX-16-02 | B74: Arquitecto Senior en Nube Publica - zona 1 | C74: Servicios profesionales | D74: NA | E74: NA | F74: Precio por hora | G74: Hora | H74: SI | I74: 330296 | J74: 163706.4 | K74: 339465 | L74: 413400 | M74: 315880 | N74: 156970.1 | O74: 398242 | P74: 96163.2 | Q74: 207952.5555 | R74: 250293.56 | S74: 396440 | T74: 234260 | U74: 318549.036 | V74: 630700 | W74: 288320 | X74: 436056.3866 | Y74: 256202 | Z74: 256202 | AA74: 316728 | AB74: 243896.46
A75: CO-EX-16-03 | B75: Arquitecto Senior en Nube Publica - zona 2 | C75: Servicios profesionales | D75: NA | E75: NA | F75: Precio por hora | G75: Hora | H75: SI | I75: 358492 | J75: 174124.08 | K75: 369516 | L75: 477000 | M75: 329130 | N75: 156970.1 | O75: 442020 | P75: 113258.88 | Q75: 295094.5786 | R75: 250293.56 | S75: 324360 | T75: 221646 | U75: 457229.5044 | V75: 630700 | W75: 324360 | X75: 622937.0588 | Y75: 317682 | Z75: 317682 | AA75: 316728 | AB75: 266068.48
A76: CO-EX-16-04 | B76: Arquitecto Senior en Nube Publica - zona 3 | C76: Servicios profesionales | D76: NA | E76: NA | F76: Precio por hora | G76: Hora | H76: SI | I76: 370576 | J76: 181565.28 | K76: 399577.6 | L76: 487600 | M76: 382130 | N76: 156970.1 | O76: 442020 | P76: 122234.112 | Q76: 425015.4132 | R76: 250293.56 | S76: 252280 | T76: 209032 | U76: 907941.0268 | V76: 693770 | W76: 360400 | X76: 1557342.202 | Y76: 374816 | Z76: 374816 | AA76: 316728 | AB76: 288241.56
A77: CO-EX-17-01 | B77: Experto Junior en Manejo de Datos - remoto | C77: Servicios profesionales | D77: NA | E77: NA | F77: Precio por hora | G77: Hora | H77: SI | I77: 306128 | J77: 117819 | K77: 143100 | L77: 190800 | M77: 149778 | N77: 122144.86 | O77: 184546 | P77: 40068 | Q77: 237660.0633 | R77: 92490.3 | S77: 162180 | T77: 191860 | U77: 164891.077 | V77: 379681.4 | W77: 165784 | X77: 280321.8991 | Y77: 138860 | Z77: 138860 | AA77: 148188 | AB77: 191761.42
A78: CO-EX-17-02 | B78: Experto Junior en Manejo de Datos - zona 1 | C78: Servicios profesionales | D78: NA | E78: NA | F78: Precio por hora | G78: Hora | H78: SI | I78: 370576 | J78: 129600.9 | K78: 228960 | L78: 243800 | M78: 216028 | N78: 122144.86 | O78: 277084 | P78: 48081.6 | Q78: 267367.5713 | R78: 137509.56 | S78: 180200 | T78: 234260 | U78: 234231.3112 | V78: 567630 | W78: 187408 | X78: 311468.9748 | Y78: 181790 | Z78: 181790 | AA78: 148188 | AB78: 210936.82
A79: CO-EX-17-03 | B79: Experto Junior en Manejo de Datos - zona 2 | C79: Servicios profesionales | D79: NA | E79: NA | F79: Precio por hora | G79: Hora | H79: SI | I79: 394744 | J79: 137848.23 | K79: 256435.2 | L79: 307400 | M79: 229278 | N79: 122144.86 | O79: 307506 | P79: 56629.44 | Q79: 324802.0866 | R79: 137509.56 | S79: 162180 | T79: 221646 | U79: 372911.7796 | V79: 567630 | W79: 216240 | X79: 498349.6471 | Y79: 247934 | Z79: 247934 | AA79: 148188 | AB79: 230113.28
A80: CO-EX-17-04 | B80: Experto Junior en Manejo de Datos - zona 3 | C80: Servicios profesionales | D80: NA | E80: NA | F80: Precio por hora | G80: Hora | H80: SI | I80: 406828 | J80: 143739.18 | K80: 282078.72 | L80: 318000 | M80: 282278 | N80: 122144.86 | O80: 307506 | P80: 61117.056 | Q80: 367580.8979 | R80: 137509.56 | S80: 162180 | T80: 209032 | U80: 823623.302 | V80: 630700 | W80: 270300 | X80: 1245874.118 | Y80: 292772 | Z80: 292772 | AA80: 148188 | AB80: 249289.74
A81: CO-EX-18-01 | B81: Experto Senior en Manejo de Datos - remoto | C81: Servicios profesionales | D81: NA | E81: NA | F81: Precio por hora | G81: Hora | H81: SI | I81: 330296 | J81: 142623 | K81: 200340 | L81: 296800 | M81: 249630 | N81: 156970.1 | O81: 294044 | P81: 68688 | Q81: 316880.0845 | R81: 143635.3 | S81: 252280 | T81: 281960 | U81: 249208.8018 | V81: 455365.4 | W81: 252280 | X81: 373762.2353 | Y81: 189316 | Z81: 189316 | AA81: 210728 | AB81: 221724.44
A82: CO-EX-18-02 | B82: Experto Senior en Manejo de Datos - zona 1 | C82: Servicios profesionales | D82: NA | E82: NA | F82: Precio por hora | G82: Hora | H82: SI | I82: 390716 | J82: 156885.3 | K82: 280476 | L82: 349800 | M82: 315880 | N82: 156970.1 | O82: 441490 | P82: 82425.6 | Q82: 346587.5924 | R82: 188654.56 | S82: 324360 | T82: 324360 | U82: 318549.036 | V82: 630700 | W82: 273904 | X82: 436056.3866 | Y82: 256202 | Z82: 256202 | AA82: 210728 | AB82: 243896.46
A83: CO-EX-18-03 | B83: Experto Senior en Manejo de Datos - zona 2 | C83: Servicios profesionales | D83: NA | E83: NA | F83: Precio por hora | G83: Hora | H83: SI | I83: 418912 | J83: 166868.91 | K83: 364618.8 | L83: 413400 | M83: 329130 | N83: 156970.1 | O83: 490038 | P83: 97079.04 | Q83: 404022.1077 | R83: 188654.56 | S83: 216240 | T83: 311746 | U83: 457229.5044 | V83: 630700 | W83: 306340 | X83: 622937.0588 | Y83: 317682 | Z83: 317682 | AA83: 210728 | AB83: 266068.48
A84: CO-EX-18-04 | B84: Experto Senior en Manejo de Datos - zona 3 | C84: Servicios profesionales | D84: NA | E84: NA | F84: Precio por hora | G84: Hora | H84: SI | I84: 430996 | J84: 174000.06 | K84: 419311.62 | L84: 424000 | M84: 382130 | N84: 156970.1 | O84: 490038 | P84: 104772.096 | Q84: 446800.9191 | R84: 188654.56 | S84: 180200 | T84: 299132 | U84: 907941.0268 | V84: 693770 | W84: 360400 | X84: 1557342.202 | Y84: 374816 | Z84: 374816 | AA84: 210728 | AB84: 288241.56
A85: CO-EX-19-01 | B85: Experto Junior en Inteligencia de Negocios - remoto | C85: Servicios profesionales | D85: NA | E85: NA | F85: Precio por hora | G85: Hora | H85: SI | I85: 229596 | J85: 117819 | K85: 143100 | L85: 233200 | M85: 199704 | N85: 122144.86 | O85: 184546 | P85: 45792 | Q85: 422506.7793 | R85: 92490.3 | S85: 162180 | T85: 101760 | U85: 164891.077 | V85: 379681.4 | W85: 165784 | X85: 280321.8991 | Y85: 138860 | Z85: 138860 | AA85: 137588 | AB85: 116854.4
A86: CO-EX-19-02 | B86: Experto Junior en Inteligencia de Negocios - zona 1 | C86: Servicios profesionales | D86: NA | E86: NA | F86: Precio por hora | G86: Hora | H86: SI | I86: 290016 | J86: 129600.9 | K86: 228960 | L86: 286200 | M86: 265954 | N86: 122144.86 | O86: 277084 | P86: 54950.4 | Q86: 452214.2872 | R86: 137509.56 | S86: 180200 | T86: 144160 | U86: 234231.3112 | V86: 567630 | W86: 187408 | X86: 311468.9748 | Y86: 181790 | Z86: 181790 | AA86: 137588 | AB86: 128539.84
A87: CO-EX-19-03 | B87: Experto Junior en Inteligencia de Negocios - zona 2 | C87: Servicios profesionales | D87: NA | E87: NA | F87: Precio por hora | G87: Hora | H87: SI | I87: 318212 | J87: 137848.23 | K87: 256435.2 | L87: 349800 | M87: 279204 | N87: 122144.86 | O87: 307506 | P87: 64719.36 | Q87: 539356.3104 | R87: 137509.56 | S87: 162180 | T87: 131546 | U87: 372911.7796 | V87: 567630 | W87: 216240 | X87: 498349.6471 | Y87: 247934 | Z87: 247934 | AA87: 137588 | AB87: 140225.28
A88: CO-EX-19-04 | B88: Experto Junior en Inteligencia de Negocios - zona 3 | C88: Servicios profesionales | D88: NA | E88: NA | F88: Precio por hora | G88: Hora | H88: SI | I88: 330296 | J88: 143739.18 | K88: 282078.72 | L88: 360400 | M88: 332204 | N88: 122144.86 | O88: 307506 | P88: 69848.064 | Q88: 669277.145 | R88: 137509.56 | S88: 162180 | T88: 118932 | U88: 823623.302 | V88: 630700 | W88: 270300 | X88: 1245874.118 | Y88: 292772 | Z88: 292772 | AA88: 137588 | AB88: 151910.72
A89: CO-EX-20-01 | B89: Experto Senior en Inteligencia de Negocios - remoto | C89: Servicios profesionales | D89: NA | E89: NA | F89: Precio por hora | G89: Hora | H89: SI | I89: 229596 | J89: 142623 | K89: 200340 | L89: 339200 | M89: 249630 | N89: 156970.1 | O89: 265212 | P89: 80136 | Q89: 237660.0633 | R89: 143635.3 | S89: 324360 | T89: 191860 | U89: 249208.8018 | V89: 455365.4 | W89: 252280 | X89: 373762.2353 | Y89: 189316 | Z89: 189316 | AA89: 232988 | AB89: 191761.42
A90: CO-EX-20-02 | B90: Experto Senior en Inteligencia de Negocios - zona 1 | C90: Servicios profesionales | D90: NA | E90: NA | F90: Precio por hora | G90: Hora | H90: SI | I90: 290016 | J90: 156885.3 | K90: 280476 | L90: 392200 | M90: 315880 | N90: 156970.1 | O90: 398242 | P90: 96163.2 | Q90: 267367.5713 | R90: 188654.56 | S90: 324360 | T90: 234260 | U90: 318549.036 | V90: 630700 | W90: 273904 | X90: 436056.3866 | Y90: 256202 | Z90: 256202 | AA90: 332416 | AB90: 210936.82
A91: CO-EX-20-03 | B91: Experto Senior en Inteligencia de Negocios - zona 2 | C91: Servicios profesionales | D91: NA | E91: NA | F91: Precio por hora | G91: Hora | H91: SI | I91: 318212 | J91: 166868.91 | K91: 364618.8 | L91: 455800 | M91: 329130 | N91: 156970.1 | O91: 442020 | P91: 113258.88 | Q91: 324802.0866 | R91: 188654.56 | S91: 216240 | T91: 221646 | U91: 457229.5044 | V91: 630700 | W91: 306340 | X91: 622937.0588 | Y91: 317682 | Z91: 317682 | AA91: 332416 | AB91: 230113.28
A92: CO-EX-20-04 | B92: Experto Senior en Inteligencia de Negocios - zona 3 | C92: Servicios profesionales | D92: NA | E92: NA | F92: Precio por hora | G92: Hora | H92: SI | I92: 330296 | J92: 174000.06 | K92: 419311.62 | L92: 466400 | M92: 382130 | N92: 156970.1 | O92: 442020 | P92: 122234.112 | Q92: 367580.8979 | R92: 188654.56 | S92: 180200 | T92: 209032 | U92: 907941.0268 | V92: 693770 | W92: 360400 | X92: 1557342.202 | Y92: 374816 | Z92: 374816 | AA92: 332416 | AB92: 249289.74
A93: CO-EX-21-01 | B93: Experto Junior en Big Data - remoto | C93: Servicios profesionales | D93: NA | E93: NA | F93: Precio por hora | G93: Hora | H93: SI | I93: 306128 | J93: 117819 | K93: 143100 | L93: 254400 | M93: 299556 | N93: 299161.68 | O93: 184546 | P93: 45792 | Q93: 198050.0527 | R93: 92490.3 | S93: 162180 | T93: 191860 | U93: 164891.077 | V93: 379681.4 | W93: 165784 | X93: 311468.9748 | Y93: 138860 | Z93: 138860 | AA93: 137588 | AB93: 191761.42
A94: CO-EX-21-02 | B94: Experto Junior en Big Data - zona 1 | C94: Servicios profesionales | D94: NA | E94: NA | F94: Precio por hora | G94: Hora | H94: SI | I94: 370576 | J94: 129600.9 | K94: 228960 | L94: 307400 | M94: 365806 | N94: 314090.72 | O94: 277084 | P94: 54950.4 | Q94: 227757.5607 | R94: 137509.56 | S94: 180200 | T94: 234260 | U94: 234231.3112 | V94: 567630 | W94: 187408 | X94: 373762.2353 | Y94: 181790 | Z94: 181790 | AA94: 137588 | AB94: 210936.82
A95: CO-EX-21-03 | B95: Experto Junior en Big Data - zona 2 | C95: Servicios profesionales | D95: NA | E95: NA | F95: Precio por hora | G95: Hora | H95: SI | I95: 394744 | J95: 137848.23 | K95: 256435.2 | L95: 371000 | M95: 379056 | N95: 329362.14 | O95: 307506 | P95: 64719.36 | Q95: 285192.076 | R95: 137509.56 | S95: 162180 | T95: 221646 | U95: 372911.7796 | V95: 567630 | W95: 216240 | X95: 560643.7983 | Y95: 247934 | Z95: 247934 | AA95: 137588 | AB95: 230113.28
A96: CO-EX-21-04 | B96: Experto Junior en Big Data - zona 3 | C96: Servicios profesionales | D96: NA | E96: NA | F96: Precio por hora | G96: Hora | H96: SI | I96: 406828 | J96: 143739.18 | K96: 282078.72 | L96: 381600 | M96: 432056 | N96: 343966.82 | O96: 307506 | P96: 69848.064 | Q96: 327970.8875 | R96: 137509.56 | S96: 162180 | T96: 209032 | U96: 823623.302 | V96: 630700 | W96: 270300 | X96: 1370461.529 | Y96: 292772 | Z96: 292772 | AA96: 137588 | AB96: 249289.74
A97: CO-EX-22-01 | B97: Experto Senior en Big Data - remoto | C97: Servicios profesionales | D97: NA | E97: NA | F97: Precio por hora | G97: Hora | H97: SI | I97: 330296 | J97: 142623 | K97: 200340 | L97: 360400 | M97: 490939 | N97: 345108.44 | O97: 294044 | P97: 80136 | Q97: 277270.0739 | R97: 167257.4 | S97: 396440 | T97: 281960 | U97: 249208.8018 | V97: 455365.4 | W97: 252280 | X97: 498349.6471 | Y97: 189316 | Z97: 189316 | AA97: 332416 | AB97: 221724.44
A98: CO-EX-22-02 | B98: Experto Senior en Big Data - zona 1 | C98: Servicios profesionales | D98: NA | E98: NA | F98: Precio por hora | G98: Hora | H98: SI | I98: 390716 | J98: 156885.3 | K98: 280476 | L98: 413400 | M98: 557189 | N98: 362084.34 | O98: 441490 | P98: 96163.2 | Q98: 306977.5818 | R98: 212276.66 | S98: 396440 | T98: 324360 | U98: 318549.036 | V98: 630700 | W98: 273904 | X98: 622937.0588 | Y98: 256202 | Z98: 256202 | AA98: 332416 | AB98: 243896.46
A99: CO-EX-22-03 | B99: Experto Senior en Big Data - zona 2 | C99: Servicios profesionales | D99: NA | E99: NA | F99: Precio por hora | G99: Hora | H99: SI | I99: 418912 | J99: 166868.91 | K99: 364618.8 | L99: 477000 | M99: 570439 | N99: 379527.7 | O99: 490038 | P99: 113258.88 | Q99: 364412.0971 | R99: 212276.66 | S99: 324360 | T99: 311746 | U99: 457229.5044 | V99: 630700 | W99: 306340 | X99: 934406.0337 | Y99: 317682 | Z99: 317682 | AA99: 332416 | AB99: 266068.48
A100: CO-EX-22-04 | B100: Experto Senior en Big Data - zona 3 | C100: Servicios profesionales | D100: NA | E100: NA | F100: Precio por hora | G100: Hora | H100: SI | I100: 430996 | J100: 174000.06 | K100: 419311.62 | L100: 487600 | M100: 623439 | N100: 397054.8 | O100: 490038 | P100: 122234.112 | Q100: 407190.9085 | R100: 212276.66 | S100: 180200 | T100: 299132 | U100: 907941.0268 | V100: 693770 | W100: 360400 | X100: 1868811.177 | Y100: 374816 | Z100: 374816 | AA100: 232988 | AB100: 288241.56
A101: CO-EX-23-01 | B101: Experto Junior en Almacen de Datos - remoto | C101: Servicios profesionales | D101: NA | E101: NA | F101: Precio por hora | G101: Hora | H101: SI | I101: 229596 | J101: 117819 | K101: 119647.5 | L101: 190800 | M101: 149778 | N101: 299161.68 | O101: 184546 | P101: 45792 | Q101: 178245.0475 | R101: 92490.3 | S101: 162180 | T101: 101760 | U101: 164891.077 | V101: 379681.4 | W101: 165784 | X101: 280321.8991 | Y101: 138860 | Z101: 138860 | AA101: 137588 | AB101: 116854.4
A102: CO-EX-23-02 | B102: Experto Junior en Almacen de Datos - zona 1 | C102: Servicios profesionales | D102: NA | E102: NA | F102: Precio por hora | G102: Hora | H102: SI | I102: 290016 | J102: 129600.9 | K102: 249868.5 | L102: 243800 | M102: 216028 | N102: 314090.72 | O102: 277084 | P102: 54950.4 | Q102: 207952.5555 | R102: 137509.56 | S102: 180200 | T102: 144160 | U102: 234231.3112 | V102: 567630 | W102: 187408 | X102: 311468.9748 | Y102: 181790 | Z102: 181790 | AA102: 137588 | AB102: 128539.84
A103: CO-EX-23-03 | B103: Experto Junior en Almacen de Datos - zona 2 | C103: Servicios profesionales | D103: NA | E103: NA | F103: Precio por hora | G103: Hora | H103: SI | I103: 318212 | J103: 137848.23 | K103: 279919.5 | L103: 307400 | M103: 229278 | N103: 329362.14 | O103: 307506 | P103: 64719.36 | Q103: 265387.0708 | R103: 137509.56 | S103: 162180 | T103: 131546 | U103: 372911.7796 | V103: 567630 | W103: 216240 | X103: 498349.6471 | Y103: 247934 | Z103: 247934 | AA103: 137588 | AB103: 140225.28
A104: CO-EX-23-04 | B104: Experto Junior en Almacen de Datos - zona 3 | C104: Servicios profesionales | D104: NA | E104: NA | F104: Precio por hora | G104: Hora | H104: SI | I104: 330296 | J104: 143739.18 | K104: 309970.5 | L104: 318000 | M104: 282278 | N104: 343966.82 | O104: 307506 | P104: 69848.064 | Q104: 308165.8821 | R104: 137509.56 | S104: 162180 | T104: 118932 | U104: 823623.302 | V104: 630700 | W104: 270300 | X104: 1245874.118 | Y104: 292772 | Z104: 292772 | AA104: 137588 | AB104: 151910.72
A105: CO-EX-24-01 | B105: Experto Senior en Almacen de Datos - remoto | C105: Servicios profesionales | D105: NA | E105: NA | F105: Precio por hora | G105: Hora | H105: SI | I105: 229596 | J105: 142623 | K105: 191436 | L105: 296800 | M105: 216346 | N105: 345108.44 | O105: 294044 | P105: 80136 | Q105: 217855.0581 | R105: 143635.3 | S105: 396440 | T105: 281960 | U105: 249208.8018 | V105: 455365.4 | W105: 252280 | X105: 373762.2353 | Y105: 189316 | Z105: 189316 | AA105: 232988 | AB105: 191761.42
A106: CO-EX-24-02 | B106: Experto Senior en Almacen de Datos - zona 1 | C106: Servicios profesionales | D106: NA | E106: NA | F106: Precio por hora | G106: Hora | H106: SI | I106: 290016 | J106: 156885.3 | K106: 321657 | L106: 349800 | M106: 282596 | N106: 362084.34 | O106: 441490 | P106: 96163.2 | Q106: 247562.5659 | R106: 188654.56 | S106: 396440 | T106: 324360 | U106: 318549.036 | V106: 630700 | W106: 273904 | X106: 436056.3866 | Y106: 256202 | Z106: 256202 | AA106: 232988 | AB106: 210936.82
A107: CO-EX-24-03 | B107: Experto Senior en Almacen de Datos - zona 2 | C107: Servicios profesionales | D107: NA | E107: NA | F107: Precio por hora | G107: Hora | H107: SI | I107: 318212 | J107: 166868.91 | K107: 351708 | L107: 413400 | M107: 295846 | N107: 379527.7 | O107: 490038 | P107: 113258.88 | Q107: 304997.0812 | R107: 188654.56 | S107: 324360 | T107: 311746 | U107: 457229.5044 | V107: 630700 | W107: 306340 | X107: 622937.0588 | Y107: 317682 | Z107: 317682 | AA107: 232988 | AB107: 230113.28
A108: CO-EX-24-04 | B108: Experto Senior en Almacen de Datos - zona 3 | C108: Servicios profesionales | D108: NA | E108: NA | F108: Precio por hora | G108: Hora | H108: SI | I108: 330296 | J108: 174000.06 | K108: 381759 | L108: 424000 | M108: 348846 | N108: 397054.8 | O108: 490038 | P108: 122234.112 | Q108: 347775.8927 | R108: 188654.56 | S108: 180200 | T108: 299132 | U108: 907941.0268 | V108: 693770 | W108: 360400 | X108: 1557342.202 | Y108: 374816 | Z108: 374816 | AA108: 232988 | AB108: 249289.74
A109: CO-EX-25-01 | B109: Experto Junior en Aplicaciones Empresariales - remoto | C109: Servicios profesionales | D109: NA | E109: NA | F109: Precio por hora | G109: Hora | H109: SI | I109: 237652 | J109: 124020 | K109: 119647.5 | L109: 254400 | M109: 149778 | N109: 299161.68 | O109: 184546 | P109: 45792 | Q109: 138635.0369 | R109: 445421.54 | S109: 162180 | T109: 191860 | U109: 164891.077 | V109: 379681.4 | W109: 165784 | X109: 311468.9748 | Y109: 138860 | Z109: 138860 | AA109: 179988 | AB109: 116854.4
A110: CO-EX-25-02 | B110: Experto Junior en Aplicaciones Empresariales - zona 1 | C110: Servicios profesionales | D110: NA | E110: NA | F110: Precio por hora | G110: Hora | H110: SI | I110: 302100 | J110: 136422 | K110: 249868.5 | L110: 307400 | M110: 216028 | N110: 314090.72 | O110: 277084 | P110: 54950.4 | Q110: 168342.5449 | R110: 445421.54 | S110: 180200 | T110: 234260 | U110: 234231.3112 | V110: 567630 | W110: 187408 | X110: 373762.2353 | Y110: 181790 | Z110: 181790 | AA110: 179988 | AB110: 128539.84
A111: CO-EX-25-03 | B111: Experto Junior en Aplicaciones Empresariales - zona 2 | C111: Servicios profesionales | D111: NA | E111: NA | F111: Precio por hora | G111: Hora | H111: SI | I111: 326268 | J111: 145103.4 | K111: 279919.5 | L111: 371000 | M111: 229278 | N111: 329362.14 | O111: 307506 | P111: 64719.36 | Q111: 225777.0602 | R111: 541035.66 | S111: 162180 | T111: 221646 | U111: 372911.7796 | V111: 567630 | W111: 216240 | X111: 560643.7983 | Y111: 247934 | Z111: 247934 | AA111: 179988 | AB111: 140225.28
A112: CO-EX-25-04 | B112: Experto Junior en Aplicaciones Empresariales - zona 3 | C112: Servicios profesionales | D112: NA | E112: NA | F112: Precio por hora | G112: Hora | H112: SI | I112: 338352 | J112: 151304.4 | K112: 309970.5 | L112: 381600 | M112: 282278 | N112: 343966.82 | O112: 307506 | P112: 69848.064 | Q112: 268555.8715 | R112: 619265.78 | S112: 162180 | T112: 209032 | U112: 823623.302 | V112: 630700 | W112: 270300 | X112: 1370461.529 | Y112: 292772 | Z112: 292772 | AA112: 179988 | AB112: 151910.72
A113: CO-EX-26-01 | B113: Experto Senior en Aplicaciones Empresariales - remoto | C113: Servicios profesionales | D113: NA | E113: NA | F113: Precio por hora | G113: Hora | H113: SI | I113: 298072 | J113: 148824 | K113: 191436 | L113: 360400 | M113: 216346 | N113: 345108.44 | O113: 294044 | P113: 80136 | Q113: 198050.0527 | R113: 521913.26 | S113: 288320 | T113: 281960 | U113: 249208.8018 | V113: 455365.4 | W113: 252280 | X113: 498349.6471 | Y113: 189316 | Z113: 189316 | AA113: 232988 | AB113: 191761.42
A114: CO-EX-26-02 | B114: Experto Senior en Aplicaciones Empresariales - zona 1 | C114: Servicios profesionales | D114: NA | E114: NA | F114: Precio por hora | G114: Hora | H114: SI | I114: 362520 | J114: 163706.4 | K114: 321657 | L114: 413400 | M114: 282596 | N114: 362084.34 | O114: 441490 | P114: 96163.2 | Q114: 227757.5607 | R114: 521913.26 | S114: 324360 | T114: 324360 | U114: 318549.036 | V114: 630700 | W114: 273904 | X114: 622937.0588 | Y114: 256202 | Z114: 256202 | AA114: 232988 | AB114: 210936.82
A115: CO-EX-26-03 | B115: Experto Senior en Aplicaciones Empresariales - zona 2 | C115: Servicios profesionales | D115: NA | E115: NA | F115: Precio por hora | G115: Hora | H115: SI | I115: 386688 | J115: 174124.08 | K115: 351708 | L115: 477000 | M115: 295846 | N115: 379527.7 | O115: 490038 | P115: 113258.88 | Q115: 285192.076 | R115: 584496.72 | S115: 252280 | T115: 311746 | U115: 457229.5044 | V115: 630700 | W115: 306340 | X115: 934406.0337 | Y115: 317682 | Z115: 317682 | AA115: 232988 | AB115: 230113.28
A116: CO-EX-26-04 | B116: Experto Senior en Aplicaciones Empresariales - zona 3 | C116: Servicios profesionales | D116: NA | E116: NA | F116: Precio por hora | G116: Hora | H116: SI | I116: 398772 | J116: 181565.28 | K116: 381759 | L116: 487600 | M116: 348846 | N116: 397054.8 | O116: 490038 | P116: 122234.112 | Q116: 327970.8875 | R116: 730525.5 | S116: 180200 | T116: 299132 | U116: 907941.0268 | V116: 693770 | W116: 360400 | X116: 1868811.177 | Y116: 374816 | Z116: 374816 | AA116: 232988 | AB116: 249289.74
A117: CO-EX-27-01 | B117: Experto Junior en Redes - remoto | C117: Servicios profesionales | D117: NA | E117: NA | F117: Precio por hora | G117: Hora | H117: SI | I117: 88616 | J117: 124020 | K117: 130777.5 | L117: 190800 | M117: 149778 | N117: 122144.86 | O117: 161438 | P117: 28620 | Q117: 62202.38693 | R117: 445421.54 | S117: 162180 | T117: 101760 | U117: 164891.077 | V117: 379681.4 | W117: 165784 | X117: 280321.8991 | Y117: 138860 | Z117: 138860 | AA117: 137588 | AB117: 116854.4
A118: CO-EX-27-02 | B118: Experto Junior en Redes - zona 1 | C118: Servicios profesionales | D118: NA | E118: NA | F118: Precio por hora | G118: Hora | H118: SI | I118: 153064 | J118: 136422 | K118: 260998.5 | L118: 243800 | M118: 216028 | N118: 128272.72 | O118: 242422 | P118: 34344 | Q118: 91909.89488 | R118: 445421.54 | S118: 180200 | T118: 144160 | U118: 234231.3112 | V118: 567630 | W118: 187408 | X118: 311468.9748 | Y118: 181790 | Z118: 181790 | AA118: 137588 | AB118: 128539.84
A119: CO-EX-27-03 | B119: Experto Junior en Redes - zona 2 | C119: Servicios profesionales | D119: NA | E119: NA | F119: Precio por hora | G119: Hora | H119: SI | I119: 177232 | J119: 145103.4 | K119: 291049.5 | L119: 307400 | M119: 229278 | N119: 134285.04 | O119: 269028 | P119: 40449.6 | Q119: 149344.4102 | R119: 541035.66 | S119: 162180 | T119: 131546 | U119: 372911.7796 | V119: 567630 | W119: 216240 | X119: 498349.6471 | Y119: 247934 | Z119: 247934 | AA119: 137588 | AB119: 140225.28
A120: CO-EX-27-04 | B120: Experto Junior en Redes - zona 3 | C120: Servicios profesionales | D120: NA | E120: NA | F120: Precio por hora | G120: Hora | H120: SI | I120: 189316 | J120: 151304.4 | K120: 321100.5 | L120: 318000 | M120: 282278 | N120: 140325.98 | O120: 269028 | P120: 43655.04 | Q120: 192123.2215 | R120: 619265.78 | S120: 162180 | T120: 118932 | U120: 823623.302 | V120: 630700 | W120: 270300 | X120: 1245874.118 | Y120: 292772 | Z120: 292772 | AA120: 137588 | AB120: 151910.72
A121: CO-EX-28-01 | B121: Experto Senior en Redes - remoto | C121: Servicios profesionales | D121: NA | E121: NA | F121: Precio por hora | G121: Hora | H121: SI | I121: 153064 | J121: 148824 | K121: 209244 | L121: 296800 | M121: 216346 | N121: 156970.1 | O121: 265212 | P121: 40068 | Q121: 112668.4745 | R121: 521913.26 | S121: 288320 | T121: 191860 | U121: 249208.8018 | V121: 455365.4 | W121: 252280 | X121: 373762.2353 | Y121: 189316 | Z121: 189316 | AA121: 210728 | AB121: 191761.42
A122: CO-EX-28-02 | B122: Experto Senior en Redes - zona 1 | C122: Servicios profesionales | D122: NA | E122: NA | F122: Precio por hora | G122: Hora | H122: SI | I122: 217512 | J122: 163706.4 | K122: 339465 | L122: 349800 | M122: 282596 | N122: 164745.2 | O122: 398242 | P122: 48081.6 | Q122: 142375.9824 | R122: 521913.26 | S122: 324360 | T122: 234260 | U122: 318549.036 | V122: 630700 | W122: 273904 | X122: 436056.3866 | Y122: 256202 | Z122: 256202 | AA122: 210728 | AB122: 210936.82
A123: CO-EX-28-03 | B123: Experto Senior en Redes - zona 2 | C123: Servicios profesionales | D123: NA | E123: NA | F123: Precio por hora | G123: Hora | H123: SI | I123: 241680 | J123: 174124.08 | K123: 369516 | L123: 413400 | M123: 295846 | N123: 172421.72 | O123: 442020 | P123: 56629.44 | Q123: 199810.4977 | R123: 584496.72 | S123: 252280 | T123: 221646 | U123: 457229.5044 | V123: 630700 | W123: 306340 | X123: 622937.0588 | Y123: 317682 | Z123: 317682 | AA123: 210728 | AB123: 230113.28
A124: CO-EX-28-04 | B124: Experto Senior en Redes - zona 3 | C124: Servicios profesionales | D124: NA | E124: NA | F124: Precio por hora | G124: Hora | H124: SI | I124: 253764 | J124: 181565.28 | K124: 399567 | L124: 424000 | M124: 348846 | N124: 180451.22 | O124: 442020 | P124: 61117.056 | Q124: 242589.3091 | R124: 730525.5 | S124: 180200 | T124: 209032 | U124: 907941.0268 | V124: 693770 | W124: 360400 | X124: 1557342.202 | Y124: 374816 | Z124: 374816 | AA124: 210728 | AB124: 249289.74
A125: CO-EX-29-01 | B125: Experto Junior en Inteligencia Artificial - remoto | C125: Servicios profesionales | D125: NA | E125: NA | F125: Precio por hora | G125: Hora | H125: SI | I125: 241680 | J125: 117819 | K125: 143100 | L125: 275600 | M125: 251856 | N125: 345108.44 | O125: 207548 | P125: 45792 | Q125: 198050.0527 | R125: 103064.86 | S125: 162180 | T125: 191860 | U125: 164891.077 | V125: 379681.4 | W125: 180200 | X125: 311468.9748 | Y125: 138860 | Z125: 138860 | AA125: 137588 | AB125: 191761.42
A126: CO-EX-29-02 | B126: Experto Junior en Inteligencia Artificial - zona 1 | C126: Servicios profesionales | D126: NA | E126: NA | F126: Precio por hora | G126: Hora | H126: SI | I126: 306128 | J126: 129600.9 | K126: 228960 | L126: 328600 | M126: 365806 | N126: 362084.34 | O126: 311640 | P126: 54950.4 | Q126: 227757.5607 | R126: 148084.12 | S126: 180200 | T126: 234260 | U126: 234231.3112 | V126: 567630 | W126: 216240 | X126: 373762.2353 | Y126: 181790 | Z126: 181790 | AA126: 137588 | AB126: 210936.82
A127: CO-EX-29-03 | B127: Experto Junior en Inteligencia Artificial - zona 2 | C127: Servicios profesionales | D127: NA | E127: NA | F127: Precio por hora | G127: Hora | H127: SI | I127: 330296 | J127: 137848.23 | K127: 256435.2 | L127: 392200 | M127: 379056 | N127: 379527.7 | O127: 345878 | P127: 64719.36 | Q127: 314899.584 | R127: 148084.12 | S127: 162180 | T127: 221646 | U127: 372911.7796 | V127: 567630 | W127: 252280 | X127: 560643.7983 | Y127: 247934 | Z127: 247934 | AA127: 137588 | AB127: 230113.28
A128: CO-EX-29-04 | B128: Experto Junior en Inteligencia Artificial - zona 3 | C128: Servicios profesionales | D128: NA | E128: NA | F128: Precio por hora | G128: Hora | H128: SI | I128: 342380 | J128: 143739.18 | K128: 282078.72 | L128: 402800 | M128: 432056 | N128: 397054.8 | O128: 345878 | P128: 69848.064 | Q128: 444820.4186 | R128: 148084.12 | S128: 162180 | T128: 209032 | U128: 823623.302 | V128: 630700 | W128: 288320 | X128: 1370461.529 | Y128: 292772 | Z128: 292772 | AA128: 137588 | AB128: 249289.74
A129: CO-EX-30-01 | B129: Experto Senior en Inteligencia Artificial - remoto | C129: Servicios profesionales | D129: NA | E129: NA | F129: Precio por hora | G129: Hora | H129: SI | I129: 378632 | J129: 142623 | K129: 200340 | L129: 381600 | M129: 600458.3378 | N129: 414042.36 | O129: 345878 | P129: 80136 | Q129: 277270.0739 | R129: 521913.26 | S129: 252280 | T129: 281960 | U129: 249208.8018 | V129: 455365.4 | W129: 288320 | X129: 498349.6471 | Y129: 189316 | Z129: 189316 | AA129: 332416 | AB129: 221724.44
A130: CO-EX-30-02 | B130: Experto Senior en Inteligencia Artificial - zona 1 | C130: Servicios profesionales | D130: NA | E130: NA | F130: Precio por hora | G130: Hora | H130: SI | I130: 443080 | J130: 156885.3 | K130: 280476 | L130: 434600 | M130: 666708.3378 | N130: 434803.52 | O130: 519400 | P130: 96163.2 | Q130: 306977.5818 | R130: 521913.26 | S130: 324360 | T130: 324360 | U130: 318549.036 | V130: 630700 | W130: 306340 | X130: 622937.0588 | Y130: 256202 | Z130: 256202 | AA130: 332416 | AB130: 243896.46
A131: CO-EX-30-03 | B131: Experto Senior en Inteligencia Artificial - zona 2 | C131: Servicios profesionales | D131: NA | E131: NA | F131: Precio por hora | G131: Hora | H131: SI | I131: 467248 | J131: 166868.91 | K131: 364618.8 | L131: 498200 | M131: 761838.642 | N131: 455392.96 | O131: 576534 | P131: 113258.88 | Q131: 364412.0971 | R131: 584496.72 | S131: 216240 | T131: 311746 | U131: 457229.5044 | V131: 630700 | W131: 324360 | X131: 934406.0337 | Y131: 317682 | Z131: 317682 | AA131: 332416 | AB131: 266068.48
A132: CO-EX-30-04 | B132: Experto Senior en Inteligencia Artificial - zona 3 | C132: Servicios profesionales | D132: NA | E132: NA | F132: Precio por hora | G132: Hora | H132: SI | I132: 479332 | J132: 174000.06 | K132: 419311.62 | L132: 508800 | M132: 1005893.795 | N132: 476078.86 | O132: 576534 | P132: 122234.112 | Q132: 407190.9085 | R132: 730525.5 | S132: 180200 | T132: 299132 | U132: 907941.0268 | V132: 693770 | W132: 360400 | X132: 1868811.177 | Y132: 374816 | Z132: 374816 | AA132: 232988 | AB132: 288241.56
A133: CO-EX-31-01 | B133: Experto Junior en Internet de las Cosas - remoto | C133: Servicios profesionales | D133: NA | E133: NA | F133: Precio por hora | G133: Hora | H133: SI | I133: 88616 | J133: 186030 | K133: 143100 | L133: 254400 | M133: 299556 | N133: 156970.1 | O133: 184546 | P133: 45792 | Q133: 285192.076 | R133: 445421.54 | S133: 162180 | T133: 101760 | U133: 164891.077 | V133: 379681.4 | W133: 180200 | X133: 311468.9748 | Y133: 138860 | Z133: 138860 | AA133: 137588 | AB133: 191761.42
A134: CO-EX-31-02 | B134: Experto Junior en Internet de las Cosas - zona 1 | C134: Servicios profesionales | D134: NA | E134: NA | F134: Precio por hora | G134: Hora | H134: SI | I134: 153064 | J134: 204633 | K134: 228960 | L134: 307400 | M134: 365806 | N134: 164745.2 | O134: 277084 | P134: 54950.4 | Q134: 348568.0929 | R134: 445421.54 | S134: 180200 | T134: 144160 | U134: 234231.3112 | V134: 567630 | W134: 216240 | X134: 373762.2353 | Y134: 181790 | Z134: 181790 | AA134: 137588 | AB134: 210936.82
A135: CO-EX-31-03 | B135: Experto Junior en Internet de las Cosas - zona 2 | C135: Servicios profesionales | D135: NA | E135: NA | F135: Precio por hora | G135: Hora | H135: SI | I135: 177232 | J135: 217655.1 | K135: 256435.2 | L135: 371000 | M135: 379056 | N135: 172421.72 | O135: 307506 | P135: 64719.36 | Q135: 411944.1098 | R135: 541035.66 | S135: 162180 | T135: 131546 | U135: 372911.7796 | V135: 567630 | W135: 252280 | X135: 560643.7983 | Y135: 247934 | Z135: 247934 | AA135: 137588 | AB135: 230113.28
A136: CO-EX-31-04 | B136: Experto Junior en Internet de las Cosas - zona 3 | C136: Servicios profesionales | D136: NA | E136: NA | F136: Precio por hora | G136: Hora | H136: SI | I136: 189316 | J136: 226956.6 | K136: 282078.72 | L136: 381600 | M136: 432056 | N136: 180451.22 | O136: 307506 | P136: 69848.064 | Q136: 475320.1266 | R136: 619265.78 | S136: 162180 | T136: 118932 | U136: 823623.302 | V136: 630700 | W136: 288320 | X136: 1370461.529 | Y136: 292772 | Z136: 292772 | AA136: 137588 | AB136: 249289.74
A137: CO-EX-32-01 | B137: Experto Senior en Internet de las Cosas - remoto | C137: Servicios profesionales | D137: NA | E137: NA | F137: Precio por hora | G137: Hora | H137: SI | I137: 169176 | J137: 235638 | K137: 200340 | L137: 360400 | M137: 600458.3378 | N137: 156970.1 | O137: 318212 | P137: 80136 | Q137: 411944.1098 | R137: 521913.26 | S137: 252280 | T137: 281960 | U137: 249208.8018 | V137: 455365.4 | W137: 288320 | X137: 498349.6471 | Y137: 189316 | Z137: 189316 | AA137: 232988 | AB137: 221724.44
A138: CO-EX-32-02 | B138: Experto Senior en Internet de las Cosas - zona 1 | C138: Servicios profesionales | D138: NA | E138: NA | F138: Precio por hora | G138: Hora | H138: SI | I138: 233624 | J138: 259201.8 | K138: 280476 | L138: 413400 | M138: 666708.3378 | N138: 164745.2 | O138: 477848 | P138: 96163.2 | Q138: 475320.1266 | R138: 521913.26 | S138: 252280 | T138: 324360 | U138: 318549.036 | V138: 630700 | W138: 324360 | X138: 622937.0588 | Y138: 256202 | Z138: 256202 | AA138: 232988 | AB138: 243896.46
A139: CO-EX-32-03 | B139: Experto Senior en Internet de las Cosas - zona 2 | C139: Servicios profesionales | D139: NA | E139: NA | F139: Precio por hora | G139: Hora | H139: SI | I139: 257792 | J139: 275696.46 | K139: 364618.8 | L139: 477000 | M139: 761838.642 | N139: 172421.72 | O139: 530424 | P139: 113258.88 | Q139: 570384.152 | R139: 584496.72 | S139: 216240 | T139: 311746 | U139: 457229.5044 | V139: 630700 | W139: 360400 | X139: 934406.0337 | Y139: 317682 | Z139: 317682 | AA139: 232988 | AB139: 266068.48
A140: CO-EX-32-04 | B140: Experto Senior en Internet de las Cosas - zona 3 | C140: Servicios profesionales | D140: NA | E140: NA | F140: Precio por hora | G140: Hora | H140: SI | I140: 269876 | J140: 287478.36 | K140: 419311.62 | L140: 487600 | M140: 1005893.795 | N140: 180451.22 | O140: 530424 | P140: 122234.112 | Q140: 697136.1858 | R140: 730525.5 | S140: 180200 | T140: 299132 | U140: 907941.0268 | V140: 693770 | W140: 432480 | X140: 1868811.177 | Y140: 374816 | Z140: 374816 | AA140: 232988 | AB140: 288241.56
A141: CO-EX-33-01 | B141: Experto Junior en Gestión y Entrega de Contenido - remoto | C141: Servicios profesionales | D141: NA | E141: NA | F141: Precio por hora | G141: Hora | H141: SI | I141: 136952 | J141: 124020 | K141: 130777.5 | L141: 190800 | M141: 199704 | N141: 156970.1 | O141: 161438 | P141: 34344 | Q141: 138635.0369 | R141: 445421.54 | S141: 162180 | T141: 101760 | U141: 164891.077 | V141: 379681.4 | W141: 165784 | X141: 311468.9748 | Y141: 138860 | Z141: 138860 | AA141: 137588 | AB141: 191761.42
A142: CO-EX-33-02 | B142: Experto Junior en Gestión y Entrega de Contenido - zona 1 | C142: Servicios profesionales | D142: NA | E142: NA | F142: Precio por hora | G142: Hora | H142: SI | I142: 201400 | J142: 136422 | K142: 260998.5 | L142: 243800 | M142: 265954 | N142: 164745.2 | O142: 242422 | P142: 41212.8 | Q142: 168342.5449 | R142: 445421.54 | S142: 180200 | T142: 144160 | U142: 234231.3112 | V142: 567630 | W142: 187408 | X142: 373762.2353 | Y142: 181790 | Z142: 181790 | AA142: 137588 | AB142: 210936.82
A143: CO-EX-33-03 | B143: Experto Junior en Gestión y Entrega de Contenido - zona 2 | C143: Servicios profesionales | D143: NA | E143: NA | F143: Precio por hora | G143: Hora | H143: SI | I143: 225568 | J143: 145103.4 | K143: 291049.5 | L143: 307400 | M143: 279204 | N143: 172421.72 | O143: 269028 | P143: 48539.52 | Q143: 225777.0602 | R143: 541035.66 | S143: 162180 | T143: 131546 | U143: 372911.7796 | V143: 567630 | W143: 216240 | X143: 560643.7983 | Y143: 247934 | Z143: 247934 | AA143: 137588 | AB143: 230113.28
A144: CO-EX-33-04 | B144: Experto Junior en Gestión y Entrega de Contenido - zona 3 | C144: Servicios profesionales | D144: NA | E144: NA | F144: Precio por hora | G144: Hora | H144: SI | I144: 237652 | J144: 151304.4 | K144: 321100.5 | L144: 318000 | M144: 332204 | N144: 180451.22 | O144: 269028 | P144: 52386.048 | Q144: 268555.8715 | R144: 619265.78 | S144: 162180 | T144: 118932 | U144: 823623.302 | V144: 630700 | W144: 270300 | X144: 1370461.529 | Y144: 292772 | Z144: 292772 | AA144: 137588 | AB144: 249289.74
A145: CO-EX-34-01 | B145: Experto Senior en Gestión y Entrega de Contenido - remoto | C145: Servicios profesionales | D145: NA | E145: NA | F145: Precio por hora | G145: Hora | H145: SI | I145: 221540 | J145: 148824 | K145: 209244 | L145: 296800 | M145: 249630 | N145: 156970.1 | O145: 294044 | P145: 51516 | Q145: 178245.0475 | R145: 521913.26 | S145: 252280 | T145: 191860 | U145: 249208.8018 | V145: 455365.4 | W145: 252280 | X145: 498349.6471 | Y145: 189316 | Z145: 189316 | AA145: 232988 | AB145: 221724.44
A146: CO-EX-34-02 | B146: Experto Senior en Gestión y Entrega de Contenido - zona 1 | C146: Servicios profesionales | D146: NA | E146: NA | F146: Precio por hora | G146: Hora | H146: SI | I146: 285988 | J146: 163706.4 | K146: 339465 | L146: 349800 | M146: 315880 | N146: 164745.2 | O146: 441490 | P146: 61819.2 | Q146: 207952.5555 | R146: 521913.26 | S146: 324360 | T146: 234260 | U146: 318549.036 | V146: 630700 | W146: 273904 | X146: 622937.0588 | Y146: 256202 | Z146: 256202 | AA146: 232988 | AB146: 243896.46
A147: CO-EX-34-03 | B147: Experto Senior en Gestión y Entrega de Contenido - zona 2 | C147: Servicios profesionales | D147: NA | E147: NA | F147: Precio por hora | G147: Hora | H147: SI | I147: 310156 | J147: 174124.08 | K147: 369516 | L147: 413400 | M147: 329130 | N147: 172421.72 | O147: 490038 | P147: 72809.28 | Q147: 295094.5786 | R147: 584496.72 | S147: 216240 | T147: 221646 | U147: 457229.5044 | V147: 630700 | W147: 306340 | X147: 934406.0337 | Y147: 317682 | Z147: 317682 | AA147: 232988 | AB147: 266068.48
A148: CO-EX-34-04 | B148: Experto Senior en Gestión y Entrega de Contenido - zona 3 | C148: Servicios profesionales | D148: NA | E148: NA | F148: Precio por hora | G148: Hora | H148: SI | I148: 322240 | J148: 181565.28 | K148: 399577.6 | L148: 424000 | M148: 382130 | N148: 180451.22 | O148: 490038 | P148: 78579.072 | Q148: 425015.4132 | R148: 730525.5 | S148: 180200 | T148: 209032 | U148: 907941.0268 | V148: 693770 | W148: 360400 | X148: 1868811.177 | Y148: 374816 | Z148: 374816 | AA148: 232988 | AB148: 288241.56
A149: CO-EX-35-01 | B149: Experto Junior en Blockchain - remoto | C149: Servicios profesionales | D149: NA | E149: NA | F149: Precio por hora | G149: Hora | H149: SI | I149: 136952 | J149: 186030 | K149: 143100 | L149: 275600 | M149: 199704 | N149: 345108.44 | O149: 265212 | P149: 51516 | Q149: 198050.0527 | R149: 103064.86 | S149: 162180 | T149: 191860 | U149: 164891.077 | V149: 379681.4 | W149: 165784 | X149: 311468.9748 | Y149: 151474 | Z149: 151474 | AA149: 137588 | AB149: 191761.42
A150: CO-EX-35-02 | B150: Experto Junior en Blockchain - zona 1 | C150: Servicios profesionales | D150: NA | E150: NA | F150: Precio por hora | G150: Hora | H150: SI | I150: 201400 | J150: 204633 | K150: 228960 | L150: 328600 | M150: 265954 | N150: 362084.34 | O150: 398242 | P150: 61819.2 | Q150: 227757.5607 | R150: 148084.12 | S150: 180200 | T150: 234260 | U150: 234231.3112 | V150: 567630 | W150: 187408 | X150: 373762.2353 | Y150: 214544 | Z150: 214544 | AA150: 137588 | AB150: 210936.82
A151: CO-EX-35-03 | B151: Experto Junior en Blockchain - zona 2 | C151: Servicios profesionales | D151: NA | E151: NA | F151: Precio por hora | G151: Hora | H151: SI | I151: 225568 | J151: 217655.1 | K151: 256435.2 | L151: 392200 | M151: 279204 | N151: 379527.7 | O151: 442020 | P151: 72809.28 | Q151: 285192.076 | R151: 148084.12 | S151: 162180 | T151: 221646 | U151: 372911.7796 | V151: 567630 | W151: 216240 | X151: 560643.7983 | Y151: 269028 | Z151: 269028 | AA151: 137588 | AB151: 230113.28
A152: CO-EX-35-04 | B152: Experto Junior en Blockchain - zona 3 | C152: Servicios profesionales | D152: NA | E152: NA | F152: Precio por hora | G152: Hora | H152: SI | I152: 237652 | J152: 226956.6 | K152: 282078.72 | L152: 402800 | M152: 332204 | N152: 397054.8 | O152: 442020 | P152: 78579.072 | Q152: 327970.8875 | R152: 148084.12 | S152: 162180 | T152: 209032 | U152: 823623.302 | V152: 630700 | W152: 270300 | X152: 1370461.529 | Y152: 318000 | Z152: 318000 | AA152: 137588 | AB152: 249289.74
A153: CO-EX-36-01 | B153: Experto Senior en Blockchain - remoto | C153: Servicios profesionales | D153: NA | E153: NA | F153: Precio por hora | G153: Hora | H153: SI | I153: 237652 | J153: 235638 | K153: 200340 | L153: 381600 | M153: 600458.3378 | N153: 436647.92 | O153: 345878 | P153: 80136 | Q153: 277270.0739 | R153: 521913.26 | S153: 252280 | T153: 281960 | U153: 249208.8018 | V153: 455365.4 | W153: 252280 | X153: 498349.6471 | Y153: 189316 | Z153: 189316 | AA153: 232988 | AB153: 221724.44
A154: CO-EX-36-02 | B154: Experto Senior en Blockchain - zona 1 | C154: Servicios profesionales | D154: NA | E154: NA | F154: Precio por hora | G154: Hora | H154: SI | I154: 302100 | J154: 259201.8 | K154: 280476 | L154: 434600 | M154: 666708.3378 | N154: 459340.4 | O154: 519400 | P154: 96163.2 | Q154: 306977.5818 | R154: 521913.26 | S154: 252280 | T154: 324360 | U154: 318549.036 | V154: 630700 | W154: 273904 | X154: 622937.0588 | Y154: 256202 | Z154: 256202 | AA154: 232988 | AB154: 243896.46
A155: CO-EX-36-03 | B155: Experto Senior en Blockchain - zona 2 | C155: Servicios profesionales | D155: NA | E155: NA | F155: Precio por hora | G155: Hora | H155: SI | I155: 326268 | J155: 275696.46 | K155: 364618.8 | L155: 498200 | M155: 761838.642 | N155: 480597.64 | O155: 576534 | P155: 113258.88 | Q155: 364412.0971 | R155: 584496.72 | S155: 216240 | T155: 311746 | U155: 457229.5044 | V155: 630700 | W155: 306340 | X155: 934406.0337 | Y155: 317682 | Z155: 317682 | AA155: 232988 | AB155: 266068.48
A156: CO-EX-36-04 | B156: Experto Senior en Blockchain - zona 3 | C156: Servicios profesionales | D156: NA | E156: NA | F156: Precio por hora | G156: Hora | H156: SI | I156: 338352 | J156: 287478.36 | K156: 419311.62 | L156: 508800 | M156: 1005893.795 | N156: 502566.14 | O156: 576534 | P156: 122234.112 | Q156: 407190.9085 | R156: 730525.5 | S156: 180200 | T156: 299132 | U156: 907941.0268 | V156: 693770 | W156: 360400 | X156: 1868811.177 | Y156: 374816 | Z156: 374816 | AA156: 232988 | AB156: 288241.56
A157: CO-MI-01 | B157: Servicio de Preparación para la migración | C157: Servicios de migración | D157: NA | E157: NA | F157: Precio por hora | G157: Hora | H157: SI | I157: 99844 | J157: 117000 | K157: 499800 | L157: 180000 | M157: 463150 | N157: 148085 | O157: 392000 | P157: 108000 | Q157: 224207.6069 | R157: 414102 | S157: 170000 | T157: 221000 | U157: 139203.7909 | V157: 429590 | W157: 136000 | X157: 470141.1765 | Y157: 178600 | Z157: 178600 | AA157: 109800 | AB157: 209174
A158: CO-MI-02 | B158: Servicio de migración | C158: Servicios de migración | D158: NA | E158: NA | F158: Precio por hora | G158: Hora | H158: SI | I158: 113457 | J158: 117000 | K158: 499800 | L158: 280000 | M158: 235500 | N158: 148085 | O158: 392000 | P158: 129600 | Q158: 298943.4759 | R158: 329957 | S158: 153000 | T158: 386000 | U158: 218748.8143 | V158: 429590 | W158: 204000 | X158: 528909.2437 | Y158: 178600 | Z158: 178600 | AA158: 99800 | AB158: 209174
A159: CO-SL-01-01 | B159: Almacenamiento para backup | C159: Solución | D159: Almacenamiento de 500 Gb | E159: NA | F159: Precio por almacenamiento/día | G159: Dia | H159: SI | I159: 768056 | J159: 43332 | K159: 597383 | L159: 1767 | M159: 598327 | N159: 7224 | O159: 2050 | P159: 13570 | Q159: 102707.8356 | R159: 326652 | S159: 3588.8889 | T159: 1037739 | U159: 37908.17521 | V159: 39018000 | W159: 765986 | X159: 58768.0672 | Y159: 6280 | Z159: 2890 | AA159: 6533.333333 | AB159: 2676
A160: CO-SL-01-02 | B160: Almacenamiento para backup | C160: Solución | D160: Almacenamiento de 500 Gb | E160: NA | F160: Precio por almacenamiento/mes | G160: Mes | H160: SI | I160: 3426802 | J160: 1126620 | K160: 2403604 | L160: 53010 | M160: 598327 | N160: 212414 | O160: 61600 | P160: 407098 | Q160: 3124030 | R160: 5145102 | S160: 107666.6667 | T160: 5084240 | U160: 758163.5043 | V160: 39018000 | W160: 3172234 | X160: 1704261.344 | Y160: 188390 | Z160: 86460 | AA160: 196000 | AB160: 81377
A161: CO-SL-01-03 | B161: Almacenamiento para backup | C161: Solución | D161: Almacenamiento de 1 TB | E161: NA | F161: Precio por almacenamiento/día | G161: Dia | H161: SI | I161: 1573010 | J161: 79428 | K161: 1221315 | L161: 3534 | M161: 598327 | N161: 14437 | O161: 3990 | P161: 15270 | Q161: 211222.0274 | R161: 513202 | S161: 4776.6222 | T161: 2051374 | U161: 75816.35043 | V161: 39091500 | W161: 1569100 | X161: 88152.1008 | Y161: 11930 | Z161: 5480 | AA161: 13533.33333 | AB161: 6661
A162: CO-SL-01-04 | B162: Almacenamiento para backup | C162: Solución | D162: Almacenamiento de 1 TB | E162: NA | F162: Precio por almacenamiento/mes | G162: Mes | H162: SI | I162: 7018106 | J162: 2065140 | K162: 4817753 | L162: 106020 | M162: 598327 | N162: 429170 | O162: 120300 | P162: 458106 | Q162: 6424670 | R162: 10150102 | S162: 143298.6667 | T162: 8193920 | U162: 1516327.009 | V162: 39091500 | W162: 6172598 | X162: 2556392.437 | Y162: 357720 | Z162: 164270 | AA162: 406000 | AB162: 202577
A163: CO-SL-01-05 | B163: Almacenamiento para backup | C163: Solución | D163: Almacenamiento de 2 TB | E163: NA | F163: Precio por almacenamiento/día | G163: Dia | H163: SI | I163: 3146020 | J163: 151622 | K163: 2442631 | L163: 7066.5 | M163: 1196654 | N163: 28560 | O163: 7810 | P163: 18595 | Q163: 422444.0548 | R163: 781652 | S163: 7097.6889 | T163: 4032387 | U163: 151632.7009 | V163: 77742000 | W163: 3138472 | X163: 117535.2941 | Y163: 23460 | Z163: 10570 | AA163: 27416.66667 | AB163: 12080
A164: CO-SL-01-06 | B164: Almacenamiento para backup | C164: Solución | D164: Almacenamiento de 2 TB | E164: NA | F164: Precio por almacenamiento/mes | G164: Mes | H164: SI | I164: 14036212 | J164: 3942180 | K164: 9537506 | L164: 211995 | M164: 1196654 | N164: 853767 | O164: 234990 | P164: 557842 | Q164: 12849340 | R164: 17430102 | S164: 212930.6667 | T164: 14226800 | U164: 3032654.017 | V164: 77742000 | W164: 12171388 | X164: 3408522.689 | Y164: 703790 | Z164: 317040 | AA164: 822500 | AB164: 367377
A165: CO-SL-01-07 | B165: Almacenamiento para backup | C165: Solución | D165: Almacenamiento de 5 TB | E165: NA | F165: Precio por almacenamiento/día | G165: Dia | H165: SI | I165: 7865050 | J165: 368204 | K165: 6106576 | L165: 17664 | M165: 2991635 | N165: 70923 | O165: 19280 | P165: 28566 | Q165: 1044897.863 | R165: 1741702 | S165: 14060.8889 | T165: 8362626 | U165: 205845.6434 | V165: 193686500 | W165: 7585536 | X165: 146919.3277 | Y165: 57960 | Z165: 25740 | AA165: 68016.66667 | AB165: 28340
A166: CO-SL-01-08 | B166: Almacenamiento para backup | C166: Solución | D166: Almacenamiento de 5 TB | E166: NA | F166: Precio por almacenamiento/mes | G166: Mes | H166: SI | I166: 35090530 | J166: 9573300 | K166: 23696766 | L166: 529920 | M166: 2991635 | N166: 2124436 | O166: 579070 | P166: 856973 | Q166: 31782310 | R166: 43365102 | S166: 421826.6667 | T166: 32325440 | U166: 4116912.868 | V166: 193686500 | W166: 27556558 | X166: 4260653.781 | Y166: 1738740 | Z166: 772050 | AA166: 2040500 | AB166: 861822
A167: CO-SL-02-01 | B167: Portal WordPress | C167: Solución | D167: Plataforma Tipo 1 | E167: NA | F167: Precio por Portal/día | G167: Dia | H167: SI | I167: 107768 | J167: 115906 | K167: 10290 | L167: 9757.5 | M167: 1605168 | N167: 12323 | O167: 26440 | P167: 67957.8127 | Q167: 65508.6833 | R167: 13203326 | S167: 76206.75 | T167: 81236 | U167: 21750.59234 | V167: 2100000 | W167: 401453.8667 | X167: 352605.8824 | Y167: 152630 | Z167: 171130 | AA167: 63000 | AB167: 8865
A168: CO-SL-02-02 | B168: Portal WordPress | C168: Solución | D168: Plataforma Tipo 1 | E168: NA | F168: Precio por Portal/mes | G168: Mes | H168: SI | I168: 3233572 | J168: 3013560 | K168: 308700 | L168: 292725 | M168: 1605168 | N168: 365396 | O168: 794020 | P168: 2038734.382 | Q168: 1965260.5 | R168: 13687971 | S168: 2286202.5 | T168: 2470930 | U168: 435011.8467 | V168: 2100000 | W168: 2183616 | X168: 10225568.07 | Y168: 4578850 | Z168: 5133670 | AA168: 1890000 | AB168: 269600
A169: CO-SL-02-03 | B169: Portal WordPress | C169: Solución | D169: Plataforma Tipo 2 | E169: NA | F169: Precio por Portal/día | G169: Dia | H169: SI | I169: 131100 | J169: 132203 | K169: 20580 | L169: 19515 | M169: 2097520 | N169: 42461 | O169: 52770 | P169: 78221.2342 | Q169: 84443.6833 | R169: 13199826 | S169: 87138.8833 | T169: 87283 | U169: 30908.73648 | V169: 2100000 | W169: 410285.9333 | X169: 646444.5378 | Y169: 169120 | Z169: 197820 | AA169: 66500 | AB169: 23064
A170: CO-SL-02-04 | B170: Portal WordPress | C170: Solución | D170: Plataforma Tipo 2 | E170: NA | F170: Precio por Portal/mes | G170: Mes | H170: SI | I170: 3933304 | J170: 3437280 | K170: 617400 | L170: 585450 | M170: 2097520 | N170: 1270205 | O170: 1584100 | P170: 2346637.025 | Q170: 2533310.5 | R170: 13972326 | S170: 2614166.5 | T170: 2654855 | U170: 618174.7295 | V170: 2100000 | W170: 2448578 | X170: 18746873.95 | Y170: 5073400 | Z170: 5934330 | AA170: 1995000 | AB170: 701377
A171: CO-SL-03-01 | B171: Máquina virtual de uso general - Básica | C171: Solución | D171: Sistema operativo Windows | E171: NA | F171: Precio por Máquina/mes | G171: Mes | H171: SI | I171: 1010306 | J171: 1754280 | K171: 1559136 | L171: 858870 | M171: 663168 | N171: 781689 | O171: 1659170 | P171: 1051846.128 | Q171: 1138455.5 | R171: 1231234 | S171: 1035560.1 | T171: 1185800 | U171: 657423.9187 | V171: 464870 | W171: 713320 | X171: 464215.1261 | Y171: 1008450 | Z171: 1599750 | AA171: 682500 | AB171: 753866
A172: CO-SL-03-02 | B172: Máquina virtual de uso general - Básica | C172: Solución | D172: Sistema operativo Linux | E172: NA | F172: Precio por Máquina/mes | G172: Mes | H172: SI | I172: 1122330 | J172: 1496880 | K172: 1166773 | L172: 965610 | M172: 587808 | N172: 534115 | O172: 1187470 | P172: 718130.3616 | Q172: 903395.5 | R172: 1348379 | S172: 777432.1 | T172: 981400 | U172: 520051.7566 | V172: 409500 | W172: 643620 | X172: 311123.5294 | Y172: 748350 | Z172: 1336350 | AA172: 612500 | AB172: 731822
A173: CO-SL-03-03 | B173: Máquina virtual de uso general - Básica | C173: Solución | D173: Sistema operativo Windows | E173: NA | F173: Precio por Máquina/día | G173: Dia | H173: SI | I173: 33668 | J173: 67472 | K173: 51971 | L173: 28629 | M173: 663168 | N173: 26182 | O173: 55300 | P173: 35061.5376 | Q173: 37428.674 | R173: 860234 | S173: 34518.67 | T173: 38985 | U173: 32871.19594 | V173: 464870 | W173: 23777.3333 | X173: 14974.7899 | Y173: 33620 | Z173: 90660 | AA173: 22750 | AB173: 24790
A174: CO-SL-03-04 | B174: Máquina virtual de uso general - Básica | C174: Solución | D174: Sistema operativo Linux | E174: NA | F174: Precio por Máquina/día | G174: Dia | H174: SI | I174: 37544 | J174: 57572 | K174: 38892 | L174: 32187 | M174: 587808 | N174: 17942 | O174: 39580 | P174: 23937.6787 | Q174: 29700.674 | R174: 863764 | S174: 25914.4033 | T174: 32265 | U174: 26002.58783 | V174: 409500 | W174: 21454 | X174: 10036.9748 | Y174: 24950 | Z174: 80190 | AA174: 20416.66667 | AB174: 24065
A175: CO-SL-04-01 | B175: Máquina virtual de uso general - Moderada | C175: Solución | D175: Sistema operativo Windows | E175: NA | F175: Precio por Máquina/mes | G175: Mes | H175: SI | I175: 3315804 | J175: 4839120 | K175: 5022221 | L175: 2987460 | M175: 1155520 | N175: 1524725 | O175: 2341940 | P175: 2968509.168 | Q175: 1605310 | R175: 1406234 | S175: 3137453.7 | T175: 3233510 | U175: 982904.3615 | V175: 807415 | W175: 2312646 | X175: 849415.1261 | Y175: 3064140 | Z175: 2151840 | AA175: 2572500 | AB175: 2422977
A176: CO-SL-04-02 | B176: Máquina virtual de uso general - Moderada | C176: Solución | D176: Sistema operativo Linux | E176: NA | F176: Precio por Máquina/mes | G176: Mes | H176: SI | I176: 3484030 | J176: 4328280 | K176: 4149242 | L176: 2942685 | M176: 1004800 | N176: 1031554 | O176: 1618670 | P176: 2449464.451 | Q176: 1622565 | R176: 1633734 | S176: 2603067.2 | T176: 2824710 | U176: 799741.4787 | V176: 701155 | W176: 2210578 | X176: 548168.9076 | Y176: 2559910 | Z176: 1630860 | AA176: 2380000 | AB176: 2378844
A177: CO-SL-04-03 | B177: Máquina virtual de uso general - Moderada | C177: Solución | D177: Sistema operativo Windows | E177: NA | F177: Precio por Máquina/día | G177: Dia | H177: SI | I177: 110542 | J177: 186120 | K177: 167407 | L177: 99582 | M177: 1155520 | N177: 51020 | O177: 78080 | P177: 99079.1136 | Q177: 52777.3151 | R177: 860234 | S177: 104581.79 | T177: 106307 | U177: 49145.21808 | V177: 807415 | W177: 77088.2 | X177: 27400.8403 | Y177: 102140 | Z177: 121940 | AA177: 85750 | AB177: 79677
A178: CO-SL-04-04 | B178: Máquina virtual de uso general - Moderada | C178: Solución | D178: Sistema operativo Linux | E178: NA | F178: Precio por Máquina/día | G178: Dia | H178: SI | I178: 116128 | J178: 166472 | K178: 138308 | L178: 98089.5 | M178: 1004800 | N178: 34476 | O178: 54010 | P178: 81648.815 | Q178: 53344.6027 | R178: 860234 | S178: 86768.9067 | T178: 92867 | U178: 39987.07393 | V178: 701155 | W178: 73685.9333 | X178: 17683.1933 | Y178: 85340 | Z178: 92420 | AA178: 79333.33333 | AB178: 78225
A179: CO-SO-01-01 | B179: Soporte Complementario | C179: Servicios profesionales | D179: NA | E179: NA | F179: Precio por Hora | G179: Hora | H179: SI | I179: 120264.42 | J179: 325552.5 | K179: 417375 | L179: 159000 | M179: 490939 | N179: 156970.1 | O179: 395804 | P179: 57240 | Q179: 132861.6579 | R179: 458949.26 | S179: 126140 | T179: 144160 | U179: 147556.0184 | V179: 455365.4 | W179: 108120 | X179: 539643.3277 | Y179: 189316 | Z179: 189316 | AA179: 335808 | AB179: 305280
A180: CO-SO-01-02 | B180: Soporte Complementario | C180: Servicios profesionales | D180: NA | E180: NA | F180: Precio por Mes | G180: Mes | H180: SI | I180: 6042000 | J180: 6511050 | K180: 18550000 | L180: 8480000 | M180: 34615360 | N180: 1569078.78 | O180: 26118400 | P180: 15660864 | Q180: 21257865.26 | R180: 89008306 | S180: 23065600 | T180: 3922000 | U180: 29511203.68 | V180: 88272772 | W180: 5406000 | X180: 104658004.4 | Y180: 18928632 | Z180: 18928632 | AA180: 10483400 | AB180: 41518080
A181: CO-SO-02-01 | B181: Soporte Premium | C181: Servicios profesionales | D181: NA | E181: NA | F181: Precio por Hora | G181: Hora | H181: SI | I181: 160230.66 | J181: 651105 | K181: 556500 | L181: 265000 | M181: 600458.3378 | N181: 156970.1 | O181: 544204 | P181: 68688 | Q181: 180621.6482 | R181: 458949.26 | S181: 180200 | T181: 234260 | U181: 231873.7432 | V181: 455365.4 | W181: 360400 | X181: 539643.3277 | Y181: 189316 | Z181: 189316 | AA181: 508800 | AB181: 351072
A182: CO-SO-02-02 | B182: Soporte Premium | C182: Servicios profesionales | D182: NA | E182: NA | F182: Precio por Mes | G182: Mes | H182: SI | I182: 12084000 | J182: 13022100 | K182: 26712000 | L182: 22260000 | M182: 39940800 | N182: 1569078.78 | O182: 35912800 | P182: 18793036.8 | Q182: 28899463.7 | R182: 89008306 | S182: 34598400 | T182: 6685023.56 | U182: 46374748.64 | V182: 88272772 | W182: 9010000 | X182: 104658004.4 | Y182: 18928632 | Z182: 18928632 | AA182: 20614880 | AB182: 47745792
A183: CO-NP-01 | B183: Servicios en la Nube | C183: NA | D183: NA | E183: NA | F183: Unidad | G183: Und | H183: No | I183: =SolCotizacion!$M$21 -> 284525661.3 | J183: =SolCotizacion!$M$22 -> 0 | K183: =SolCotizacion!$M$21 -> 284525661.3 | L183: =SolCotizacion!$M$21 -> 284525661.3 | M183: =SolCotizacion!$M$25 -> 0 | N183: =SolCotizacion!$M$24 -> 0 | O183: =SolCotizacion!$M$24 -> 0 | P183: =SolCotizacion!$M$24 -> 0 | Q183: =SolCotizacion!$M$24 -> 0 | R183: =SolCotizacion!$M$25 -> 0 | S183: =SolCotizacion!$M$22 -> 0 | T183: =SolCotizacion!$M$22 -> 0 | U183: =SolCotizacion!$M$21 -> 284525661.3 | V183: =SolCotizacion!$M$25 -> 0 | W183: =SolCotizacion!$M$21 -> 284525661.3 | X183: =SolCotizacion!$M$25 -> 0 | Y183: =SolCotizacion!$M$21 -> 284525661.3 | Z183: =SolCotizacion!$M$24 -> 0 | AA183: =SolCotizacion!$M$21 -> 284525661.3 | AB183: =SolCotizacion!$M$24 -> 0

Sheet temp (hidden)
A1: Código del servicio | B1: Nombre del servicio | C1: Tipo de servicio | D1: Característica 1 | E1: Característica 2 | F1: Unidad | G1: Unidad TVEC | H1: IVA | I1: Avanxo - Segm 1. Amazon | J1: Soluciones Orion - Segm 2. Google | K1: UT Goldsvada - Segm 1. Amazon | L1: Hightech - Segm 1. Amazon | M1: UT Tecnologia Oracle Eficiente - Segm 5. Oracle | N1: Colombia telecomunicaciones SA - Segm 4. Microsoft | O1: Colsof - Segm 4. Microsoft | P1: Mercanet SAS - Segm 4. Microsoft | Q1: Comcel - Segm 4. Microsoft | R1: SETI - Segm 5. Oracle | S1: Eforcers - Segm 2. Google | T1: informacion localizada - Segm 2. Google | U1: S3 SAS - Segm 1. Amazon | V1: UT DPN 2019 - Segm 5. Oracle | W1: UT Gestion integral cloud - Segm 1. Amazon | X1: UT TAKWC - Segm 5. Oracle | Y1: UT Nubepublica2019 - Segm 1. Amazon | Z1: UT Nubepublica2019 - Segm 4. Microsoft | AA1: Clouxter - Segm 1. Amazon | AB1: Controles empresariales - Segm 4. Microsoft | AE1: capacidad | AF1: cant en tiempo | AG1: ="V"&I1 -> VAvanxo - Segm 1. Amazon | AH1: ="V"&J1 -> VSoluciones Orion - Segm 2. Google | AI1: VUT Goldsvada - Segm 1. Amazon | AJ1: VHightech - Segm 1. Amazon | AK1: VUT Tecnologia Oracle Eficiente - Segm 5. Oracle | AL1: VColombia telecomunicaciones SA - Segm 4. Microsoft | AM1: VColsof - Segm 4. Microsoft | AN1: VMercanet SAS - Segm 4. Microsoft | AO1: VComcel - Segm 4. Microsoft | AP1: VSETI - Segm 5. Oracle | AQ1: VEforcers - Segm 2. Google | AR1: Vinformacion localizada - Segm 2. Google | AS1: VS3 SAS - Segm 1. Amazon | AT1: VUT DPN 2019 - Segm 5. Oracle | AU1: VUT Gestion integral cloud - Segm 1. Amazon | AV1: VUT TAKWC - Segm 5. Oracle | AW1: VUT Nubepublica2019 - Segm 1. Amazon | AX1: VUT Nubepublica2019 - Segm 4. Microsoft | AY1: VClouxter - Segm 1. Amazon | AZ1: VControles empresariales - Segm 4. Microsoft | BA1: vmin | BB1: v+grava | BC1: xcapacidad | BD1: total
A2: CO-GE-01 | B2: Tasa de intermediación para servicios autogestionados | C2: Servicio de Computación en la Nube | D2: NA | E2: NA | F2: Tasa | G2: Und | H2: SI | I2: 0.12 | J2: 0.12 | K2: 0.15 | L2: 0.06 | M2: 0.098 | N2: 0.08 | O2: 0 | P2: 0.039 | Q2: 0.0005 | R2: 0.12 | S2: 0.01 | T2: 0 | U2: 0.001 | V2: 0.22 | W2: 0.1 | X2: 0.06 | Y2: 0.1 | Z2: 0.1 | AA2: 0.01 | AB2: 0.19 | AE2: =SUMIF(ResumenCotizacion!$C:$C,temp!A2,ResumenCotizacion!$J:$J) -> 1 | AF2: =SUMIF(ResumenCotizacion!$C:$C,temp!A2,ResumenCotizacion!$L:$L) -> 1 | AG2: =$AE2*$AF2*I2 -> 0.12 | AH2: =$AE2*$AF2*J2 -> 0.12 | AI2: 0.15 | AJ2: 0.06 | AK2: 0.098 | AL2: 0.08 | AM2: 0 | AN2: 0.039 | AO2: 0.0005 | AP2: 0.12 | AQ2: 0.01 | AR2: 0 | AS2: 0.001 | AT2: 0.22 | AU2: 0.1 | AV2: 0.06 | AW2: 0.1 | AX2: 0.1 | AY2: 0.01 | AZ2: 0.19 | BA2: 0.12 | BB2: =BA2/(1-VLOOKUP("Total porcentaje:",ResumenCotizacion!$F:$G,2,0)) -> 0.1244813278 | BC2: =ROUND(AE2*BB2,2) -> 0.12 | BD2: =ROUND(AF2*BC2,2) -> 0.12
A3: CO-MI-01 | B3: Servicio de Preparación para la migración | C3: Servicios de migración | D3: NA | E3: NA | F3: Precio por hora | G3: Hora | H3: SI | I3: 99844 | J3: 117000 | K3: 499800 | L3: 180000 | M3: 463150 | N3: 148085 | O3: 392000 | P3: 108000 | Q3: 224207.6069 | R3: 414102 | S3: 170000 | T3: 221000 | U3: 139203.7909 | V3: 429590 | W3: 136000 | X3: 470141.1765 | Y3: 178600 | Z3: 178600 | AA3: 109800 | AB3: 209174 | AE3: =SUMIF(ResumenCotizacion!$C:$C,temp!A3,ResumenCotizacion!$J:$J) -> 1 | AF3: =SUMIF(ResumenCotizacion!$C:$C,temp!A3,ResumenCotizacion!$L:$L) -> 2 | AG3: =$AE3*$AF3*I3 -> 199688 | AH3: =$AE3*$AF3*J3 -> 234000 | AI3: =$AE3*$AF3*K3 -> 999600 | AJ3: =$AE3*$AF3*L3 -> 360000 | AK3: =$AE3*$AF3*M3 -> 926300 | AL3: =$AE3*$AF3*N3 -> 296170 | AM3: =$AE3*$AF3*O3 -> 784000 | AN3: =$AE3*$AF3*P3 -> 216000 | AO3: =$AE3*$AF3*Q3 -> 448415.2138 | AP3: =$AE3*$AF3*R3 -> 828204 | AQ3: =$AE3*$AF3*S3 -> 340000 | AR3: =$AE3*$AF3*T3 -> 442000 | AS3: =$AE3*$AF3*U3 -> 278407.5819 | AT3: =$AE3*$AF3*V3 -> 859180 | AU3: =$AE3*$AF3*W3 -> 272000 | AV3: =$AE3*$AF3*X3 -> 940282.353 | AW3: =$AE3*$AF3*Y3 -> 357200 | AX3: =$AE3*$AF3*Z3 -> 357200 | AY3: =$AE3*$AF3*AA3 -> 219600 | AZ3: =$AE3*$AF3*AB3 -> 418348 | BA3: 99844 | BB3: =BA3/(1-VLOOKUP("Total porcentaje:",ResumenCotizacion!$F:$G,2,0)) -> 103572.6141 | BC3: =ROUND(AE3*BB3,2) -> 103572.61 | BD3: 207145.22
A4: CO-NP-01 | B4: Servicios en la Nube | C4: NA | D4: NA | E4: NA | F4: Unidad | G4: Und | H4: No | I4: 284525661.3 | J4: 0 | K4: 284525661.3 | L4: 284525661.3 | M4: 0 | N4: 0 | O4: 0 | P4: 0 | Q4: 0 | R4: 0 | S4: 0 | T4: 0 | U4: 284525661.3 | V4: 0 | W4: 284525661.3 | X4: 0 | Y4: 284525661.3 | Z4: 0 | AA4: 284525661.3 | AB4: 0 | AE4: =SUMIF(ResumenCotizacion!$C:$C,temp!A4,ResumenCotizacion!$J:$J) -> 1 | AF4: =SUMIF(ResumenCotizacion!$C:$C,temp!A4,ResumenCotizacion!$L:$L) -> 1 | AG4: 284525661.3 | AH4: 0 | AI4: 284525661.3 | AJ4: 284525661.3 | AK4: 0 | AL4: 0 | AM4: 0 | AN4: 0 | AO4: 0 | AP4: 0 | AQ4: 0 | AR4: 0 | AS4: 284525661.3 | AT4: 0 | AU4: 284525661.3 | AV4: 0 | AW4: 284525661.3 | AX4: 0 | AY4: 284525661.3 | AZ4: 0 | BA4: 284525661.3 | BB4: =BA4/(1-VLOOKUP("Total porcentaje:",ResumenCotizacion!$F:$G,2,0)) -> 295151100.9 | BC4: =ROUND(AE4*BB4,2) -> 295151100.9 | BD4: 295151100.9
AG5: =IF(AND(AG$3:AG4>0),SUM(AG$3:AG4),0) -> 284725349.3 | AH5: =IF(AND(AH$3:AH4>0),SUM(AH$3:AH4),0) -> 0 | AI5: =IF(AND(AI$3:AI4>0),SUM(AI$3:AI4),0) -> 285525261.3 | AJ5: =IF(AND(AJ$3:AJ4>0),SUM(AJ$3:AJ4),0) -> 284885661.3 | AK5: =IF(AND(AK$3:AK4>0),SUM(AK$3:AK4),0) -> 0 | AL5: =IF(AND(AL$3:AL4>0),SUM(AL$3:AL4),0) -> 0 | AM5: =IF(AND(AM$3:AM4>0),SUM(AM$3:AM4),0) -> 0 | AN5: =IF(AND(AN$3:AN4>0),SUM(AN$3:AN4),0) -> 0 | AO5: =IF(AND(AO$3:AO4>0),SUM(AO$3:AO4),0) -> 0 | AP5: =IF(AND(AP$3:AP4>0),SUM(AP$3:AP4),0) -> 0 | AQ5: =IF(AND(AQ$3:AQ4>0),SUM(AQ$3:AQ4),0) -> 0 | AR5: =IF(AND(AR$3:AR4>0),SUM(AR$3:AR4),0) -> 0 | AS5: =IF(AND(AS$3:AS4>0),SUM(AS$3:AS4),0) -> 284804068.9 | AT5: =IF(AND(AT$3:AT4>0),SUM(AT$3:AT4),0) -> 0 | AU5: =IF(AND(AU$3:AU4>0),SUM(AU$3:AU4),0) -> 284797661.3 | AV5: =IF(AND(AV$3:AV4>0),SUM(AV$3:AV4),0) -> 0 | AW5: =IF(AND(AW$3:AW4>0),SUM(AW$3:AW4),0) -> 284882861.3 | AX5: =IF(AND(AX$3:AX4>0),SUM(AX$3:AX4),0) -> 0 | AY5: =IF(AND(AY$3:AY4>0),SUM(AY$3:AY4),0) -> 284745261.3 | AZ5: =IF(AND(AZ$3:AZ4>0),SUM(AZ$3:AZ4),0) -> 0 | BD5: =SUM(BD$2:BD4) -> 295358246.3
AG6: =MIN(IF($AG5:$AV5<>0,$AG5:$AV5)) -> 284725349.3 | AH6: =MIN(IF($AG5:$AV5<>0,$AG5:$AV5)) -> 284725349.3 | AI6: =MIN(IF($AG5:$AV5<>0,$AG5:$AV5)) -> 284725349.3 | AJ6: =MIN(IF($AG5:$AV5<>0,$AG5:$AV5)) -> 284725349.3 | AK6: =MIN(IF($AG5:$AV5<>0,$AG5:$AV5)) -> 284725349.3 | AL6: =MIN(IF($AG5:$AV5<>0,$AG5:$AV5)) -> 284725349.3 | AM6: =MIN(IF($AG5:$AV5<>0,$AG5:$AV5)) -> 284725349.3 | AN6: =MIN(IF($AG5:$AV5<>0,$AG5:$AV5)) -> 284725349.3 | AO6: =MIN(IF($AG5:$AV5<>0,$AG5:$AV5)) -> 284725349.3 | AP6: =MIN(IF($AG5:$AV5<>0,$AG5:$AV5)) -> 284725349.3 | AQ6: =MIN(IF($AG5:$AV5<>0,$AG5:$AV5)) -> 284725349.3 | AR6: =MIN(IF($AG5:$AV5<>0,$AG5:$AV5)) -> 284725349.3 | AS6: =MIN(IF($AG5:$AV5<>0,$AG5:$AV5)) -> 284725349.3 | AT6: =MIN(IF($AG5:$AV5<>0,$AG5:$AV5)) -> 284725349.3 | AU6: =MIN(IF($AG5:$AV5<>0,$AG5:$AV5)) -> 284725349.3 | AV6: =MIN(IF($AG5:$AV5<>0,$AG5:$AV5)) -> 284725349.3 | AW6: =MIN(IF($AG5:$AV5<>0,$AG5:$AV5)) -> 284725349.3 | AX6: =MIN(IF($AG5:$AV5<>0,$AG5:$AV5)) -> 284725349.3 | AY6: =MIN(IF($AG5:$AV5<>0,$AG5:$AV5)) -> 284725349.3 | AZ6: =MIN(IF($AG5:$AV5<>0,$AG5:$AV5)) -> 284725349.3 | BD6: =BD5*19% -> 56118066.79
AG7: =AG5=AG6 -> TRUE | AH7: =AH5=AH6 -> FALSE | AI7: FALSE | AJ7: FALSE | AK7: FALSE | AL7: FALSE | AM7: FALSE | AN7: FALSE | AO7: FALSE | AP7: FALSE | AQ7: FALSE | AR7: FALSE | AS7: FALSE | AT7: FALSE | AU7: FALSE | AV7: FALSE | AW7: FALSE | AX7: FALSE | AY7: FALSE | AZ7: FALSE | BD7: =SUM(BD5:BD6) -> 351476313.1

Sheet Servicios (hidden)
A1: concatenar | B1: Código (Colombia Compra Eficiente) | C1: Categoría | D1: Subcategoría | E1: Nombre del servicio | F1: Modalidad de entrega del servicio | G1: Nombre software / manejador | H1: Unidad de facturación | I1: UnidadTVEC | J1: Exento de IVA | K1: Moneda | L1: Columna Disponible 1 | M1: Columna Disponible 2 | N1: Itera | O1: Colsof | P1: Soluciones Orion | Q1: UT Eforcers Xertica | R1: Información localizada | S1: COEM | T1: Colombia Telecomunicaciones | U1: IFX | V1: CenturyLink | W1: Hightech
A2: =SUBSTITUTE(C2&D2&E2&F2&G2&H2," ","") -> ComplementariosComplementariosExpertosExpertoJuniorenRecuperacionanteDesastresN/AN/AHORA | B2: IT-NPU-CO-EX-01 | C2: Complementarios | D2: Complementarios Expertos | E2: Experto Junior en Recuperacion ante Desastres | F2: N/A | G2: N/A | H2: HORA | J2: NO | K2: Peso Colombiano | N2: 86671.2 | O2: 149767.8336 | P2: 113498 | Q2: 478395.6177 | R2: 251153.877 | S2: 107307.2 | T2: 105525 | U2: 155801.8 | V2: 83833.75 | W2: 185724
A3: =SUBSTITUTE(C3&D3&E3&F3&G3&H3," ","") -> ComplementariosComplementariosExpertosExpertoSeniorenRecuperacionanteDesastresN/AN/AHORA | B3: IT-NPU-CO-EX-02 | C3: Complementarios | D3: Complementarios Expertos | E3: Experto Senior en Recuperacion ante Desastres | F3: N/A | G3: N/A | H3: HORA | J3: NO | K3: Peso Colombiano | N3: 166222.98 | O3: 239971.9168 | P3: 153738.2 | Q3: 545785.5711 | R3: 331881.909 | S3: 176093.8667 | T3: 205187.5 | U3: 163024.4 | V3: 209584.375 | W3: 288904
A4: ComplementariosComplementariosExpertosExpertoJuniorenBackupyArchivadoN/AN/AHORA | B4: IT-NPU-CO-EX-03 | C4: Complementarios | D4: Complementarios Expertos | E4: Experto Junior en Backup y Archivado | F4: N/A | G4: N/A | H4: HORA | J4: NO | K4: Peso Colombiano | N4: 86671.2 | O4: 95832.5522 | P4: 92862 | Q4: 309859.858 | R4: 251153.877 | S4: 107307.2 | T4: 105525 | U4: 123816 | V4: 50300.25 | W4: 185724
A5: ComplementariosComplementariosExpertosExpertoSeniorenBackupyArchivadoN/AN/AHORA | B5: IT-NPU-CO-EX-04 | C5: Complementarios | D5: Complementarios Expertos | E5: Experto Senior en Backup y Archivado | F5: N/A | G5: N/A | H5: HORA | J5: NO | K5: Peso Colombiano | N5: 166222.98 | O5: 160554.2708 | P5: 143420.2 | Q5: 580972.0147 | R5: 331881.909 | S5: 176093.8667 | T5: 205187.5 | U5: 131038.6 | V5: 100600.5 | W5: 288904
A6: ComplementariosComplementariosExpertosExpertoJuniorenSeguridadenlaNubeN/AN/AHORA | B6: IT-NPU-CO-EX-05 | C6: Complementarios | D6: Complementarios Expertos | E6: Experto Junior en Seguridad en la Nube | F6: N/A | G6: N/A | H6: HORA | J6: NO | K6: Peso Colombiano | N6: 86671.2 | O6: 203702.0832 | P6: 123816 | Q6: 309859.858 | R6: 251153.877 | S6: 176093.8667 | T6: 105525 | U6: 139293 | V6: 67067 | W6: 185724
A7: ComplementariosComplementariosExpertosExpertoSeniorenSeguridadenlaNubeN/AN/AHORA | B7: IT-NPU-CO-EX-06 | C7: Complementarios | D7: Complementarios Expertos | E7: Experto Senior en Seguridad en la Nube | F7: N/A | G7: N/A | H7: HORA | J7: NO | K7: Peso Colombiano | N7: 166222.98 | O7: 260920.5522 | P7: 164056.2 | Q7: 580972.0147 | R7: 331881.909 | S7: 203608.5334 | T7: 205187.5 | U7: 145483.8 | V7: 117367.25 | W7: 288904
A8: ComplementariosComplementariosExpertosExpertoJuniorenMigracionN/AN/AHORA | B8: IT-NPU-CO-EX-07 | C8: Complementarios | D8: Complementarios Expertos | E8: Experto Junior en Migracion | F8: N/A | G8: N/A | H8: HORA | J8: NO | K8: Peso Colombiano | N8: 86671.2 | O8: 138980.3646 | P8: 113498 | Q8: 416180.1413 | R8: 219759.643 | S8: 107307.2 | T8: 105525 | U8: 123816 | V8: 67067 | W8: 185724
A9: ComplementariosComplementariosExpertosExpertoSeniorenMigracionN/AN/AHORA | B9: IT-NPU-CO-EX-08 | C9: Complementarios | D9: Complementarios Expertos | E9: Experto Senior en Migracion | F9: N/A | G9: N/A | H9: HORA | J9: NO | K9: Peso Colombiano | N9: 166222.98 | O9: 182128.177 | P9: 153738.2 | Q9: 478395.6177 | R9: 287033.003 | S9: 176093.8667 | T9: 205187.5 | U9: 131038.6 | V9: 167667.5 | W9: 288904
A10: ComplementariosComplementariosExpertosArquitectoJuniorenNubeHibridaN/AN/AHORA | B10: IT-NPU-CO-EX-09 | C10: Complementarios | D10: Complementarios Expertos | E10: Arquitecto Junior en Nube Hibrida | F10: N/A | G10: N/A | H10: HORA | J10: NO | K10: Peso Colombiano | N10: 86671.2 | O10: 138980.3646 | P10: 123816 | Q10: 446679.1175 | R10: 219759.643 | S10: 176093.8667 | T10: 105525 | U10: 155801.8 | V10: 67067 | W10: 247632
A11: ComplementariosComplementariosExpertosArquitectoSeniorenNubeHibridaN/AN/AHORA | B11: IT-NPU-CO-EX-10 | C11: Complementarios | D11: Complementarios Expertos | E11: Arquitecto Senior en Nube Hibrida | F11: N/A | G11: N/A | H11: HORA | J11: NO | K11: Peso Colombiano | N11: 166222.98 | O11: 239971.9168 | P11: 164056.2 | Q11: 682270.0115 | R11: 287033.003 | S11: 203608.5334 | T11: 205187.5 | U11: 163024.4 | V11: 167667.5 | W11: 350812
A12: ComplementariosComplementariosExpertosExpertoJuniorenBasesdeDatosN/AN/AHORA | B12: IT-NPU-CO-EX-11 | C12: Complementarios | D12: Complementarios Expertos | E12: Experto Junior en Bases de Datos | F12: N/A | G12: N/A | H12: HORA | J12: NO | K12: Peso Colombiano | N12: 86671.2 | O12: 154770 | P12: 134134 | Q12: 343737.4633 | R12: 219759.643 | S12: 107307.2 | T12: 105525 | U12: 123816 | V12: 50300.25 | W12: 185724
A13: ComplementariosComplementariosExpertosExpertoSeniorenBasesdeDatosN/AN/AHORA | B13: IT-NPU-CO-EX-12 | C13: Complementarios | D13: Complementarios Expertos | E13: Experto Senior en Bases de Datos | F13: N/A | G13: N/A | H13: HORA | J13: NO | K13: Peso Colombiano | N13: 166222.98 | O13: 206360 | P13: 174374.2 | Q13: 537902.1032 | R13: 287033.003 | S13: 176093.8667 | T13: 205187.5 | U13: 131038.6 | V13: 134134 | W13: 288904
A14: ComplementariosComplementariosExpertosExpertoJuniorenServidoresyAplicacionesWebN/AN/AHORA | B14: IT-NPU-CO-EX-13 | C14: Complementarios | D14: Complementarios Expertos | E14: Experto Junior en Servidores y Aplicaciones Web | F14: N/A | G14: N/A | H14: HORA | J14: NO | K14: Peso Colombiano | N14: 86671.2 | O14: 160554.2708 | P14: 92862 | Q14: 353782.0363 | R14: 251153.877 | S14: 107307.2 | T14: 105525 | U14: 139293 | V14: 50300.25 | W14: 185724
A15: ComplementariosComplementariosExpertosExpertoSeniorenServidoresyAplicacionesWebN/AN/AHORA | B15: IT-NPU-CO-EX-14 | C15: Complementarios | D15: Complementarios Expertos | E15: Experto Senior en Servidores y Aplicaciones Web | F15: N/A | G15: N/A | H15: HORA | J15: NO | K15: Peso Colombiano | N15: 166222.98 | O15: 203702.0832 | P15: 143420.2 | Q15: 428872.829 | R15: 331881.909 | S15: 176093.8667 | T15: 205187.5 | U15: 145483.8 | V15: 117367.25 | W15: 288904
A16: ComplementariosComplementariosExpertosExpertoJuniorenNubePúblicaN/AN/AHORA | B16: IT-NPU-CO-EX-15 | C16: Complementarios | D16: Complementarios Expertos | E16: Experto Junior en Nube Pública | F16: N/A | G16: N/A | H16: HORA | J16: NO | K16: Peso Colombiano | N16: 86671.2 | O16: 138980.3646 | P16: 113498 | Q16: 446679.1175 | R16: 219759.643 | S16: 107307.2 | T16: 105525 | U16: 155801.8 | V16: 50300.25 | W16: 185724
A17: ComplementariosComplementariosExpertosExpertoSeniorenNubePúblicaN/AN/AHORA | B17: IT-NPU-CO-EX-16 | C17: Complementarios | D17: Complementarios Expertos | E17: Experto Senior en Nube Pública | F17: N/A | G17: N/A | H17: HORA | J17: NO | K17: Peso Colombiano | N17: 166222.98 | O17: 239971.9168 | P17: 153738.2 | Q17: 682270.0115 | R17: 287033.003 | S17: 176093.8667 | T17: 205187.5 | U17: 163024.4 | V17: 117367.25 | W17: 288904
A18: ComplementariosComplementariosExpertosExpertoJuniorenManejodeDatosN/AN/AHORA | B18: IT-NPU-CO-EX-17 | C18: Complementarios | D18: Complementarios Expertos | E18: Experto Junior en Manejo de Datos | F18: N/A | G18: N/A | H18: HORA | J18: NO | K18: Peso Colombiano | N18: 86671.2 | O18: 117406.4584 | P18: 123816 | Q18: 220797.9774 | R18: 219759.643 | S18: 176093.8667 | T18: 340025 | U18: 139293 | V18: 83833.75 | W18: 185724
A19: ComplementariosComplementariosExpertosExpertoSeniorenManejodeDatosN/AN/AHORA | B19: IT-NPU-CO-EX-18 | C19: Complementarios | D19: Complementarios Expertos | E19: Experto Senior en Manejo de Datos | F19: N/A | G19: N/A | H19: HORA | J19: NO | K19: Peso Colombiano | N19: 166222.98 | O19: 182128.177 | P19: 164056.2 | Q19: 382515.6027 | R19: 331881.909 | S19: 203608.5334 | T19: 351750 | U19: 145483.8 | V19: 209584.375 | W19: 288904
A20: ComplementariosComplementariosGestiónySoporteHerramientadeMonitoreoySupervisiónAutogestionadoN/AMetricaoevento/Hora | B20: IT-NPU-CO-GS-01-1 | C20: Complementarios | D20: Complementarios Gestión y Soporte | E20: Herramienta de Monitoreo y Supervisión | F20: Autogestionado | G20: N/A | H20: Metrica o evento /Hora | J20: NO | K20: USD | N20: 0.01 | O20: 0.3041 | P20: 0.05 | Q20: 0.01095890411 | R20: 0.0381 | S20: 0.0095 | T20: 1.431578947 | U20: 0.0101 | V20: 0.0044 | W20: 0.0018
A21: ComplementariosComplementariosGestiónySoporteHerramientadeMonitoreoySupervisiónGestionadoporelproveedorN/AMetricaoevento/Hora | B21: IT-NPU-CO-GS-01-2 | C21: Complementarios | D21: Complementarios Gestión y Soporte | E21: Herramienta de Monitoreo y Supervisión | F21: Gestionado por el proveedor | G21: N/A | H21: Metrica o evento /Hora | J21: NO | K21: USD | N21: 0.01 | O21: 0.3264 | P21: 0.1 | Q21: 90.0109589 | R21: 0.0419 | S21: 0.0097 | T21: 2.870972887 | U21: 0.0111 | V21: 0.0044 | W21: 0.0026
A22: ComplementariosComplementariosGestiónySoporteHerramientadeMonitoreoySupervisiónAutogestionadoN/AMetricaoevento/Mes | B22: IT-NPU-CO-GS-01-3 | C22: Complementarios | D22: Complementarios Gestión y Soporte | E22: Herramienta de Monitoreo y Supervisión | F22: Autogestionado | G22: N/A | H22: Metrica o evento /Mes | J22: NO | K22: USD | N22: 4.3 | O22: 110.9829 | P22: 0.3 | Q22: 8 | R22: 27.78 | S22: 6.9059 | T22: 1.431578947 | U22: 7.5428 | V22: 3.2256 | W22: 1.2349
A23: ComplementariosComplementariosGestiónySoporteHerramientadeMonitoreoySupervisiónGestionadoporelproveedorN/AMetricaoevento/Mes | B23: IT-NPU-CO-GS-01-4 | C23: Complementarios | D23: Complementarios Gestión y Soporte | E23: Herramienta de Monitoreo y Supervisión | F23: Gestionado por el proveedor | G23: N/A | H23: Metrica o evento /Mes | J23: NO | K23: USD | N23: 4.3 | O23: 119.1037 | P23: 0.5 | Q23: 360.0109589 | R23: 30.558 | S23: 7.0723 | T23: 2.870972887 | U23: 8.2971 | V23: 3.2256 | W23: 1.8524
A24: ComplementariosComplementariosGestiónySoporteHerramientasdeAutenticaciónMultifactorAutogestionadoN/AMétodoporUsuario/Mes | B24: IT-NPU-CO-GS-02-1 | C24: Complementarios | D24: Complementarios Gestión y Soporte | E24: Herramientas de Autenticación Multifactor | F24: Autogestionado | G24: N/A | H24: Método por Usuario/Mes | J24: NO | K24: USD | N24: 55 | O24: 10.22 | P24: 3.3 | Q24: 4 | R24: 6 | S24: 1.4 | T24: 2.147368421 | U24: 1.7 | V24: 0.0021 | W24: 0.0047
A25: ComplementariosComplementariosGestiónySoporteHerramientasdeAutenticaciónMultifactorGestionadoporelproveedorN/AMétodoporUsuario/Mes | B25: IT-NPU-CO-GS-02-2 | C25: Complementarios | D25: Complementarios Gestión y Soporte | E25: Herramientas de Autenticación Multifactor | F25: Gestionado por el proveedor | G25: N/A | H25: Método por Usuario/Mes | J25: NO | K25: USD | N25: 55 | O25: 10.97 | P25: 6.66 | Q25: 94 | R25: 6.6 | S25: 1.4338 | T25: 3.58676236 | U25: 1.87 | V25: 1.568 | W25: 0.0071
A26: ComplementariosComplementariosGestiónySoporteSoportePremiumAutogestionadoN/AHora | B26: IT-NPU-CO-GS-03-1 | C26: Complementarios | D26: Complementarios Gestión y Soporte | E26: Soporte Premium | F26: Autogestionado | G26: N/A | H26: Hora | J26: NO | K26: USD | N26: 20.49 | O26: 90 | P26: 4 | Q26: 90 | R26: 22.4833 | S26: 70.4762 | T26: 109.8484848 | U26: 50 | V26: 1.5342 | W26: 11.77
A27: ComplementariosComplementariosGestiónySoporteSoportePremiumGestionadoporelproveedorN/AHora | B27: IT-NPU-CO-GS-03-2 | C27: Complementarios | D27: Complementarios Gestión y Soporte | E27: Soporte Premium | F27: Gestionado por el proveedor | G27: N/A | H27: Hora | J27: NO | K27: USD | N27: 20.49 | O27: 90 | P27: 6.72 | Q27: 90 | R27: 26.98 | S27: 70.4762 | T27: 124.2424242 | U27: 45 | V27: 1.5342 | W27: 17.655
A28: ComplementariosComplementariosGestiónySoporteSoportePremiumAutogestionadoN/AMes | B28: IT-NPU-CO-GS-03-3 | C28: Complementarios | D28: Complementarios Gestión y Soporte | E28: Soporte Premium | F28: Autogestionado | G28: N/A | H28: Mes | J28: NO | K28: USD | N28: 14998.68 | O28: 7181.2867 | P28: 3000 | Q28: 125.67 | R28: 5396 | S28: 9584.762 | T28: 4393.939394 | U28: 5000 | V28: 1120 | W28: 117.7
A29: ComplementariosComplementariosGestiónySoporteSoportePremiumGestionadoporelproveedorN/AMes | B29: IT-NPU-CO-GS-03-4 | C29: Complementarios | D29: Complementarios Gestión y Soporte | E29: Soporte Premium | F29: Gestionado por el proveedor | G29: N/A | H29: Mes | J29: NO | K29: USD | N29: 14998.68 | O29: 7181.2867 | P29: 5000 | Q29: 125.67 | R29: 6475.2 | S29: 9584.762 | T29: 4465.909091 | U29: 4500 | V29: 1120 | W29: 176.55
A30: ComplementariosComplementariosGestiónySoporteHerramientadeGestióndeLlavesdeEncriptaciónAutogestionadoN/ALlavedeencriptación/Hora | B30: IT-NPU-CO-GS-04-1 | C30: Complementarios | D30: Complementarios Gestión y Soporte | E30: Herramienta de Gestión de Llaves de Encriptación | F30: Autogestionado | G30: N/A | H30: Llave de encriptación/Hora | J30: NO | K30: USD | N30: 2 | O30: 0.0125 | P30: 0.97 | Q30: 0.06 | R30: 0.0005 | S30: 0.0069 | T30: 1.055789474 | U30: 0.0001 | V30: 1 | W30: 0.0118
A31: ComplementariosComplementariosGestiónySoporteHerramientadeGestióndeLlavesdeEncriptaciónGestionadoporelproveedorN/ALlavedeencriptación/Hora | B31: IT-NPU-CO-GS-04-2 | C31: Complementarios | D31: Complementarios Gestión y Soporte | E31: Herramienta de Gestión de Llaves de Encriptación | F31: Gestionado por el proveedor | G31: N/A | H31: Llave de encriptación/Hora | J31: NO | K31: USD | N31: 2 | O31: 0.0134 | P31: 1.57 | Q31: 90.06 | R31: 0.0005 | S31: 0.0071 | T31: 2.495183413 | U31: 0.0001 | V31: 1 | W31: 0.0177
A32: ComplementariosComplementariosGestiónySoporteHerramientadeGestióndeLlavesdeEncriptaciónAutogestionadoN/ALlavedeencriptación/Mes | B32: IT-NPU-CO-GS-04-3 | C32: Complementarios | D32: Complementarios Gestión y Soporte | E32: Herramienta de Gestión de Llaves de Encriptación | F32: Autogestionado | G32: N/A | H32: Llave de encriptación/Mes | J32: NO | K32: USD | N32: 0.0027 | O32: 9.091 | P32: 6.97 | Q32: 1.8 | R32: 0.36 | S32: 5 | T32: 1.055789474 | U32: 0.0364 | V32: 0.0342 | W32: 8.2037
A33: ComplementariosComplementariosGestiónySoporteHerramientadeGestióndeLlavesdeEncriptaciónGestionadoporelproveedorN/ALlavedeencriptación/Mes | B33: IT-NPU-CO-GS-04-4 | C33: Complementarios | D33: Complementarios Gestión y Soporte | E33: Herramienta de Gestión de Llaves de Encriptación | F33: Gestionado por el proveedor | G33: N/A | H33: Llave de encriptación/Mes | J33: NO | K33: USD | N33: 0.0027 | O33: 9.7561 | P33: 7.97 | Q33: 91.8 | R33: 0.396 | S33: 5.1205 | T33: 2.495183413 | U33: 0.0401 | V33: 0.0342 | W33: 12.3055
A34: IaaSIaaSAlmacenamientoServiciodeAlmacenamientoAutogestionadoN/AGB/Hora | B34: IT-NPU-IA-AL-01-1 | C34: IaaS | D34: IaaS Almacenamiento | E34: Servicio de Almacenamiento | F34: Autogestionado | G34: N/A | H34: GB/Hora | J34: NO | K34: USD | N34: 0.0031 | O34: 0.0008 | P34: 0.0002797444661 | Q34: 0.02 | R34: 0.24 | S34: 0.0002 | T34: 0.04210526316 | U34: 0.0002 | V34: 0.0002 | W34: 0.0055
A35: IaaSIaaSAlmacenamientoServiciodeAlmacenamientoGestionadoporelproveedorN/AGB/Hora | B35: IT-NPU-IA-AL-01-2 | C35: IaaS | D35: IaaS Almacenamiento | E35: Servicio de Almacenamiento | F35: Gestionado por el proveedor | G35: N/A | H35: GB/Hora | J35: NO | K35: USD | N35: 0.0031 | O35: 0.0009 | P35: 0.0003300984701 | Q35: 90.02 | R35: 0.264 | S35: 0.0002 | T35: 0.2220295056 | U35: 0.0002 | V35: 0.0002 | W35: 0.0083
A36: IaaSIaaSAlmacenamientoServiciodeAlmacenamientoAutogestionadoN/AGB/Mes | B36: IT-NPU-IA-AL-01-3 | C36: IaaS | D36: IaaS Almacenamiento | E36: Servicio de Almacenamiento | F36: Autogestionado | G36: N/A | H36: GB/Mes | J36: NO | K36: USD | N36: 0.023 | O36: 0.2608 | P36: 0.2014160156 | Q36: 0.02 | R36: 175.2 | S36: 0.0833 | T36: 0.04210526316 | U36: 0.1336 | V36: 0.1204 | W36: 3.9724
A37: IaaSIaaSAlmacenamientoServiciodeAlmacenamientoGestionadoporelproveedorN/AGB/Mes | B37: IT-NPU-IA-AL-01-4 | C37: IaaS | D37: IaaS Almacenamiento | E37: Servicio de Almacenamiento | F37: Gestionado por el proveedor | G37: N/A | H37: GB/Mes | J37: NO | K37: USD | N37: 0.023 | O37: 0.2799 | P37: 0.2376708984 | Q37: 90.02 | R37: 192.72 | S37: 0.085 | T37: 0.2220295056 | U37: 0.1469 | V37: 0.1204 | W37: 5.9586
A38: IaaSIaaSAlmacenamientoCopiadeRespaldoAutogestionadoN/AGB/Hora | B38: IT-NPU-IA-AL-02-1 | C38: IaaS | D38: IaaS Almacenamiento | E38: Copia de Respaldo | F38: Autogestionado | G38: N/A | H38: GB/Hora | J38: NO | K38: USD | N38: 0.0005 | O38: 12.12 | P38: 6.944444444e-05 | Q38: 0.01 | R38: 3.146 | S38: 0.0001 | T38: 0.02684210526 | U38: 0.0082 | V38: 0.0002 | W38: 0.0004
A39: IaaSIaaSAlmacenamientoCopiadeRespaldoGestionadoporelproveedorN/AGB/Hora | B39: IT-NPU-IA-AL-02-2 | C39: IaaS | D39: IaaS Almacenamiento | E39: Copia de Respaldo | F39: Gestionado por el proveedor | G39: N/A | H39: GB/Hora | J39: NO | K39: USD | N39: 0.0005 | O39: 13.01 | P39: 8.194444444e-05 | Q39: 90.01 | R39: 3.4606 | S39: 0.0001 | T39: 0.2067663477 | U39: 0.0091 | V39: 0.0002 | W39: 0.0005
A40: IaaSIaaSAlmacenamientoCopiadeRespaldoAutogestionadoN/AGB/Mes | B40: IT-NPU-IA-AL-02-3 | C40: IaaS | D40: IaaS Almacenamiento | E40: Copia de Respaldo | F40: Autogestionado | G40: N/A | H40: GB/Mes | J40: NO | K40: USD | N40: 0.004 | O40: 12.12 | P40: 0.05 | Q40: 0.01 | R40: 109.58 | S40: 0.0421 | T40: 0.02684210526 | U40: 6.1286 | V40: 0.1389 | W40: 0.1648
A41: IaaSIaaSAlmacenamientoCopiadeRespaldoGestionadoporelproveedorN/AGB/Mes | B41: IT-NPU-IA-AL-02-4 | C41: IaaS | D41: IaaS Almacenamiento | E41: Copia de Respaldo | F41: Gestionado por el proveedor | G41: N/A | H41: GB/Mes | J41: NO | K41: USD | N41: 0.004 | O41: 13.01 | P41: 0.059 | Q41: 90.01 | R41: 120.538 | S41: 0.043 | T41: 0.2067663477 | U41: 6.7414 | V41: 0.1389 | W41: 0.2472
A42: IaaSIaaSProcesamientoServidoresVirtualesAutogestionadoDebianServidorVirtual/Hora | B42: IT-NPU-IA-PR-01-1 | C42: IaaS | D42: IaaS Procesamiento | E42: Servidores Virtuales | F42: Autogestionado | G42: Debian | H42: Servidor Virtual / Hora | J42: NO | K42: USD | N42: 3.2 | O42: 5.8489 | P42: 4.608 | Q42: 3.87 | R42: 4.2517 | S42: 23.3815 | T42: 202.763328 | U42: 6.7586 | V42: 6.143 | W42: 12.3546
A43: IaaSIaaSProcesamientoServidoresVirtualesAutogestionadoSUSELinuxEnterpriseServidorVirtual/Hora | B43: IT-NPU-IA-PR-01-2 | C43: IaaS | D43: IaaS Procesamiento | E43: Servidores Virtuales | F43: Autogestionado | G43: SUSE Linux Enterprise | H43: Servidor Virtual / Hora | J43: NO | K43: USD | N43: 3.3 | O43: 5.8489 | P43: 4.708 | Q43: 3.87 | R43: 14.8117 | S43: 23.3815 | T43: 202.763328 | U43: 7.2157 | V43: 6.143 | W43: 12.4723
A44: IaaSIaaSProcesamientoServidoresVirtualesAutogestionadoUbuntuServidorVirtual/Hora | B44: IT-NPU-IA-PR-01-3 | C44: IaaS | D44: IaaS Procesamiento | E44: Servidores Virtuales | F44: Autogestionado | G44: Ubuntu | H44: Servidor Virtual / Hora | J44: NO | K44: USD | N44: 3.2 | O44: 5.8637 | P44: 4.608 | Q44: 3.87 | R44: 4.2517 | S44: 23.3815 | T44: 202.763328 | U44: 6.7586 | V44: 6.1463 | W44: 12.3546
A45: IaaSIaaSProcesamientoServidoresVirtualesAutogestionadoRedHatEnterpriseServidorVirtual/Hora | B45: IT-NPU-IA-PR-01-4 | C45: IaaS | D45: IaaS Procesamiento | E45: Servidores Virtuales | F45: Autogestionado | G45: RedHat Enterprise | H45: Servidor Virtual / Hora | J45: NO | K45: USD | N45: 3.33 | O45: 6.0411 | P45: 4.738 | Q45: 4 | R45: 16.7317 | S45: 23.3815 | T45: 202.8796438 | U45: 6.9164 | V45: 6.5798 | W45: 12.5076
A46: IaaSIaaSProcesamientoServidoresVirtualesAutogestionadoWindowsServerServidorVirtual/Hora | B46: IT-NPU-IA-PR-01-5 | C46: IaaS | D46: IaaS Procesamiento | E46: Servidores Virtuales | F46: Autogestionado | G46: Windows Server | H46: Servidor Virtual / Hora | J46: NO | K46: USD | N46: 3.84 | O46: 10.1727 | P46: 9.024 | Q46: 7.71 | R46: 8.0917 | S46: 31.3815 | T46: 205.113863 | U46: 12.1229 | V46: 11.0889 | W46: 17.5522
A47: IaaSIaaSProcesamientoServidoresVirtualesAutogestionadoWindowsServerDatacenterServidorVirtual/Hora | B47: IT-NPU-IA-PR-01-6 | C47: IaaS | D47: IaaS Procesamiento | E47: Servidores Virtuales | F47: Autogestionado | G47: Windows Server Datacenter | H47: Servidor Virtual / Hora | J47: NO | K47: USD | N47: 3.84 | O47: 10.1727 | P47: 9.024 | Q47: 7.71 | R47: 8.0917 | S47: 31.3815 | T47: 205.113863 | U47: 12.1229 | V47: 11.0889 | W47: 17.5522
A48: IaaSIaaSProcesamientoServidoresVirtualesGestionadoporelproveedorDebianServidorVirtual/Hora | B48: IT-NPU-IA-PR-01-7 | C48: IaaS | D48: IaaS Procesamiento | E48: Servidores Virtuales | F48: Gestionado por el proveedor | G48: Debian | H48: Servidor Virtual / Hora | J48: NO | K48: USD | N48: 3.2 | O48: 6.2798 | P48: 5.43744 | Q48: 93.87 | R48: 4.6769 | S48: 23.8737 | T48: 204.202722 | U48: 7.3179 | V48: 6.2606 | W48: 18.5319
A49: IaaSIaaSProcesamientoServidoresVirtualesGestionadoporelproveedorSUSELinuxEnterpriseServidorVirtual/Hora | B49: IT-NPU-IA-PR-01-8 | C49: IaaS | D49: IaaS Procesamiento | E49: Servidores Virtuales | F49: Gestionado por el proveedor | G49: SUSE Linux Enterprise | H49: Servidor Virtual / Hora | J49: NO | K49: USD | N49: 3.3 | O49: 6.2798 | P49: 5.55544 | Q49: 93.87 | R49: 16.2929 | S49: 23.8737 | T49: 274.733025 | U49: 7.8207 | V49: 6.2606 | W49: 18.7084
A50: IaaSIaaSProcesamientoServidoresVirtualesGestionadoporelproveedorUbuntuServidorVirtual/Hora | B50: IT-NPU-IA-PR-01-9 | C50: IaaS | D50: IaaS Procesamiento | E50: Servidores Virtuales | F50: Gestionado por el proveedor | G50: Ubuntu | H50: Servidor Virtual / Hora | J50: NO | K50: USD | N50: 3.2 | O50: 6.2925 | P50: 5.43744 | Q50: 93.87 | R50: 4.6769 | S50: 23.8737 | T50: 204.202722 | U50: 7.3179 | V50: 6.2639 | W50: 18.5319
A51: IaaSIaaSProcesamientoServidoresVirtualesGestionadoporelproveedorRedHatEnterpriseServidorVirtual/Hora | B51: IT-NPU-IA-PR-01-10 | C51: IaaS | D51: IaaS Procesamiento | E51: Servidores Virtuales | F51: Gestionado por el proveedor | G51: RedHat Enterprise | H51: Servidor Virtual / Hora | J51: NO | K51: USD | N51: 3.33 | O51: 6.4847 | P51: 5.59084 | Q51: 94 | R51: 18.4049 | S51: 23.8737 | T51: 204.3190378 | U51: 7.4915 | V51: 6.6974 | W51: 18.7614
A52: IaaSIaaSProcesamientoServidoresVirtualesGestionadoporelproveedorWindowsServerServidorVirtual/Hora | B52: IT-NPU-IA-PR-01-11 | C52: IaaS | D52: IaaS Procesamiento | E52: Servidores Virtuales | F52: Gestionado por el proveedor | G52: Windows Server | H52: Servidor Virtual / Hora | J52: NO | K52: USD | N52: 3.84 | O52: 10.9205 | P52: 10.64832 | Q52: 97.71 | R52: 8.9009 | S52: 32.0422 | T52: 206.553257 | U52: 13.2186 | V52: 11.2065 | W52: 26.3283
A53: IaaSIaaSProcesamientoServidoresVirtualesGestionadoporelproveedorWindowsServerDatacenterServidorVirtual/Hora | B53: IT-NPU-IA-PR-01-12 | C53: IaaS | D53: IaaS Procesamiento | E53: Servidores Virtuales | F53: Gestionado por el proveedor | G53: Windows Server Datacenter | H53: Servidor Virtual / Hora | J53: NO | K53: USD | N53: 3.84 | O53: 10.9205 | P53: 10.64832 | Q53: 97.71 | R53: 8.9009 | S53: 32.0422 | T53: 206.553257 | U53: 13.2186 | V53: 11.2065 | W53: 26.3283
A54: IaaSIaaSProcesamientoServidoresVirtualesAutogestionadoDebianServidorVirtual/Mes | B54: IT-NPU-IA-PR-01-13 | C54: IaaS | D54: IaaS Procesamiento | E54: Servidores Virtuales | F54: Autogestionado | G54: Debian | H54: Servidor Virtual / Mes | J54: NO | K54: USD | N54: 2342.4 | O54: 4211.1875 | P54: 3317.76 | Q54: 2828 | R54: 2191.2 | S54: 17395.7939 | T54: 2217.229474 | U54: 5028.38 | V54: 5022.4931 | W54: 9043.5619
A55: IaaSIaaSProcesamientoServidoresVirtualesAutogestionadoSUSELinuxEnterpriseServidorVirtual/Mes | B55: IT-NPU-IA-PR-01-14 | C55: IaaS | D55: IaaS Procesamiento | E55: Servidores Virtuales | F55: Autogestionado | G55: SUSE Linux Enterprise | H55: Servidor Virtual / Mes | J55: NO | K55: USD | N55: 2415.6 | O55: 4211.1875 | P55: 3389.76 | Q55: 2828 | R55: 2271.5 | S55: 17395.7939 | T55: 2217.229474 | U55: 5368.4943 | V55: 5022.4931 | W55: 9129.7183
A56: IaaSIaaSProcesamientoServidoresVirtualesAutogestionadoUbuntuServidorVirtual/Mes | B56: IT-NPU-IA-PR-01-15 | C56: IaaS | D56: IaaS Procesamiento | E56: Servidores Virtuales | F56: Autogestionado | G56: Ubuntu | H56: Servidor Virtual / Mes | J56: NO | K56: USD | N56: 2342.4 | O56: 4221.8333 | P56: 3317.76 | Q56: 2828 | R56: 2191.2 | S56: 17395.7939 | T56: 2217.229474 | U56: 5028.38 | V56: 5047.5811 | W56: 9043.5619
A57: IaaSIaaSProcesamientoServidoresVirtualesAutogestionadoRedHatEnterpriseServidorVirtual/Mes | B57: IT-NPU-IA-PR-01-16 | C57: IaaS | D57: IaaS Procesamiento | E57: Servidores Virtuales | F57: Autogestionado | G57: RedHat Enterprise | H57: Servidor Virtual / Mes | J57: NO | K57: USD | N57: 2437.56 | O57: 4349.5833 | P57: 3411.36 | Q57: 2922.9 | R57: 2382.1 | S57: 17395.7939 | T57: 2302.14 | U57: 5145.8257 | V57: 4803.2328 | W57: 9155.5652
A58: IaaSIaaSProcesamientoServidoresVirtualesAutogestionadoWindowsServerServidorVirtual/Mes | B58: IT-NPU-IA-PR-01-17 | C58: IaaS | D58: IaaS Procesamiento | E58: Servidores Virtuales | F58: Autogestionado | G58: Windows Server | H58: Servidor Virtual / Mes | J58: NO | K58: USD | N58: 2810.88 | O58: 7324.3333 | P58: 6497.28 | Q58: 5631.2 | R58: 4994.4 | S58: 23347.7939 | T58: 4140.126316 | U58: 9019.4086 | V58: 8094.8904 | W58: 12848.2262
A59: IaaSIaaSProcesamientoServidoresVirtualesAutogestionadoWindowsServerDatacenterServidorVirtual/Mes | B59: IT-NPU-IA-PR-01-18 | C59: IaaS | D59: IaaS Procesamiento | E59: Servidores Virtuales | F59: Autogestionado | G59: Windows Server Datacenter | H59: Servidor Virtual / Mes | J59: NO | K59: USD | N59: 2810.88 | O59: 7324.3333 | P59: 6497.28 | Q59: 5631.2 | R59: 4994.4 | S59: 23347.7939 | T59: 4140.126316 | U59: 9019.4086 | V59: 9066.2772 | W59: 12848.2262
A60: IaaSIaaSProcesamientoServidoresVirtualesGestionadoporelproveedorDebianServidorVirtual/Mes | B60: IT-NPU-IA-PR-01-19 | C60: IaaS | D60: IaaS Procesamiento | E60: Servidores Virtuales | F60: Gestionado por el proveedor | G60: Debian | H60: Servidor Virtual / Mes | J60: NO | K60: USD | N60: 2342.4 | O60: 4521.4375 | P60: 3914.9568 | Q60: 3188 | R60: 2410.32 | S60: 17762.0211 | T60: 2289.199171 | U60: 5444.4886 | V60: 4570.3688 | W60: 13565.3428
A61: IaaSIaaSProcesamientoServidoresVirtualesGestionadoporelproveedorSUSELinuxEnterpriseServidorVirtual/Mes | B61: IT-NPU-IA-PR-01-20 | C61: IaaS | D61: IaaS Procesamiento | E61: Servidores Virtuales | F61: Gestionado por el proveedor | G61: SUSE Linux Enterprise | H61: Servidor Virtual / Mes | J61: NO | K61: USD | N61: 2415.6 | O61: 4521.4375 | P61: 3999.9168 | Q61: 3188 | R61: 2498.65 | S61: 17762.0211 | T61: 2289.199171 | U61: 5818.6143 | V61: 4570.3688 | W61: 13694.5774
A62: IaaSIaaSProcesamientoServidoresVirtualesGestionadoporelproveedorUbuntuServidorVirtual/Mes | B62: IT-NPU-IA-PR-01-21 | C62: IaaS | D62: IaaS Procesamiento | E62: Servidores Virtuales | F62: Gestionado por el proveedor | G62: Ubuntu | H62: Servidor Virtual / Mes | J62: NO | K62: USD | N62: 2342.4 | O62: 4530.5625 | P62: 3914.9568 | Q62: 3188 | R62: 2410.32 | S62: 17762.0211 | T62: 2289.199171 | U62: 5444.4886 | V62: 4592.7688 | W62: 13565.3428
A63: IaaSIaaSProcesamientoServidoresVirtualesGestionadoporelproveedorRedHatEnterpriseServidorVirtual/Mes | B63: IT-NPU-IA-PR-01-22 | C63: IaaS | D63: IaaS Procesamiento | E63: Servidores Virtuales | F63: Gestionado por el proveedor | G63: RedHat Enterprise | H63: Servidor Virtual / Mes | J63: NO | K63: USD | N63: 2437.56 | O63: 4668.9583 | P63: 4025.4048 | Q63: 3282.9 | R63: 2620.31 | S63: 17762.0211 | T63: 2374.109697 | U63: 5573.6789 | V63: 4889.2328 | W63: 13733.3478
A64: IaaSIaaSProcesamientoServidoresVirtualesGestionadoporelproveedorWindowsServerServidorVirtual/Mes | B64: IT-NPU-IA-PR-01-23 | C64: IaaS | D64: IaaS Procesamiento | E64: Servidores Virtuales | F64: Gestionado por el proveedor | G64: Windows Server | H64: Servidor Virtual / Mes | J64: NO | K64: USD | N64: 2810.88 | O64: 7862.7083 | P64: 7666.7904 | Q64: 5991.2 | R64: 5493.84 | S64: 23839.3264 | T64: 4212.096013 | U64: 9834.62 | V64: 8180.8904 | W64: 19272.3392
A65: IaaSIaaSProcesamientoServidoresVirtualesGestionadoporelproveedorWindowsServerDatacenterServidorVirtual/Mes | B65: IT-NPU-IA-PR-01-24 | C65: IaaS | D65: IaaS Procesamiento | E65: Servidores Virtuales | F65: Gestionado por el proveedor | G65: Windows Server Datacenter | H65: Servidor Virtual / Mes | J65: NO | K65: USD | N65: 2810.88 | O65: 7862.7083 | P65: 7666.7904 | Q65: 5991.2 | R65: 5493.84 | S65: 23839.3264 | T65: 4212.096013 | U65: 9834.62 | V65: 8180.8904 | W65: 19272.3392
A66: IaaSIaaSProcesamientoIPPúblicasAutogestionadoN/AIP/Hora | B66: IT-NPU-IA-PR-02-1 | C66: IaaS | D66: IaaS Procesamiento | E66: IP Públicas | F66: Autogestionado | G66: N/A | H66: IP/Hora | J66: NO | K66: USD | N66: 0.01 | O66: 0.0789 | P66: 0.005083333333 | Q66: 0.0001 | R66: 0.01 | S66: 0.0044 | T66: 0.072 | U66: 0.0071 | V66: 0.004 | W66: 0.006
A67: =SUBSTITUTE(C67&D67&E67&F67&G67&H67," ","") -> IaaSIaaSProcesamientoIPPúblicasGestionadoporelproveedorN/AIP/Hora | B67: IT-NPU-IA-PR-02-2 | C67: IaaS | D67: IaaS Procesamiento | E67: IP Públicas | F67: Gestionado por el proveedor | G67: N/A | H67: IP/Hora | J67: NO | K67: USD | N67: 0.01 | O67: 0.0846 | P67: 0.005998333333 | Q67: 0.0001 | R67: 0.011 | S67: 0.0045 | T67: 0.2519242424 | U67: 0.0079 | V67: 0.004 | W67: 0.009
A68: IaaSIaaSProcesamientoIPPúblicasAutogestionadoN/AIP/Mes | B68: IT-NPU-IA-PR-02-3 | C68: IaaS | D68: IaaS Procesamiento | E68: IP Públicas | F68: Autogestionado | G68: N/A | H68: IP/Mes | J68: NO | K68: USD | N68: 3.66 | O68: 56.7382 | P68: 3.66 | Q68: 0.0001 | R68: 7.3 | S68: 3.2598 | T68: 52.56 | U68: 5.3143 | V68: 2.9434 | W68: 4.3078
A69: IaaSIaaSProcesamientoIPPúblicasGestionadoporelproveedorN/AIP/Mes | B69: IT-NPU-IA-PR-02-4 | C69: IaaS | D69: IaaS Procesamiento | E69: IP Públicas | F69: Gestionado por el proveedor | G69: N/A | H69: IP/Mes | J69: NO | K69: USD | N69: 3.66 | O69: 60.8902 | P69: 4.3188 | Q69: 0.0001 | R69: 8.03 | S69: 3.3285 | T69: 53.27969697 | U69: 5.8457 | V69: 2.9434 | W69: 6.4617
A70: IaaSIaaSProcesamientoContenedoresAutogestionadoN/AContenedor/Mes | B70: IT-NPU-IA-PR-03-1 | C70: IaaS | D70: IaaS Procesamiento | E70: Contenedores | F70: Autogestionado | G70: N/A | H70: Contenedor/Mes | J70: NO | K70: USD | N70: 119.54 | O70: 4852.6145 | P70: 6497.28 | Q70: 2828 | R70: 906.5424 | S70: 17399.4743 | T70: 54.19152632 | U70: 229.13 | V70: 3767.5008 | W70: 23480.3026
A71: IaaSIaaSProcesamientoContenedoresGestionadoporelproveedorN/AContenedor/Mes | B71: IT-NPU-IA-PR-03-2 | C71: IaaS | D71: IaaS Procesamiento | E71: Contenedores | F71: Gestionado por el proveedor | G71: N/A | H71: Contenedor/Mes | J71: NO | K71: USD | N71: 119.54 | O71: 5061.3424 | P71: 7666.7904 | Q71: 2960.81 | R71: 997.1966 | S71: 17765.779 | T71: 68.58546571 | U71: 229.13 | V71: 3767.5008 | W71: 35220.4538
A72: IaaSIaaSRedesDomainNameServerAutogestionadoN/ADNS/Mes | B72: IT-NPU-IA-RE-01-1 | C72: IaaS | D72: IaaS Redes | E72: Domain Name Server | F72: Autogestionado | G72: N/A | H72: DNS/Mes | J72: NO | K72: USD | N72: 0.7 | O72: 398.4432 | P72: 3203.75 | Q72: 5 | R72: 405 | S72: 17701.299 | T72: 369.0789474 | U72: 3.83 | V72: 462 | W72: 471.3885
A73: IaaSIaaSRedesDomainNameServerGestionadoporelproveedorN/ADNS/Mes | B73: IT-NPU-IA-RE-01-2 | C73: IaaS | D73: IaaS Redes | E73: Domain Name Server | F73: Gestionado por el proveedor | G73: N/A | H73: DNS/Mes | J73: NO | K73: USD | N73: 0.7 | O73: 427.5975 | P73: 3780.425 | Q73: 95 | R73: 445 | S73: 18073.9579 | T73: 441.0486443 | U73: 3.83 | V73: 462 | W73: 707.0828
A74: IaaSIaaSRedesRedPrivadaVirtualAutogestionadoN/ANRPV/Mes | B74: IT-NPU-IA-RE-02-1 | C74: IaaS | D74: IaaS Redes | E74: Red Privada Virtual | F74: Autogestionado | G74: N/A | H74: NRPV/Mes | J74: NO | K74: USD | N74: 0.05 | O74: 25.3863 | P74: 0.3 | Q74: 36.5 | R74: 36.51 | S74: 814.9485 | T74: 23.51578947 | U74: 1129.2857 | V74: 2.24 | W74: 43.0782
A75: IaaSIaaSRedesRedPrivadaVirtualGestionadoporelproveedorN/ANRPV/Mes | B75: IT-NPU-IA-RE-02-2 | C75: IaaS | D75: IaaS Redes | E75: Red Privada Virtual | F75: Gestionado por el proveedor | G75: N/A | H75: NRPV/Mes | J75: NO | K75: USD | N75: 0.05 | O75: 27.2439 | P75: 10 | Q75: 73 | R75: 40.161 | S75: 832.1053 | T75: 37.90972887 | U75: 1242.2143 | V75: 2.24 | W75: 64.6173
A76: IaaSIaaSRedesConexiónparaNubeHíbridaAutogestionadoN/AGB/Hora | B76: IT-NPU-IA-RE-03-1 | C76: IaaS | D76: IaaS Redes | E76: Conexión para Nube Híbrida | F76: Autogestionado | G76: N/A | H76: GB/Hora | J76: NO | K76: USD | N76: 0.05 | O76: 2.894 | P76: 28.46 | Q76: 36.5 | R76: 0.171 | S76: 0.035 | T76: 1.830006489 | U76: 0.2482 | V76: 3.8959 | W76: 0.0278
A77: IaaSIaaSRedesConexiónparaNubeHíbridaGestionadoporelproveedorN/AGB/Hora | B77: IT-NPU-IA-RE-03-2 | C77: IaaS | D77: IaaS Redes | E77: Conexión para Nube Híbrida | F77: Gestionado por el proveedor | G77: N/A | H77: GB/Hora | J77: NO | K77: USD | N77: 0.05 | O77: 3.1021 | P77: 35.25 | Q77: 73 | R77: 0.1881 | S77: 0.0359 | T77: 2.189854974 | U77: 0.273 | V77: 3.8959 | W77: 0.0417
A78: IaaSIaaSRedesConexiónparaNubeHíbridaAutogestionadoN/AGB/Mes | B78: IT-NPU-IA-RE-03-3 | C78: IaaS | D78: IaaS Redes | E78: Conexión para Nube Híbrida | F78: Autogestionado | G78: N/A | H78: GB/Mes | J78: NO | K78: USD | N78: 36.6 | O78: 2076.12 | P78: 63.51 | Q78: 36.5 | R78: 37.35 | S78: 26.04 | T78: 1335.904737 | U78: 184.6714 | V78: 2844.0194 | W78: 20
A79: IaaSIaaSRedesConexiónparaNubeHíbridaGestionadoporelproveedorN/AGB/Mes | B79: IT-NPU-IA-RE-03-4 | C79: IaaS | D79: IaaS Redes | E79: Conexión para Nube Híbrida | F79: Gestionado por el proveedor | G79: N/A | H79: GB/Mes | J79: NO | K79: USD | N79: 36.6 | O79: 2228.03 | P79: 78.51 | Q79: 73 | R79: 41.085 | S79: 26.6675 | T79: 1407.874434 | U79: 203.1386 | V79: 2844.0194 | W79: 30
A80: IaaSIaaSRedesCargaDescargadeDatosenlaNubeAutogestionadoN/AGBtransferidos | B80: IT-NPU-IA-RE-04-1 | C80: IaaS | D80: IaaS Redes | E80: Carga Descarga de Datos en la Nube | F80: Autogestionado | G80: N/A | H80: GB transferidos | J80: NO | K80: USD | N80: 0.01 | O80: 0.4329 | P80: 0.01 | Q80: 0.12 | R80: 380.4667 | S80: 0.087 | T80: 0.01588142434 | U80: 0.0943 | V80: 0.056 | W80: 3.531
A81: IaaSIaaSRedesCargaDescargadeDatosenlaNubeGestionadoporelproveedorN/AGBtransferidos | B81: IT-NPU-IA-RE-04-2 | C81: IaaS | D81: IaaS Redes | E81: Carga Descarga de Datos en la Nube | F81: Gestionado por el proveedor | G81: N/A | H81: GB transferidos | J81: NO | K81: USD | N81: 0.01 | O81: 0.4512 | P81: 0.21 | Q81: 90.12 | R81: 418.5113 | S81: 0.0891 | T81: 0.1958056668 | U81: 0.1037 | V81: 0.056 | W81: 5.2965
A82: IaaSIaaSRedesBalanceadorCargaAplicacionesAutogestionadoN/AUso/Hora | B82: IT-NPU-IA-RE-05-1 | C82: IaaS | D82: IaaS Redes | E82: Balanceador Carga Aplicaciones | F82: Autogestionado | G82: N/A | H82: Uso/Hora | J82: NO | K82: USD | N82: 0.03 | O82: 1.7788 | P82: 0.0225 | Q82: 0.025 | R82: 0.183 | S82: 0.025 | T82: 314.7236842 | U82: 0.6475 | V82: 0.028 | W82: 0.066
A83: IaaSIaaSRedesBalanceadorCargaAplicacionesGestionadoporelproveedorN/AUso/Hora | B83: IT-NPU-IA-RE-05-2 | C83: IaaS | D83: IaaS Redes | E83: Balanceador Carga Aplicaciones | F83: Gestionado por el proveedor | G83: N/A | H83: Uso/Hora | J83: NO | K83: USD | N83: 0.03 | O83: 2.033 | P83: 0.02655 | Q83: 90.025 | R83: 0.2013 | S83: 0.0257 | T83: 386.6933812 | U83: 0.6475 | V83: 0.028 | W83: 0.099
A84: IaaSIaaSRedesTransferenciaDatosenlaNubeAutogestionadoN/AGB/Mes | B84: IT-NPU-IA-RE-06-1 | C84: IaaS | D84: IaaS Redes | E84: Transferencia Datos en la Nube | F84: Autogestionado | G84: N/A | H84: GB/Mes | J84: NO | K84: USD | N84: 4.41 | O84: 0.0398 | P84: 4830.290833 | Q84: 0.0001 | R84: 0.12 | S84: 0.087 | T84: 0.03209088211 | U84: 0.17 | V84: 0.0974 | W84: 0.1059
A85: IaaSIaaSRedesTransferenciaDatosenlaNubeGestionadoporelproveedorN/AGB/Mes | B85: IT-NPU-IA-RE-06-2 | C85: IaaS | D85: IaaS Redes | E85: Transferencia Datos en la Nube | F85: Gestionado por el proveedor | G85: N/A | H85: GB/Mes | J85: NO | K85: USD | N85: 4.41 | O85: 0.0427 | P85: 5699.743183 | Q85: 0.0001 | R85: 0.133 | S85: 0.0891 | T85: 0.2120151245 | U85: 0.17 | V85: 0.0974 | W85: 0.1589
A86: IaaSIaaSRedesEntregaContenidosAutogestionadoN/ATB/Mes | B86: IT-NPU-IA-RE-07-1 | C86: IaaS | D86: IaaS Redes | E86: Entrega Contenidos | F86: Autogestionado | G86: N/A | H86: TB/Mes | J86: NO | K86: USD | N86: 0.08 | O86: 356.0728 | P86: 2590.7175 | Q86: 0.1525 | R86: 8.2944 | S86: 152.5464 | T86: 39.4 | U86: 310.8571 | V86: 100.8 | W86: 197.1475
A87: IaaSIaaSRedesEntregaContenidosGestionadoporelproveedorN/ATB/Mes | B87: IT-NPU-IA-RE-07-2 | C87: IaaS | D87: IaaS Redes | E87: Entrega Contenidos | F87: Gestionado por el proveedor | G87: N/A | H87: TB/Mes | J87: NO | K87: USD | N87: 0.08 | O87: 382.1269 | P87: 3057.04665 | Q87: 90.1525 | R87: 9.1238 | S87: 155.7579 | T87: 53.79393939 | U87: 341.9429 | V87: 100.8 | W87: 295.7213
A88: PaaSPaaSBasesdeDatosPaaSBasesdeDatosAutogestionadoSQLServerstandardPaaS/Hora | B88: IT-NPU-PA-BD-01-1 | C88: PaaS | D88: PaaS Bases de Datos | E88: PaaS Bases de Datos | F88: Autogestionado | G88: SQL Server standard | H88: PaaS/Hora | J88: NO | K88: USD | N88: 12.08 | O88: 12.7926 | P88: 440.13 | Q88: 22.77 | R88: 25.7861 | S88: 26.2887 | T88: 46.65112359 | U88: 12.2428 | V88: 15.716 | W88: 53.7384
A89: PaaSPaaSBasesdeDatosPaaSBasesdeDatosGestionadoporelproveedorSQLServerstandardPaaS/Hora | B89: IT-NPU-PA-BD-01-2 | C89: PaaS | D89: PaaS Bases de Datos | E89: PaaS Bases de Datos | F89: Gestionado por el proveedor | G89: SQL Server standard | H89: PaaS/Hora | J89: NO | K89: USD | N89: 12.08 | O89: 13.7286 | P89: 480.13 | Q89: 112.77 | R89: 28.3647 | S89: 26.8422 | T89: 61.04506298 | U89: 13.4671 | V89: 14.15 | W89: 80.6076
A90: PaaSPaaSBasesdeDatosPaaSBasesdeDatosAutogestionadoSQLserverEnterprisePaaS/Hora | B90: IT-NPU-PA-BD-01-3 | C90: PaaS | D90: PaaS Bases de Datos | E90: PaaS Bases de Datos | F90: Autogestionado | G90: SQL server Enterprise | H90: PaaS/Hora | J90: NO | K90: USD | N90: 37.37 | O90: 29.7926 | P90: 484.53 | Q90: 45.28 | R90: 48.2981 | S90: 26.2887 | T90: 48.95036832 | U90: 44.3 | V90: 37.7935 | W90: 97.2144
A91: PaaSPaaSBasesdeDatosPaaSBasesdeDatosGestionadoporelproveedorSQLserverEnterprisePaaS/Hora | B91: IT-NPU-PA-BD-01-4 | C91: PaaS | D91: PaaS Bases de Datos | E91: PaaS Bases de Datos | F91: Gestionado por el proveedor | G91: SQL server Enterprise | H91: PaaS/Hora | J91: NO | K91: USD | N91: 37.37 | O91: 31.9725 | P91: 524.53 | Q91: 135.28 | R91: 53.1279 | S91: 26.8422 | T91: 63.34430771 | U91: 48.73 | V91: 33.862 | W91: 145.8216
A92: PaaSPaaSBasesdeDatosPaaSBasesdeDatosAutogestionadoSQLserverExpressPaaS/Hora | B92: IT-NPU-PA-BD-01-5 | C92: PaaS | D92: PaaS Bases de Datos | E92: PaaS Bases de Datos | F92: Autogestionado | G92: SQL server Express | H92: PaaS/Hora | J92: NO | K92: USD | N92: 0.09 | O92: 7.0424 | P92: 40.48 | Q92: 6.98 | R92: 12.9621 | S92: 26.2887 | T92: 10.0956886 | U92: 10.9571 | V92: 8.3301 | W92: 3.9878
A93: PaaSPaaSBasesdeDatosPaaSBasesdeDatosGestionadoporelproveedorSQLserverExpressPaaS/Hora | B93: IT-NPU-PA-BD-01-6 | C93: PaaS | D93: PaaS Bases de Datos | E93: PaaS Bases de Datos | F93: Gestionado por el proveedor | G93: SQL server Express | H93: PaaS/Hora | J93: NO | K93: USD | N93: 0.09 | O93: 7.5576 | P93: 60.48 | Q93: 96.98 | R93: 14.2583 | S93: 26.8422 | T93: 11.53508254 | U93: 12.0528 | V93: 7.5554 | W93: 5.9817
A94: PaaSPaaSBasesdeDatosPaaSBasesdeDatosAutogestionadoMySQLEnterprisePaaS/Hora | B94: IT-NPU-PA-BD-01-7 | C94: PaaS | D94: PaaS Bases de Datos | E94: PaaS Bases de Datos | F94: Autogestionado | G94: MySQL Enterprise | H94: PaaS/Hora | J94: NO | K94: USD | N94: 5.6 | O94: 2.2955 | P94: 422.49 | Q94: 6.34 | R94: 10.7167 | S94: 2.4537 | T94: 29.32250642 | U94: 5.5857 | V94: 7.7213 | W94: 21.167
A95: PaaSPaaSBasesdeDatosPaaSBasesdeDatosGestionadoporelproveedorMySQLEnterprisePaaS/Hora | B95: IT-NPU-PA-BD-01-8 | C95: PaaS | D95: PaaS Bases de Datos | E95: PaaS Bases de Datos | F95: Gestionado por el proveedor | G95: MySQL Enterprise | H95: PaaS/Hora | J95: NO | K95: USD | N95: 5.6 | O95: 2.4635 | P95: 460.49 | Q95: 96.34 | R95: 11.7883 | S95: 2.5053 | T95: 30.76190036 | U95: 5.7285 | V95: 7.8389 | W95: 31.7506
A96: PaaSPaaSBasesdeDatosPaaSBasesdeDatosAutogestionadoMariaDBPaaS/Hora | B96: IT-NPU-PA-BD-01-9 | C96: PaaS | D96: PaaS Bases de Datos | E96: PaaS Bases de Datos | F96: Autogestionado | G96: MariaDB | H96: PaaS/Hora | J96: NO | K96: USD | N96: 5.6 | O96: 2.2955 | P96: 422.49 | Q96: 3.14 | R96: 6.3224 | S96: 23.3815 | T96: 29.32250642 | U96: 5.5857 | V96: 6.5798 | W96: 21.167
A97: PaaSPaaSBasesdeDatosPaaSBasesdeDatosGestionadoporelproveedorMariaDBPaaS/Hora | B97: IT-NPU-PA-BD-01-10 | C97: PaaS | D97: PaaS Bases de Datos | E97: PaaS Bases de Datos | F97: Gestionado por el proveedor | G97: MariaDB | H97: PaaS/Hora | J97: NO | K97: USD | N97: 5.6 | O97: 2.4635 | P97: 460.49 | Q97: 93.14 | R97: 6.9547 | S97: 23.8737 | T97: 30.76190036 | U97: 6.1442 | V97: 6.6974 | W97: 31.7506
A98: PaaSPaaSBasesdeDatosPaaSBasesdeDatosAutogestionadoPostgreSQLPaaS/Hora | B98: IT-NPU-PA-BD-01-11 | C98: PaaS | D98: PaaS Bases de Datos | E98: PaaS Bases de Datos | F98: Autogestionado | G98: PostgreSQL | H98: PaaS/Hora | J98: NO | K98: USD | N98: 5.84 | O98: 2.2955 | P98: 344.99 | Q98: 6.36 | R98: 6.3224 | S98: 2.4537 | T98: 29.98078068 | U98: 5.5857 | V98: 6.5798 | W98: 21.751
A99: PaaSPaaSBasesdeDatosPaaSBasesdeDatosGestionadoporelproveedorPostgreSQLPaaS/Hora | B99: IT-NPU-PA-BD-01-12 | C99: PaaS | D99: PaaS Bases de Datos | E99: PaaS Bases de Datos | F99: Gestionado por el proveedor | G99: PostgreSQL | H99: PaaS/Hora | J99: NO | K99: USD | N99: 5.84 | O99: 2.4635 | P99: 422.99 | Q99: 96.36 | R99: 6.9547 | S99: 2.5053 | T99: 31.42017462 | U99: 6.1442 | V99: 6.6974 | W99: 32.6265
A100: PaaSPaaSBasesdeDatosPaaSBasesdeDatosAutogestionadoSQLServerstandardPaaS/Mes | B100: IT-NPU-PA-BD-01-13 | C100: PaaS | D100: PaaS Bases de Datos | E100: PaaS Bases de Datos | F100: Autogestionado | G100: SQL Server standard | H100: PaaS/Mes | J100: NO | K100: USD | N100: 8842.56 | O100: 9338.5328 | P100: 20182 | Q100: 16626.88 | R100: 18823.85 | S100: 19558.7629 | T100: 1576.372851 | U100: 9108.6857 | V100: 11472.6994 | W100: 39336.4935
A101: PaaSPaaSBasesdeDatosPaaSBasesdeDatosGestionadoporelproveedorSQLServerstandardPaaS/Mes | B101: IT-NPU-PA-BD-01-14 | C101: PaaS | D101: PaaS Bases de Datos | E101: PaaS Bases de Datos | F101: Gestionado por el proveedor | G101: SQL Server standard | H101: PaaS/Mes | J101: NO | K101: USD | N101: 8842.56 | O101: 10021.84 | P101: 20382 | Q101: 16986.88 | R101: 20706.235 | S101: 19970.5264 | T101: 1648.342547 | U101: 10019.5542 | V101: 10329.4816 | W101: 59004.7402
A102: PaaSPaaSBasesdeDatosPaaSBasesdeDatosAutogestionadoSQLserverEnterprisePaaS/Mes | B102: IT-NPU-PA-BD-01-15 | C102: PaaS | D102: PaaS Bases de Datos | E102: PaaS Bases de Datos | F102: Autogestionado | G102: SQL server Enterprise | H102: PaaS/Mes | J102: NO | K102: USD | N102: 27354.84 | O102: 21748.5328 | P102: 32173 | Q102: 33060.64 | R102: 35257.61 | S102: 19558.7629 | T102: 3254.821503 | U102: 32959.2 | V102: 27589.2306 | W102: 69994.3892
A103: PaaSPaaSBasesdeDatosPaaSBasesdeDatosGestionadoporelproveedorSQLserverEnterprisePaaS/Mes | B103: IT-NPU-PA-BD-01-16 | C103: PaaS | D103: PaaS Bases de Datos | E103: PaaS Bases de Datos | F103: Gestionado por el proveedor | G103: SQL server Enterprise | H103: PaaS/Mes | J103: NO | K103: USD | N103: 27354.84 | O103: 23339.8888 | P103: 32373 | Q103: 33420.64 | R103: 38783.371 | S103: 19970.5264 | T103: 3326.7912 | U103: 36255.12 | V103: 24719.2416 | W103: 104991.5838
A104: PaaSPaaSBasesdeDatosPaaSBasesdeDatosAutogestionadoSQLserverExpressPaaS/Mes | B104: IT-NPU-PA-BD-01-17 | C104: PaaS | D104: PaaS Bases de Datos | E104: PaaS Bases de Datos | F104: Autogestionado | G104: SQL server Express | H104: PaaS/Mes | J104: NO | K104: USD | N104: 64.42 | O104: 5140.885 | P104: 3426 | Q104: 5098.72 | R104: 9462.33 | S104: 19558.7629 | T104: 50.47844298 | U104: 8152.1142 | V104: 6080.9871 | W104: 2871.1973
A105: PaaSPaaSBasesdeDatosPaaSBasesdeDatosGestionadoporelproveedorSQLserverExpressPaaS/Mes | B105: IT-NPU-PA-BD-01-18 | C105: PaaS | D105: PaaS Bases de Datos | E105: PaaS Bases de Datos | F105: Gestionado por el proveedor | G105: SQL server Express | H105: PaaS/Mes | J105: NO | K105: USD | N105: 64.42 | O105: 5517.0474 | P105: 3626 | Q105: 5458.72 | R105: 10408.563 | S105: 19970.5264 | T105: 64.87238238 | U105: 8967.3257 | V105: 5515.4528 | W105: 4306.796
A106: PaaSPaaSBasesdeDatosPaaSBasesdeDatosAutogestionadoMySQLEnterprisePaaS/Mes | B106: IT-NPU-PA-BD-01-19 | C106: PaaS | D106: PaaS Bases de Datos | E106: PaaS Bases de Datos | F106: Autogestionado | G106: MySQL Enterprise | H106: PaaS/Mes | J106: NO | K106: USD | N106: 4099.2 | O106: 9098.498 | P106: 9008.82 | Q106: 4634.77 | R106: 7823.175 | S106: 1825.4846 | T106: 505.4296842 | U106: 4155.7714 | V106: 5636.5661 | W106: 15240.2668
A107: PaaSPaaSBasesdeDatosPaaSBasesdeDatosGestionadoporelproveedorMySQLEnterprisePaaS/Mes | B107: IT-NPU-PA-BD-01-20 | C107: PaaS | D107: PaaS Bases de Datos | E107: PaaS Bases de Datos | F107: Gestionado por el proveedor | G107: MySQL Enterprise | H107: PaaS/Mes | J107: NO | K107: USD | N107: 4099.2 | O107: 9764.2417 | P107: 9208.82 | Q107: 4994.77 | R107: 8605.4925 | S107: 1863.9158 | T107: 577.3993812 | U107: 4571.3485 | V107: 5722.5661 | W107: 22860.4002
A108: PaaSPaaSBasesdeDatosPaaSBasesdeDatosAutogestionadoMariaDBPaaS/Mes | B108: IT-NPU-PA-BD-01-21 | C108: PaaS | D108: PaaS Bases de Datos | E108: PaaS Bases de Datos | F108: Autogestionado | G108: MariaDB | H108: PaaS/Mes | J108: NO | K108: USD | N108: 4099.2 | O108: 9098.498 | P108: 9008.82 | Q108: 2295.52 | R108: 4615.37 | S108: 17395.7939 | T108: 505.4296842 | U108: 4155.7714 | V108: 4803.2328 | W108: 15240.2668
A109: PaaSPaaSBasesdeDatosPaaSBasesdeDatosGestionadoporelproveedorMariaDBPaaS/Mes | B109: IT-NPU-PA-BD-01-22 | C109: PaaS | D109: PaaS Bases de Datos | E109: PaaS Bases de Datos | F109: Gestionado por el proveedor | G109: MariaDB | H109: PaaS/Mes | J109: NO | K109: USD | N109: 4099.2 | O109: 9764.2417 | P109: 9208.82 | Q109: 2655.52 | R109: 5076.907 | S109: 17762.0211 | T109: 577.3993812 | U109: 4571.3485 | V109: 4889.2328 | W109: 22860.4002
A110: PaaSPaaSBasesdeDatosPaaSBasesdeDatosAutogestionadoPostgreSQLPaaS/Mes | B110: IT-NPU-PA-BD-01-23 | C110: PaaS | D110: PaaS Bases de Datos | E110: PaaS Bases de Datos | F110: Autogestionado | G110: PostgreSQL | H110: PaaS/Mes | J110: NO | K110: USD | N110: 4277.81 | O110: 9098.498 | P110: 7110.11 | Q110: 4642.94 | R110: 4615.37 | S110: 1825.4846 | T110: 510.9698947 | U110: 4155.7714 | V110: 4803.2328 | W110: 15660.7147
A111: PaaSPaaSBasesdeDatosPaaSBasesdeDatosGestionadoporelproveedorPostgreSQLPaaS/Mes | B111: IT-NPU-PA-BD-01-24 | C111: PaaS | D111: PaaS Bases de Datos | E111: PaaS Bases de Datos | F111: Gestionado por el proveedor | G111: PostgreSQL | H111: PaaS/Mes | J111: NO | K111: USD | N111: 4277.81 | O111: 9764.2417 | P111: 7220.11 | Q111: 5002.94 | R111: 5076.907 | S111: 1863.9158 | T111: 582.9395917 | U111: 4571.3485 | V111: 4889.2328 | W111: 23491.0721
A112: SaaSSaaSAPIGestióndeAPIAutogestionadoN/AAPI/Hora | B112: IT-NPU-SA-AP-01-1 | C112: SaaS | D112: SaaS API | E112: Gestión de API | F112: Autogestionado | G112: N/A | H112: API/Hora | J112: NO | K112: USD | N112: 3.8 | O112: 0.0636 | P112: 3.5 | Q112: 0.82 | R112: 3.424658 | S112: 3.3506 | T112: 0.1803789474 | U112: 1.1536 | V112: 0.2352 | W112: 8.5921
A113: SaaSSaaSAPIGestióndeAPIGestionadoporelproveedorN/AAPI/Hora | B113: IT-NPU-SA-AP-01-2 | C113: SaaS | D113: SaaS API | E113: Gestión de API | F113: Gestionado por el proveedor | G113: N/A | H113: API/Hora | J113: NO | K113: USD | N113: 3.8 | O113: 0.0683 | P113: 3.9 | Q113: 90.82 | R113: 3.7671 | S113: 3.4211 | T113: 0.3603031898 | U113: 1.269 | V113: 0.2352 | W113: 12.8882
A114: PaaSPaaSMultimediaStreamingAutogestionadoN/APaaS/Hora | B114: IT-NPU-PA-MU-02-1 | C114: PaaS | D114: PaaS Multimedia | E114: Streaming | F114: Autogestionado | G114: N/A | H114: PaaS/Hora | J114: NO | K114: USD | N114: 0.02 | O114: 0.2163 | P114: 0.32 | Q114: 0.2 | R114: 9.684 | S114: 3.1547 | T114: 57.71052632 | U114: 0.1053 | V114: 0.0001 | W114: 1.3277
A115: PaaSPaaSMultimediaStreamingGestionadoporelproveedorN/APaaS/Hora | B115: IT-NPU-PA-MU-02-2 | C115: PaaS | D115: PaaS Multimedia | E115: Streaming | F115: Gestionado por el proveedor | G115: N/A | H115: PaaS/Hora | J115: NO | K115: USD | N115: 0.02 | O115: 0.2322 | P115: 1.32 | Q115: 90.2 | R115: 10.6525 | S115: 3.2211 | T115: 582.9395917 | U115: 0.1158 | V115: 0.0001 | W115: 1.9915
A116: PaaSPaaSMultimediaStreamingAutogestionadoN/APaaS/Mes | B116: IT-NPU-PA-MU-02-3 | C116: PaaS | D116: PaaS Multimedia | E116: Streaming | F116: Autogestionado | G116: N/A | H116: PaaS/Mes | J116: NO | K116: USD | N116: 14.27 | O116: 157.9545 | P116: 236.95 | Q116: 150 | R116: 7069.3533 | S116: 2347.0516 | T116: 57.71052632 | U116: 78.3286 | V116: 0.0974 | W116: 955.9123
A117: PaaSPaaSMultimediaStreamingGestionadoporelproveedorN/APaaS/Mes | B117: IT-NPU-PA-MU-02-4 | C117: PaaS | D117: PaaS Multimedia | E117: Streaming | F117: Gestionado por el proveedor | G117: N/A | H117: PaaS/Mes | J117: NO | K117: USD | N117: 14.27 | O117: 169.5121 | P117: 296 | Q117: 510 | R117: 7776.2887 | S117: 2396.4632 | T117: 72.10446571 | U117: 86.1614 | V117: 0.0974 | W117: 1433.8685
A118: PaaSPaaSServidoresdeAplicacionesServidordeAplicacionesAutogestionadoGlassfishEnterpriseserverPaaS/Hora | B118: IT-NPU-PA-SA-01-1 | C118: PaaS | D118: PaaS Servidores de Aplicaciones | E118: Servidor de Aplicaciones | F118: Autogestionado | G118: Glassfish Enterprise server | H118: PaaS/Hora | J118: NO | K118: USD | N118: 0.38 | O118: 12.4637 | P118: 2.31 | Q118: 6.98 | R118: 5.7625 | S118: 0.6702 | T118: 568.8329851 | U118: 0.7974 | V118: 7.2761 | W118: 17.8448
A119: PaaSPaaSServidoresdeAplicacionesServidordeAplicacionesGestionadoporelproveedorGlassfishEnterpriseserverPaaS/Hora | B119: IT-NPU-PA-SA-01-2 | C119: PaaS | D119: PaaS Servidores de Aplicaciones | E119: Servidor de Aplicaciones | F119: Gestionado por el proveedor | G119: Glassfish Enterprise server | H119: PaaS/Hora | J119: NO | K119: USD | N119: 0.38 | O119: 13.3757 | P119: 2.51 | Q119: 96.98 | R119: 6.3388 | S119: 0.6843 | T119: 640.8026821 | U119: 0.8772 | V119: 7.4131 | W119: 26.7671
A120: PaaSPaaSServidoresdeAplicacionesServidordeAplicacionesAutogestionadoJbossAS/WildFlyPaaS/Hora | B120: IT-NPU-PA-SA-01-3 | C120: PaaS | D120: PaaS Servidores de Aplicaciones | E120: Servidor de Aplicaciones | F120: Autogestionado | G120: Jboss AS / WildFly | H120: PaaS/Hora | J120: NO | K120: USD | N120: 0.38 | O120: 19.9357 | P120: 2.31 | Q120: 6.98 | R120: 5.7625 | S120: 0.6702 | T120: 11.7351394 | U120: 2.3815 | V120: 6.6939 | W120: 12.7161
A121: PaaSPaaSServidoresdeAplicacionesServidordeAplicacionesGestionadoporelproveedorJbossAS/WildFlyPaaS/Hora | B121: IT-NPU-PA-SA-01-4 | C121: PaaS | D121: PaaS Servidores de Aplicaciones | E121: Servidor de Aplicaciones | F121: Gestionado por el proveedor | G121: Jboss AS / WildFly | H121: PaaS/Hora | J121: NO | K121: USD | N121: 0.38 | O121: 21.3944 | P121: 2.51 | Q121: 96.98 | R121: 6.3388 | S121: 0.6843 | T121: 13.17453334 | U121: 2.6197 | V121: 6.7624 | W121: 19.0741
A122: PaaSPaaSServidoresdeAplicacionesServidordeAplicacionesAutogestionadoJbosswebserverPaaS/Hora | B122: IT-NPU-PA-SA-01-5 | C122: PaaS | D122: PaaS Servidores de Aplicaciones | E122: Servidor de Aplicaciones | F122: Autogestionado | G122: Jboss web server | H122: PaaS/Hora | J122: NO | K122: USD | N122: 0.38 | O122: 19.9357 | P122: 2.31 | Q122: 6.98 | R122: 5.7625 | S122: 0.6702 | T122: 170.946183 | U122: 0.4614 | V122: 6.751 | W122: 13.8195
A123: PaaSPaaSServidoresdeAplicacionesServidordeAplicacionesGestionadoporelproveedorJbosswebserverPaaS/Hora | B123: IT-NPU-PA-SA-01-6 | C123: PaaS | D123: PaaS Servidores de Aplicaciones | E123: Servidor de Aplicaciones | F123: Gestionado por el proveedor | G123: Jboss web server | H123: PaaS/Hora | J123: NO | K123: USD | N123: 0.38 | O123: 21.3944 | P123: 2.51 | Q123: 96.98 | R123: 6.3388 | S123: 0.6843 | T123: 185.3401224 | U123: 0.5076 | V123: 6.8195 | W123: 20.7293
A124: PaaSPaaSServidoresdeAplicacionesServidordeAplicacionesAutogestionadoJbossEAPPaaS/Hora | B124: IT-NPU-PA-SA-01-7 | C124: PaaS | D124: PaaS Servidores de Aplicaciones | E124: Servidor de Aplicaciones | F124: Autogestionado | G124: Jboss EAP | H124: PaaS/Hora | J124: NO | K124: USD | N124: 0.38 | O124: 19.9357 | P124: 2.31 | Q124: 6.98 | R124: 5.7625 | S124: 0.6702 | T124: 909.5672822 | U124: 2.3815 | V124: 8.3922 | W124: 14.3508
A125: PaaSPaaSServidoresdeAplicacionesServidordeAplicacionesGestionadoporelproveedorJbossEAPPaaS/Hora | B125: IT-NPU-PA-SA-01-8 | C125: PaaS | D125: PaaS Servidores de Aplicaciones | E125: Servidor de Aplicaciones | F125: Gestionado por el proveedor | G125: Jboss EAP | H125: PaaS/Hora | J125: NO | K125: USD | N125: 0.38 | O125: 21.3944 | P125: 2.51 | Q125: 96.98 | R125: 6.3388 | S125: 0.6843 | T125: 981.5369792 | U125: 2.6197 | V125: 7.6791 | W125: 21.5262
A126: PaaSPaaSServidoresdeAplicacionesServidordeAplicacionesAutogestionadoInternetInformationServicesPaaS/Hora | B126: IT-NPU-PA-SA-01-9 | C126: PaaS | D126: PaaS Servidores de Aplicaciones | E126: Servidor de Aplicaciones | F126: Autogestionado | G126: Internet Information Services | H126: PaaS/Hora | J126: NO | K126: USD | N126: 0.38 | O126: 12.4637 | P126: 4.47 | Q126: 6.98 | R126: 9.5169 | S126: 0.7011 | T126: 0.3578947368 | U126: 0.9714 | V126: 11.0889 | W126: 17.8448
A127: PaaSPaaSServidoresdeAplicacionesServidordeAplicacionesGestionadoporelproveedorInternetInformationServicesPaaS/Hora | B127: IT-NPU-PA-SA-01-10 | C127: PaaS | D127: PaaS Servidores de Aplicaciones | E127: Servidor de Aplicaciones | F127: Gestionado por el proveedor | G127: Internet Information Services | H127: PaaS/Hora | J127: NO | K127: USD | N127: 0.38 | O127: 13.3757 | P127: 5.47 | Q127: 96.98 | R127: 10.4686 | S127: 0.7158 | T127: 0.5378189793 | U127: 1.0686 | V127: 11.2065 | W127: 26.7671
A128: PaaSPaaSServidoresdeAplicacionesServidordeAplicacionesAutogestionadoGlassfishEnterpriseserverPaaS/Mes | B128: IT-NPU-PA-SA-01-11 | C128: PaaS | D128: PaaS Servidores de Aplicaciones | E128: Servidor de Aplicaciones | F128: Autogestionado | G128: Glassfish Enterprise server | H128: PaaS/Mes | J128: NO | K128: USD | N128: 278.16 | O128: 9098.498 | P128: 1683.53 | Q128: 5098.72 | R128: 4206.6533 | S128: 498.5568 | T128: 829.7382483 | U128: 593.3 | V128: 5311.5661 | W128: 12848.2262
A129: PaaSPaaSServidoresdeAplicacionesServidordeAplicacionesGestionadoporelproveedorGlassfishEnterpriseserverPaaS/Mes | B129: IT-NPU-PA-SA-01-12 | C129: PaaS | D129: PaaS Servidores de Aplicaciones | E129: Servidor de Aplicaciones | F129: Gestionado por el proveedor | G129: Glassfish Enterprise server | H129: PaaS/Mes | J129: NO | K129: USD | N129: 278.16 | O129: 9764.2417 | P129: 1883.53 | Q129: 5458.72 | R129: 4627.3187 | S129: 509.0527 | T129: 901.7079452 | U129: 652.63 | V129: 5411.5661 | W129: 19272.3392
A130: PaaSPaaSServidoresdeAplicacionesServidordeAplicacionesAutogestionadoJbossAS/WildFlyPaaS/Mes | B130: IT-NPU-PA-SA-01-13 | C130: PaaS | D130: PaaS Servidores de Aplicaciones | E130: Servidor de Aplicaciones | F130: Autogestionado | G130: Jboss AS / WildFly | H130: PaaS/Mes | J130: NO | K130: USD | N130: 278.16 | O130: 14553.0434 | P130: 1683.53 | Q130: 5098.72 | R130: 4206.6533 | S130: 498.5568 | T130: 272.6404026 | U130: 1771.8714 | V130: 4886.5661 | W130: 9155.5652
A131: =SUBSTITUTE(C131&D131&E131&F131&G131&H131," ","") -> PaaSPaaSServidoresdeAplicacionesServidordeAplicacionesGestionadoporelproveedorJbossAS/WildFlyPaaS/Mes | B131: IT-NPU-PA-SA-01-14 | C131: PaaS | D131: PaaS Servidores de Aplicaciones | E131: Servidor de Aplicaciones | F131: Gestionado por el proveedor | G131: Jboss AS / WildFly | H131: PaaS/Mes | J131: NO | K131: USD | N131: 278.16 | O131: 15617.9002 | P131: 1883.53 | Q131: 5458.72 | R131: 4627.3187 | S131: 509.0527 | T131: 344.6100995 | U131: 1949.0586 | V131: 4936.5661 | W131: 13733.3478
A132: PaaSPaaSServidoresdeAplicacionesServidordeAplicacionesAutogestionadoJbosswebserverPaaS/Mes | B132: IT-NPU-PA-SA-01-15 | C132: PaaS | D132: PaaS Servidores de Aplicaciones | E132: Servidor de Aplicaciones | F132: Autogestionado | G132: Jboss web server | H132: PaaS/Mes | J132: NO | K132: USD | N132: 278.16 | O132: 14553.0434 | P132: 1683.53 | Q132: 5098.72 | R132: 4206.6533 | S132: 498.5568 | T132: 431.8514461 | U132: 343.3 | V132: 4928.2328 | W132: 9950.0402
A133: PaaSPaaSServidoresdeAplicacionesServidordeAplicacionesGestionadoporelproveedorJbosswebserverPaaS/Mes | B133: IT-NPU-PA-SA-01-16 | C133: PaaS | D133: PaaS Servidores de Aplicaciones | E133: Servidor de Aplicaciones | F133: Gestionado por el proveedor | G133: Jboss web server | H133: PaaS/Mes | J133: NO | K133: USD | N133: 278.16 | O133: 15617.9002 | P133: 1883.53 | Q133: 5458.72 | R133: 4627.3187 | S133: 509.0527 | T133: 503.8211431 | U133: 377.63 | V133: 4978.2328 | W133: 14925.0603
A134: PaaSPaaSServidoresdeAplicacionesServidordeAplicacionesAutogestionadoJbossEAPPaaS/Mes | B134: IT-NPU-PA-SA-01-17 | C134: PaaS | D134: PaaS Servidores de Aplicaciones | E134: Servidor de Aplicaciones | F134: Autogestionado | G134: Jboss EAP | H134: PaaS/Mes | J134: NO | K134: USD | N134: 278.16 | O134: 14553.0434 | P134: 1683.53 | Q134: 5098.72 | R134: 4206.6533 | S134: 498.5568 | T134: 1170.472545 | U134: 1771.8714 | V134: 6126.2874 | W134: 10332.5652
A135: PaaSPaaSServidoresdeAplicacionesServidordeAplicacionesGestionadoporelproveedorJbossEAPPaaS/Mes | B135: IT-NPU-PA-SA-01-18 | C135: PaaS | D135: PaaS Servidores de Aplicaciones | E135: Servidor de Aplicaciones | F135: Gestionado por el proveedor | G135: Jboss EAP | H135: PaaS/Mes | J135: NO | K135: USD | N135: 278.16 | O135: 15617.9002 | P135: 1883.53 | Q135: 5458.72 | R135: 4627.3187 | S135: 509.0527 | T135: 1242.442242 | U135: 1949.0586 | V135: 6176.2874 | W135: 15498.8478
A136: PaaSPaaSServidoresdeAplicacionesServidordeAplicacionesAutogestionadoInternetInformationServicesPaaS/Mes | B136: IT-NPU-PA-SA-01-19 | C136: PaaS | D136: PaaS Servidores de Aplicaciones | E136: Servidor de Aplicaciones | F136: Autogestionado | G136: Internet Information Services | H136: PaaS/Mes | J136: NO | K136: USD | N136: 278.16 | O136: 9098.498 | P136: 3323.5 | Q136: 5098.72 | R136: 6947.3533 | S136: 521.5671 | T136: 261.2631579 | U136: 722.7429 | V136: 8094.8904 | W136: 12848.2262
A137: PaaSPaaSServidoresdeAplicacionesServidordeAplicacionesGestionadoporelproveedorInternetInformationServicesPaaS/Mes | B137: IT-NPU-PA-SA-01-20 | C137: PaaS | D137: PaaS Servidores de Aplicaciones | E137: Servidor de Aplicaciones | F137: Gestionado por el proveedor | G137: Internet Information Services | H137: PaaS/Mes | J137: NO | K137: USD | N137: 278.16 | O137: 9764.2417 | P137: 3763.5 | Q137: 5458.72 | R137: 7642.0887 | S137: 532.5474 | T137: 275.6570973 | U137: 795.0171 | V137: 8180.8904 | W137: 19272.3392
A138: PaaSPaaSServidoresdeAplicacionesDes,prueydespldeAppMóvilAutogestionadoN/APaaS/Hora | B138: IT-NPU-PA-SA-02-1 | C138: PaaS | D138: PaaS Servidores de Aplicaciones | E138: Des, prue y despl de App Móvil | F138: Autogestionado | G138: N/A | H138: PaaS/Hora | J138: NO | K138: USD | N138: 0.6 | O138: 5.4983 | P138: 0.416 | Q138: 25 | R138: 3.1087 | S138: 0.7011 | T138: 0.06710526316 | U138: 0.425 | V138: 3.0734 | W138: 107.6702
A139: PaaSPaaSServidoresdeAplicacionesDes,prueydespldeAppMóvilGestionadoporelproveedorN/APaaS/Hora | B139: IT-NPU-PA-SA-02-2 | C139: PaaS | D139: PaaS Servidores de Aplicaciones | E139: Des, prue y despl de App Móvil | F139: Gestionado por el proveedor | G139: N/A | H139: PaaS/Hora | J139: NO | K139: USD | N139: 0.6 | O139: 5.9006 | P139: 0.69 | Q139: 115 | R139: 3.4196 | S139: 0.7158 | T139: 0.2470295056 | U139: 0.4675 | V139: 3.4422 | W139: 161.5054
A140: PaaSPaaSServidoresdeAplicacionesDes,prueydespldeAppMóvilAutogestionadoN/APaaS/Mes | B140: IT-NPU-PA-SA-02-3 | C140: PaaS | D140: PaaS Servidores de Aplicaciones | E140: Des, prue y despl de App Móvil | F140: Autogestionado | G140: N/A | H140: PaaS/Mes | J140: NO | K140: USD | N140: 438.95 | O140: 4013.7167 | P140: 300 | Q140: 25 | R140: 2269.37 | S140: 521.5671 | T140: 48.98684211 | U140: 316.2 | V140: 2243.5616 | W140: 77522.5754
A141: PaaSPaaSServidoresdeAplicacionesDes,prueydespldeAppMóvilGestionadoporelproveedorN/APaaS/Mes | B141: IT-NPU-PA-SA-02-4 | C141: PaaS | D141: PaaS Servidores de Aplicaciones | E141: Des, prue y despl de App Móvil | F141: Gestionado por el proveedor | G141: N/A | H141: PaaS/Mes | J141: NO | K141: USD | N141: 438.95 | O141: 4307.4032 | P141: 375 | Q141: 115 | R141: 2496.307 | S141: 532.5474 | T141: 50.42623604 | U141: 347.82 | V141: 2243.5616 | W141: 116283.863
A142: PaaSPaaSServidoresdeAplicacionesDes,prueydespldeAppWebAutogestionadoN/APaaS/Hora | B142: IT-NPU-PA-SA-03-1 | C142: PaaS | D142: PaaS Servidores de Aplicaciones | E142: Des, prue y despl de App Web | F142: Autogestionado | G142: N/A | H142: PaaS/Hora | J142: NO | K142: USD | N142: 0.45 | O142: 1.5352 | P142: 0.42 | Q142: 0.4 | R142: 2.9441 | S142: 0.7011 | T142: 0.06710526316 | U142: 0.425 | V142: 3.0734 | W142: 107.6702
A143: PaaSPaaSServidoresdeAplicacionesDes,prueydespldeAppWebGestionadoporelproveedorN/APaaS/Hora | B143: IT-NPU-PA-SA-03-2 | C143: PaaS | D143: PaaS Servidores de Aplicaciones | E143: Des, prue y despl de App Web | F143: Gestionado por el proveedor | G143: N/A | H143: PaaS/Hora | J143: NO | K143: USD | N143: 0.45 | O143: 1.6475 | P143: 0.525 | Q143: 90.4 | R143: 3.2385 | S143: 0.7158 | T143: 0.2470295056 | U143: 0.4675 | V143: 3.4422 | W143: 161.5054
A144: PaaSPaaSServidoresdeAplicacionesDes,prueydespldeAppWebAutogestionadoN/APaaS/Mes | B144: IT-NPU-PA-SA-03-3 | C144: PaaS | D144: PaaS Servidores de Aplicaciones | E144: Des, prue y despl de App Web | F144: Autogestionado | G144: N/A | H144: PaaS/Mes | J144: NO | K144: USD | N144: 326.49 | O144: 1120.6547 | P144: 300 | Q144: 273.98 | R144: 2149.18 | S144: 521.5671 | T144: 48.98684211 | U144: 316.2 | V144: 2243.5616 | W144: 77522.5754
A145: PaaSPaaSServidoresdeAplicacionesDes,prueydespldeAppWebGestionadoporelproveedorN/APaaS/Mes | B145: IT-NPU-PA-SA-03-4 | C145: PaaS | D145: PaaS Servidores de Aplicaciones | E145: Des, prue y despl de App Web | F145: Gestionado por el proveedor | G145: N/A | H145: PaaS/Mes | J145: NO | K145: USD | N145: 326.49 | O145: 1202.6539 | P145: 375 | Q145: 633.98 | R145: 2364.098 | S145: 532.5474 | T145: 63.3807815 | U145: 347.82 | V145: 2243.5616 | W145: 116283.863
A146: PaaSPaaSServidoresdeAplicacionesServidoresWebAutogestionadoApachePaaS/Hora | B146: IT-NPU-PA-SA-04-1 | C146: PaaS | D146: PaaS Servidores de Aplicaciones | E146: Servidores Web | F146: Autogestionado | G146: Apache | H146: PaaS/Hora | J146: NO | K146: USD | N146: 0.91 | O146: 12.4637 | P146: 2.31 | Q146: 3.87 | R146: 5.6769 | S146: 0.7011 | T146: 0.34 | U146: 0.9228 | V146: 6.5798 | W146: 12.5605
A147: PaaSPaaSServidoresdeAplicacionesServidoresWebGestionadoporelproveedorApachePaaS/Hora | B147: IT-NPU-PA-SA-04-2 | C147: PaaS | D147: PaaS Servidores de Aplicaciones | E147: Servidores Web | F147: Gestionado por el proveedor | G147: Apache | H147: PaaS/Hora | J147: NO | K147: USD | N147: 0.91 | O147: 13.3757 | P147: 2.88 | Q147: 93.87 | R147: 6.2446 | S147: 0.7158 | T147: 0.6998484848 | U147: 1.0151 | V147: 6.6974 | W147: 18.8408
A148: PaaSPaaSServidoresdeAplicacionesServidoresWebAutogestionadoIIS(InternetInformationsserver)PaaS/Hora | B148: IT-NPU-PA-SA-04-3 | C148: PaaS | D148: PaaS Servidores de Aplicaciones | E148: Servidores Web | F148: Autogestionado | G148: IIS ( Internet Informations server) | H148: PaaS/Hora | J148: NO | K148: USD | N148: 1.1 | O148: 12.4637 | P148: 4.47 | Q148: 6.98 | R148: 9.5169 | S148: 0.7011 | T148: 0.3578947368 | U148: 0.9714 | V148: 11.0889 | W148: 17.8448
A149: PaaSPaaSServidoresdeAplicacionesServidoresWebGestionadoporelproveedorIIS(InternetInformationsserver)PaaS/Hora | B149: IT-NPU-PA-SA-04-4 | C149: PaaS | D149: PaaS Servidores de Aplicaciones | E149: Servidores Web | F149: Gestionado por el proveedor | G149: IIS ( Internet Informations server) | H149: PaaS/Hora | J149: NO | K149: USD | N149: 1.1 | O149: 13.3757 | P149: 5.58 | Q149: 96.98 | R149: 10.4686 | S149: 0.7158 | T149: 0.7177432217 | U149: 1.0686 | V149: 11.2065 | W149: 26.7671
A150: PaaSPaaSServidoresdeAplicacionesServidoresWebAutogestionadoTomcatPaaS/Hora | B150: IT-NPU-PA-SA-04-5 | C150: PaaS | D150: PaaS Servidores de Aplicaciones | E150: Servidores Web | F150: Autogestionado | G150: Tomcat | H150: PaaS/Hora | J150: NO | K150: USD | N150: 0.91 | O150: 12.4637 | P150: 2.31 | Q150: 3.87 | R150: 5.6769 | S150: 0.7011 | T150: 0.34 | U150: 0.9228 | V150: 6.5798 | W150: 12.5605
A151: PaaSPaaSServidoresdeAplicacionesServidoresWebGestionadoporelproveedorTomcatPaaS/Hora | B151: IT-NPU-PA-SA-04-6 | C151: PaaS | D151: PaaS Servidores de Aplicaciones | E151: Servidores Web | F151: Gestionado por el proveedor | G151: Tomcat | H151: PaaS/Hora | J151: NO | K151: USD | N151: 0.91 | O151: 13.3757 | P151: 2.88 | Q151: 93.87 | R151: 6.2446 | S151: 0.7158 | T151: 0.6998484848 | U151: 1.0151 | V151: 6.6974 | W151: 18.8408
A152: PaaSPaaSServidoresdeAplicacionesServidoresWebAutogestionadoApachePaaS/Mes | B152: IT-NPU-PA-SA-04-7 | C152: PaaS | D152: PaaS Servidores de Aplicaciones | E152: Servidores Web | F152: Autogestionado | G152: Apache | H152: PaaS/Mes | J152: NO | K152: USD | N152: 669.43 | O152: 9098.498 | P152: 1683.53 | Q152: 2828 | R152: 4144.1533 | S152: 521.5671 | T152: 248.2 | U152: 686.6 | V152: 4803.2328 | W152: 9043.5619
A153: PaaSPaaSServidoresdeAplicacionesServidoresWebGestionadoporelproveedorApachePaaS/Mes | B153: IT-NPU-PA-SA-04-8 | C153: PaaS | D153: PaaS Servidores de Aplicaciones | E153: Servidores Web | F153: Gestionado por el proveedor | G153: Apache | H153: PaaS/Mes | J153: NO | K153: USD | N153: 669.43 | O153: 9764.2417 | P153: 1883.53 | Q153: 3188 | R153: 4558.5687 | S153: 532.5474 | T153: 320.169697 | U153: 755.26 | V153: 4889.2328 | W153: 13565.3428
A154: PaaSPaaSServidoresdeAplicacionesServidoresWebAutogestionadoIIS(InternetInformationsserver)PaaS/Mes | B154: IT-NPU-PA-SA-04-9 | C154: PaaS | D154: PaaS Servidores de Aplicaciones | E154: Servidores Web | F154: Autogestionado | G154: IIS (Internet Informations server) | H154: PaaS/Mes | J154: NO | K154: USD | N154: 804.13 | O154: 9098.498 | P154: 3323.5 | Q154: 5098.72 | R154: 6947.3533 | S154: 521.5671 | T154: 261.2631579 | U154: 722.7429 | V154: 8094.8904 | W154: 12848.2262
A155: PaaSPaaSServidoresdeAplicacionesServidoresWebGestionadoporelproveedorIIS(InternetInformationsserver)PaaS/Mes | B155: IT-NPU-PA-SA-04-10 | C155: PaaS | D155: PaaS Servidores de Aplicaciones | E155: Servidores Web | F155: Gestionado por el proveedor | G155: IIS (Internet Informations server) | H155: PaaS/Mes | J155: NO | K155: USD | N155: 804.13 | O155: 9764.2417 | P155: 3763.5 | Q155: 5458.72 | R155: 7642.0887 | S155: 532.5474 | T155: 333.2328549 | U155: 795.0171 | V155: 8180.8904 | W155: 19272.3392
A156: PaaSPaaSServidoresdeAplicacionesServidoresWebAutogestionadoTomcatPaaS/Mes | B156: IT-NPU-PA-SA-04-11 | C156: PaaS | D156: PaaS Servidores de Aplicaciones | E156: Servidores Web | F156: Autogestionado | G156: Tomcat | H156: PaaS/Mes | J156: NO | K156: USD | N156: 669.43 | O156: 9098.498 | P156: 1683.53 | Q156: 2828 | R156: 4144.1533 | S156: 521.5671 | T156: 248.2 | U156: 686.6 | V156: 4803.2328 | W156: 9043.5619
A157: PaaSPaaSServidoresdeAplicacionesServidoresWebGestionadoporelproveedorTomcatPaaS/Mes | B157: IT-NPU-PA-SA-04-12 | C157: PaaS | D157: PaaS Servidores de Aplicaciones | E157: Servidores Web | F157: Gestionado por el proveedor | G157: Tomcat | H157: PaaS/Mes | J157: NO | K157: USD | N157: 669.43 | O157: 9764.2417 | P157: 1883.53 | Q157: 3188 | R157: 4558.5687 | S157: 532.5474 | T157: 320.169697 | U157: 755.26 | V157: 4889.2328 | W157: 13565.3428
A158: PaaSPaaSSeguridadApplianceseguridadvirtualautoescalableAutogestionadoN/APaaS/Hora | B158: IT-NPU-PA-SE-01-1 | C158: PaaS | D158: PaaS Seguridad | E158: Appliance seguridad virtual autoescalable | F158: Autogestionado | G158: N/A | H158: PaaS/Hora | J158: NO | K158: USD | N158: 0.03 | O158: 16.5116 | P158: 4.26 | Q158: 2.43 | R158: 3.7902 | S158: 2.4691 | T158: 214.7368421 | U158: 0.51 | V158: 4.794 | W158: 3.9971
A159: PaaSPaaSSeguridadApplianceseguridadvirtualautoescalableGestionadoporelproveedorN/APaaS/Hora | B159: IT-NPU-PA-SE-01-2 | C159: PaaS | D159: PaaS Seguridad | E159: Appliance seguridad virtual autoescalable | F159: Gestionado por el proveedor | G159: N/A | H159: PaaS/Hora | J159: NO | K159: USD | N159: 0.03 | O159: 17.7197 | P159: 4.36 | Q159: 92.43 | R159: 4.1692 | S159: 2.5211 | T159: 286.7065391 | U159: 0.51 | V159: 4.794 | W159: 5.9956
A160: PaaSPaaSSeguridadApplianceseguridadvirtualautoescalableAutogestionadoN/APaaS/Mes | B160: IT-NPU-PA-SE-01-3 | C160: PaaS | D160: PaaS Seguridad | E160: Appliance seguridad virtual autoescalable | F160: Autogestionado | G160: N/A | H160: PaaS/Mes | J160: NO | K160: USD | N160: 21.96 | O160: 12053.4091 | P160: 3000 | Q160: 1772.07 | R160: 2766.8142 | S160: 1836.9897 | T160: 214.7368421 | U160: 382.11 | V160: 3499.6025 | W160: 2973.8364
A161: PaaSPaaSSeguridadApplianceseguridadvirtualautoescalableGestionadoporelproveedorN/APaaS/Mes | B161: IT-NPU-PA-SE-01-4 | C161: PaaS | D161: PaaS Seguridad | E161: Appliance seguridad virtual autoescalable | F161: Gestionado por el proveedor | G161: N/A | H161: PaaS/Mes | J161: NO | K161: USD | N161: 21.96 | O161: 12935.3659 | P161: 3700 | Q161: 2132.07 | R161: 3043.4956 | S161: 1875.6632 | T161: 286.7065391 | U161: 382.11 | V161: 3499.6025 | W161: 4460.7547
A162: PaaSPaaSSeguridadWAFautoescalableAutogestionadoN/APaaS/Hora | B162: IT-NPU-PA-SE-02-1 | C162: PaaS | D162: PaaS Seguridad | E162: WAF autoescalable | F162: Autogestionado | G162: N/A | H162: PaaS/Hora | J162: NO | K162: USD | N162: 0.02 | O162: 16.3256 | P162: 0.07 | Q162: 0.27 | R162: 0.1872 | S162: 4.098 | T162: 292.6147368 | U162: 0.62 | V162: 4.6855 | W162: 3.9971
A163: PaaSPaaSSeguridadWAFautoescalableGestionadoporelproveedorN/APaaS/Hora | B163: IT-NPU-PA-SE-02-2 | C163: PaaS | D163: PaaS Seguridad | E163: WAF autoescalable | F163: Gestionado por el proveedor | G163: N/A | H163: PaaS/Hora | J163: NO | K163: USD | N163: 0.02 | O163: 17.5202 | P163: 1.07 | Q163: 90.27 | R163: 0.2059 | S163: 4.1843 | T163: 364.5844338 | U163: 0.62 | V163: 4.6855 | W163: 5.9956
A164: PaaSPaaSSeguridadWAFautoescalableAutogestionadoN/APaaS/Mes | B164: IT-NPU-PA-SE-02-3 | C164: PaaS | D164: PaaS Seguridad | E164: WAF autoescalable | F164: Autogestionado | G164: N/A | H164: PaaS/Mes | J164: NO | K164: USD | N164: 14 | O164: 11917.6847 | P164: 55 | Q164: 200 | R164: 1084.3742 | S164: 3048.866 | T164: 292.6147368 | U164: 463.05 | V164: 3420.4349 | W164: 2973.8364
A165: PaaSPaaSSeguridadWAFautoescalableGestionadoporelproveedorN/APaaS/Mes | B165: IT-NPU-PA-SE-02-4 | C165: PaaS | D165: PaaS Seguridad | E165: WAF autoescalable | F165: Gestionado por el proveedor | G165: N/A | H165: PaaS/Mes | J165: NO | K165: USD | N165: 14 | O165: 12789.7104 | P165: 65 | Q165: 560 | R165: 1192.8116 | S165: 3113.0527 | T165: 364.5844338 | U165: 463.05 | V165: 3420.4349 | W165: 4460.7547
A166: PaaSPaaSSeguridadDirectoriodeIdentidadesAutogestionadoN/AUsuario/Hora | B166: IT-NPU-PA-SE-03-1 | C166: PaaS | D166: PaaS Seguridad | E166: Directorio de Identidades | F166: Autogestionado | G166: N/A | H166: Usuario/Hora | J166: NO | K166: USD | N166: 0.23 | O166: 19.1909 | P166: 1 | Q166: 5 | R166: 410.9589 | S166: 0.1765 | T166: 0.8947368421 | U166: 1.9429 | V166: 9.0515 | W166: 0.7427
A167: PaaSPaaSSeguridadDirectoriodeIdentidadesGestionadoporelproveedorN/AUsuario/Hora | B167: IT-NPU-PA-SE-03-2 | C167: PaaS | D167: PaaS Seguridad | E167: Directorio de Identidades | F167: Gestionado por el proveedor | G167: N/A | H167: Usuario/Hora | J167: NO | K167: USD | N167: 0.23 | O167: 20.5951 | P167: 20 | Q167: 95 | R167: 452.0548 | S167: 0.1808 | T167: 1.254585327 | U167: 2.1371 | V167: 9.0515 | W167: 1.114
A168: PaaSPaaSSeguridadDirectoriodeIdentidadesAutogestionadoN/AUsuario/Mes | B168: IT-NPU-PA-SE-03-3 | C168: PaaS | D168: PaaS Seguridad | E168: Directorio de Identidades | F168: Autogestionado | G168: N/A | H168: Usuario/Mes | J168: NO | K168: USD | N168: 164.8 | O168: 14009.3277 | P168: 1 | Q168: 5 | R168: 300000 | S168: 131.2942 | T168: 0.8947368421 | U168: 279.7714 | V168: 6607.5599 | W168: 552.5591
A169: PaaSPaaSSeguridadDirectoriodeIdentidadesGestionadoporelproveedorN/AUsuario/Mes | B169: IT-NPU-PA-SE-03-4 | C169: PaaS | D169: PaaS Seguridad | E169: Directorio de Identidades | F169: Gestionado por el proveedor | G169: N/A | H169: Usuario/Mes | J169: NO | K169: USD | N169: 164.8 | O169: 15034.4005 | P169: 20 | Q169: 95 | R169: 330000 | S169: 134.4579 | T169: 1.254585327 | U169: 307.7486 | V169: 6607.5599 | W169: 828.8387
A170: PaaSPaaSSeguridadEscanerdevulnerabilidadesautoescalableAutogestionadoN/APaaS/Hora | B170: IT-NPU-PA-SE-04-1 | C170: PaaS | D170: PaaS Seguridad | E170: Escaner de vulnerabilidades autoescalable | F170: Autogestionado | G170: N/A | H170: PaaS/Hora | J170: NO | K170: USD | N170: 0.25 | O170: 0.0199 | P170: 4.16 | Q170: 0.07 | R170: 1.9076 | S170: 45809.4118 | T170: 161.0526316 | U170: 0.384 | V170: 1.4348 | W170: 0.3531
A171: PaaSPaaSSeguridadEscanerdevulnerabilidadesautoescalableGestionadoporelproveedorN/APaaS/Hora | B171: IT-NPU-PA-SE-04-2 | C171: PaaS | D171: PaaS Seguridad | E171: Escaner de vulnerabilidades autoescalable | F171: Gestionado por el proveedor | G171: N/A | H171: PaaS/Hora | J171: NO | K171: USD | N171: 0.25 | O171: 0.0213 | P171: 5.136 | Q171: 90.07 | R171: 2.0984 | S171: 45809.4118 | T171: 175.446571 | U171: 0.4225 | V171: 1.4348 | W171: 0.5297
A172: PaaSPaaSSeguridadEscanerdevulnerabilidadesautoescalableAutogestionadoN/APaaS/Mes | B172: IT-NPU-PA-SE-04-3 | C172: PaaS | D172: PaaS Seguridad | E172: Escaner de vulnerabilidades autoescalable | F172: Autogestionado | G172: N/A | H172: PaaS/Mes | J172: NO | K172: USD | N172: 183 | O172: 14.4887 | P172: 3000 | Q172: 61.32 | R172: 1392.545 | S172: 45809.4118 | T172: 161.0526316 | U172: 285.7143 | V172: 1047.38 | W172: 262.7064
A173: PaaSPaaSSeguridadEscanerdevulnerabilidadesautoescalableGestionadoporelproveedorN/APaaS/Mes | B173: IT-NPU-PA-SE-04-4 | C173: PaaS | D173: PaaS Seguridad | E173: Escaner de vulnerabilidades autoescalable | F173: Gestionado por el proveedor | G173: N/A | H173: PaaS/Mes | J173: NO | K173: USD | N173: 183 | O173: 15.5488 | P173: 3700 | Q173: 421.32 | R173: 1531.7995 | S173: 45809.4118 | T173: 175.446571 | U173: 314.2857 | V173: 764587.4 | W173: 394.0596
A174: PaaSPaaSSeguridadCertificadosSSLAutogestionadoN/ACertificado/Año | B174: IT-NPU-PA-SE-05-1 | C174: PaaS | D174: PaaS Seguridad | E174: Certificados SSL | F174: Autogestionado | G174: N/A | H174: Certificado/Año | J174: NO | K174: USD | N174: 595 | O174: 1692.0455 | P174: 26400 | Q174: 336 | R174: 2770.803 | S174: 262.8779 | T174: 2313.72549 | U174: 642.7857 | V174: 4750.8993 | W174: 5296.5
A175: PaaSPaaSSeguridadCertificadosSSLGestionadoporelproveedorN/ACertificado/Año | B175: IT-NPU-PA-SE-05-2 | C175: PaaS | D175: PaaS Seguridad | E175: Certificados SSL | F175: Gestionado por el proveedor | G175: N/A | H175: Certificado/Año | J175: NO | K175: USD | N175: 595 | O175: 1815.8537 | P175: 28400 | Q175: 516 | R175: 3047.8833 | S175: 268.4122 | T175: 2385.695187 | U175: 707.0643 | V175: 4750.8993 | W175: 7944.75
A176: IaaSIaaSProcesamientoServidoresVirtualesdeAltaCapacidadAutogestionadoDebianServidorVirtual/Hora | B176: IT-NPU-IA-PR-04 | C176: IaaS | D176: IaaS Procesamiento | E176: Servidores Virtuales de Alta Capacidad | F176: Autogestionado | G176: Debian | H176: Servidor Virtual / Hora | J176: NO | K176: USD | N176: 31.212 | O176: 12.32876712 | P176: 7.640888889 | Q176: 18.23675214 | R176: 7.34 | S176: 26.01609151 | T176: 14.43369863 | U176: 31 | V176: 15.92257096 | W176: 18.23675214
A177: IaaSIaaSProcesamientoServidoresVirtualesdeAltaCapacidadAutogestionadoSUSELinuxEnterpriseServidorVirtual/Hora | B177: IT-NPU-IA-PR-05 | C177: IaaS | D177: IaaS Procesamiento | E177: Servidores Virtuales de Alta Capacidad | F177: Autogestionado | G177: SUSE Linux Enterprise | H177: Servidor Virtual / Hora | J177: NO | K177: USD | N177: 31.362 | O177: 12.32876712 | P177: 7.812 | Q177: 18.45564103 | R177: 7.45 | S177: 26.01609151 | T177: 14.75369863 | U177: 32 | V177: 15.92257096 | W177: 18.45564103
A178: IaaSIaaSProcesamientoServidoresVirtualesdeAltaCapacidadAutogestionadoUbuntuServidorVirtual/Hora | B178: IT-NPU-IA-PR-06 | C178: IaaS | D178: IaaS Procesamiento | E178: Servidores Virtuales de Alta Capacidad | F178: Autogestionado | G178: Ubuntu | H178: Servidor Virtual / Hora | J178: NO | K178: USD | N178: 31.212 | O178: 12.32876712 | P178: 7.640888889 | Q178: 18.23675214 | R178: 7.34 | S178: 26.01609151 | T178: 14.43369863 | U178: 31 | V178: 15.92257096 | W178: 18.23675214
A179: IaaSIaaSProcesamientoServidoresVirtualesdeAltaCapacidadAutogestionadoRedHatEnterpriseServidorVirtual/Hora | B179: IT-NPU-IA-PR-07 | C179: IaaS | D179: IaaS Procesamiento | E179: Servidores Virtuales de Alta Capacidad | F179: Autogestionado | G179: RedHat Enterprise | H179: Servidor Virtual / Hora | J179: NO | K179: USD | N179: 31.342 | O179: 12.32876712 | P179: 7.788666667 | Q179: 18.27781648 | R179: 7.47 | S179: 26.01609151 | T179: 14.20883562 | U179: 31 | V179: 16.06817096 | W179: 18.27781648
A180: IaaSIaaSProcesamientoServidoresVirtualesdeAltaCapacidadAutogestionadoWindowsServerServidorVirtual/Hora | B180: IT-NPU-IA-PR-08 | C180: IaaS | D180: IaaS Procesamiento | E180: Servidores Virtuales de Alta Capacidad | F180: Autogestionado | G180: Windows Server | H180: Servidor Virtual / Hora | J180: NO | K180: USD | N180: 35.628 | O180: 12.47260274 | P180: 12.66844444 | Q180: 23.80022816 | R180: 11.18 | S180: 35.96681151 | T180: 19.96683562 | U180: 40 | V180: 22.51913096 | W180: 23.80022816
A181: IaaSIaaSProcesamientoServidoresVirtualesdeAltaCapacidadAutogestionadoWindowsServerDatacenterServidorVirtual/Hora | B181: IT-NPU-IA-PR-09 | C181: IaaS | D181: IaaS Procesamiento | E181: Servidores Virtuales de Alta Capacidad | F181: Autogestionado | G181: Windows Server Datacenter | H181: Servidor Virtual / Hora | J181: NO | K181: USD | N181: 35.628 | O181: 12.47260274 | P181: 12.66844444 | Q181: 23.80022816 | R181: 11.18 | S181: 35.96681151 | T181: 19.96683562 | U181: 40 | V181: 22.51913096 | W181: 23.80022816
A182: IaaSIaaSProcesamientoServidoresVirtualesdeAltaCapacidadGestionadoporelproveedorDebianServidorVirtual/Hora | B182: IT-NPU-IA-PR-10 | C182: IaaS | D182: IaaS Procesamiento | E182: Servidores Virtuales de Alta Capacidad | F182: Gestionado por el proveedor | G182: Debian | H182: Servidor Virtual / Hora | J182: NO | K182: USD | N182: 40.5756 | O182: 12.87671233 | P182: 8.249867733 | Q182: 20.91383666 | R182: 8.074 | S182: 26.56503104 | T182: 20.92886301 | U182: 34 | V182: 16.04061918 | W182: 20.91383666
A183: IaaSIaaSProcesamientoServidoresVirtualesdeAltaCapacidadGestionadoporelproveedorSUSELinuxEnterpriseServidorVirtual/Hora | B183: IT-NPU-IA-PR-11 | C183: IaaS | D183: IaaS Procesamiento | E183: Servidores Virtuales de Alta Capacidad | F183: Gestionado por el proveedor | G183: SUSE Linux Enterprise | H183: Servidor Virtual / Hora | J183: NO | K183: USD | N183: 40.7706 | O183: 12.87671233 | P183: 8.4346164 | Q183: 21.15943024 | R183: 8.195 | S183: 26.56503104 | T183: 21.39286301 | U183: 35 | V183: 16.04061918 | W183: 21.15943024
A184: IaaSIaaSProcesamientoServidoresVirtualesdeAltaCapacidadGestionadoporelproveedorUbuntuServidorVirtual/Hora | B184: IT-NPU-IA-PR-12 | C184: IaaS | D184: IaaS Procesamiento | E184: Servidores Virtuales de Alta Capacidad | F184: Gestionado por el proveedor | G184: Ubuntu | H184: Servidor Virtual / Hora | J184: NO | K184: USD | N184: 40.5756 | O184: 12.87671233 | P184: 8.249867733 | Q184: 20.91383666 | R184: 8.074 | S184: 26.56503104 | T184: 20.92886301 | U184: 34 | V184: 16.04061918 | W184: 20.91383666
A185: IaaSIaaSProcesamientoServidoresVirtualesdeAltaCapacidadGestionadoporelproveedorRedHatEnterpriseServidorVirtual/Hora | B185: IT-NPU-IA-PR-13 | C185: IaaS | D185: IaaS Procesamiento | E185: Servidores Virtuales de Alta Capacidad | F185: Gestionado por el proveedor | G185: RedHat Enterprise | H185: Servidor Virtual / Hora | J185: NO | K185: USD | N185: 40.7446 | O185: 12.87671233 | P185: 8.4094234 | Q185: 20.9502247 | R185: 8.217 | S185: 26.56503104 | T185: 20.60281164 | U185: 34 | V185: 16.18621918 | W185: 20.9502247
A186: IaaSIaaSProcesamientoServidoresVirtualesdeAltaCapacidadGestionadoporelproveedorWindowsServerServidorVirtual/Hora | B186: IT-NPU-IA-PR-14 | C186: IaaS | D186: IaaS Procesamiento | E186: Servidores Virtuales de Alta Capacidad | F186: Gestionado por el proveedor | G186: Windows Server | H186: Servidor Virtual / Hora | J186: NO | K186: USD | N186: 46.3164 | O186: 13.12739726 | P186: 13.67811947 | Q186: 27.21686985 | R186: 12.298 | S186: 36.72571123 | T186: 28.95191164 | U186: 44 | V186: 22.63741918 | W186: 27.21686985
A187: IaaSIaaSProcesamientoServidoresVirtualesdeAltaCapacidadGestionadoporelproveedorWindowsServerDatacenterServidorVirtual/Hora | B187: IT-NPU-IA-PR-15 | C187: IaaS | D187: IaaS Procesamiento | E187: Servidores Virtuales de Alta Capacidad | F187: Gestionado por el proveedor | G187: Windows Server Datacenter | H187: Servidor Virtual / Hora | J187: NO | K187: USD | N187: 46.3164 | O187: 13.12739726 | P187: 13.67811947 | Q187: 27.21686985 | R187: 12.298 | S187: 36.72571123 | T187: 28.95191164 | U187: 44 | V187: 22.63741918 | W187: 27.21686985
A188: IaaSIaaSProcesamientoServidoresVirtualesdeAltaCapacidadAutogestionadoDebianServidorVirtual/Mes | B188: IT-NPU-IA-PR-16 | C188: IaaS | D188: IaaS Procesamiento | E188: Servidores Virtuales de Alta Capacidad | F188: Autogestionado | G188: Debian | H188: Servidor Virtual / Mes | J188: NO | K188: USD | N188: 22847.184 | O188: 12.32876712 | P188: 5501.44 | Q188: 11604.21945 | R188: 5358.2 | S188: 14609.036 | T188: 10277.55 | U188: 22606 | V188: 11622.0168 | W188: 11604.21945
A189: IaaSIaaSProcesamientoServidoresVirtualesdeAltaCapacidadAutogestionadoSUSELinuxEnterpriseServidorVirtual/Mes | B189: IT-NPU-IA-PR-17 | C189: IaaS | D189: IaaS Procesamiento | E189: Servidores Virtuales de Alta Capacidad | F189: Autogestionado | G189: SUSE Linux Enterprise | H189: Servidor Virtual / Mes | J189: NO | K189: USD | N189: 22956.984 | O189: 12.32876712 | P189: 5624.64 | Q189: 11746.95695 | R189: 5438.5 | S189: 14609.036 | T189: 10511.15 | U189: 23201 | V189: 11622.0168 | W189: 11746.95695
A190: IaaSIaaSProcesamientoServidoresVirtualesdeAltaCapacidadAutogestionadoUbuntuServidorVirtual/Mes | B190: IT-NPU-IA-PR-18 | C190: IaaS | D190: IaaS Procesamiento | E190: Servidores Virtuales de Alta Capacidad | F190: Autogestionado | G190: Ubuntu | H190: Servidor Virtual / Mes | J190: NO | K190: USD | N190: 22847.184 | O190: 12.32876712 | P190: 5501.44 | Q190: 11604.21945 | R190: 5358.2 | S190: 14609.036 | T190: 10277.55 | U190: 22606 | V190: 11622.0168 | W190: 11604.21945
A191: IaaSIaaSProcesamientoServidoresVirtualesdeAltaCapacidadAutogestionadoRedHatEnterpriseServidorVirtual/Mes | B191: IT-NPU-IA-PR-19 | C191: IaaS | D191: IaaS Procesamiento | E191: Servidores Virtuales de Alta Capacidad | F191: Autogestionado | G191: RedHat Enterprise | H191: Servidor Virtual / Mes | J191: NO | K191: USD | N191: 22942.344 | O191: 12.32876712 | P191: 5607.84 | Q191: 11692.05045 | R191: 5453.1 | S191: 14609.036 | T191: 10372.45 | U191: 22811 | V191: 11728.3048 | W191: 11692.05045
A192: IaaSIaaSProcesamientoServidoresVirtualesdeAltaCapacidadAutogestionadoWindowsServerServidorVirtual/Mes | B192: IT-NPU-IA-PR-20 | C192: IaaS | D192: IaaS Procesamiento | E192: Servidores Virtuales de Alta Capacidad | F192: Autogestionado | G192: Windows Server | H192: Servidor Virtual / Mes | J192: NO | K192: USD | N192: 26079.696 | O192: 12.47260274 | P192: 9121.28 | Q192: 15521.67903 | R192: 8161.4 | S192: 20196.748 | T192: 14575.79 | U192: 29590 | V192: 16436.0456 | W192: 15521.67903
A193: IaaSIaaSProcesamientoServidoresVirtualesdeAltaCapacidadAutogestionadoWindowsServerDatacenterServidorVirtual/Mes | B193: IT-NPU-IA-PR-21 | C193: IaaS | D193: IaaS Procesamiento | E193: Servidores Virtuales de Alta Capacidad | F193: Autogestionado | G193: Windows Server Datacenter | H193: Servidor Virtual / Mes | J193: NO | K193: USD | N193: 26079.696 | O193: 12.47260274 | P193: 9121.28 | Q193: 15521.67903 | R193: 8161.4 | S193: 20196.748 | T193: 14575.79 | U193: 29590 | V193: 16436.0456 | W193: 15521.67903
A194: IaaSIaaSProcesamientoServidoresVirtualesdeAltaCapacidadGestionadoporelproveedorDebianServidorVirtual/Mes | B194: IT-NPU-IA-PR-22 | C194: IaaS | D194: IaaS Procesamiento | E194: Servidores Virtuales de Alta Capacidad | F194: Gestionado por el proveedor | G194: Debian | H194: Servidor Virtual / Mes | J194: NO | K194: USD | N194: 29701.3392 | O194: 12.87671233 | P194: 5939.904768 | Q194: 13473.73645 | R194: 5894.02 | S194: 14917.28666 | T194: 14902.4475 | U194: 24714 | V194: 11708.0168 | W194: 13473.73645
A195: =SUBSTITUTE(C195&D195&E195&F195&G195&H195," ","") -> IaaSIaaSProcesamientoServidoresVirtualesdeAltaCapacidadGestionadoporelproveedorSUSELinuxEnterpriseServidorVirtual/Mes | B195: IT-NPU-IA-PR-23 | C195: IaaS | D195: IaaS Procesamiento | E195: Servidores Virtuales de Alta Capacidad | F195: Gestionado por el proveedor | G195: SUSE Linux Enterprise | H195: Servidor Virtual / Mes | J195: NO | K195: USD | N195: 29844.0792 | O195: 12.87671233 | P195: 6072.923808 | Q195: 13643.46258 | R195: 5982.35 | S195: 14917.28666 | T195: 15241.1675 | U195: 25369 | V195: 11708.0168 | W195: 13643.46258
A196: IaaSIaaSProcesamientoServidoresVirtualesdeAltaCapacidadGestionadoporelproveedorUbuntuServidorVirtual/Mes | B196: IT-NPU-IA-PR-24 | C196: IaaS | D196: IaaS Procesamiento | E196: Servidores Virtuales de Alta Capacidad | F196: Gestionado por el proveedor | G196: Ubuntu | H196: Servidor Virtual / Mes | J196: NO | K196: USD | N196: 29701.3392 | O196: 12.87671233 | P196: 5939.904768 | Q196: 13473.73645 | R196: 5894.02 | S196: 14917.28666 | T196: 14902.4475 | U196: 24714 | V196: 11708.0168 | W196: 13473.73645
A197: IaaSIaaSProcesamientoServidoresVirtualesdeAltaCapacidadGestionadoporelproveedorRedHatEnterpriseServidorVirtual/Mes | B197: IT-NPU-IA-PR-25 | C197: IaaS | D197: IaaS Procesamiento | E197: Servidores Virtuales de Alta Capacidad | F197: Gestionado por el proveedor | G197: RedHat Enterprise | H197: Servidor Virtual / Mes | J197: NO | K197: USD | N197: 29825.0472 | O197: 12.87671233 | P197: 6054.784848 | Q197: 13575.34534 | R197: 5998.41 | S197: 14917.28666 | T197: 15040.0525 | U197: 24940 | V197: 11814.3048 | W197: 13575.34534
A198: IaaSIaaSProcesamientoServidoresVirtualesdeAltaCapacidadGestionadoporelproveedorWindowsServerServidorVirtual/Mes | B198: IT-NPU-IA-PR-26 | C198: IaaS | D198: IaaS Procesamiento | E198: Servidores Virtuales de Alta Capacidad | F198: Gestionado por el proveedor | G198: Windows Server | H198: Servidor Virtual / Mes | J198: NO | K198: USD | N198: 33903.6048 | O198: 13.12739726 | P198: 9848.246016 | Q198: 17927.41984 | R198: 8977.54 | S198: 20622.89938 | T198: 21134.8955 | U198: 32397 | V198: 16522.0456 | W198: 17927.41984
A199: IaaSIaaSProcesamientoServidoresVirtualesdeAltaCapacidadGestionadoporelproveedorWindowsServerDatacenterServidorVirtual/Mes | B199: IT-NPU-IA-PR-27 | C199: IaaS | D199: IaaS Procesamiento | E199: Servidores Virtuales de Alta Capacidad | F199: Gestionado por el proveedor | G199: Windows Server Datacenter | H199: Servidor Virtual / Mes | J199: NO | K199: USD | N199: 33903.6048 | O199: 13.12739726 | P199: 9848.246016 | Q199: 17927.41984 | R199: 8977.54 | S199: 20622.89938 | T199: 21134.8955 | U199: 32397 | V199: 16522.0456 | W199: 17927.41984
A200: ComplementariosCertificadosDigitalesCertificadosdigitalesdefirmadigital-FunciónPúblicaGestionadoporelproveedorN/ACertificadopor1año | B200: IT-NPU-CO-CD-01 | C200: Complementarios | D200: Certificados Digitales | E200: Certificados digitales de firma digital - Función Pública | F200: Gestionado por el proveedor | G200: N/A | H200: Certificado por 1 año | J200: NO | K200: Peso Colombiano | N200: 0 | O200: 320000 | P200: 790403.028 | Q200: 500000 | R200: 761600 | S200: 357000 | T200: 547066.9943 | U200: 790403.028 | V200: 500000 | W200: 0
... 11 more rows

Sheet Cuadro Totales (hidden)
A1: Valores
A2: Valor Unitario | B2: Precio maximo autorizado | C2: Valor X Capacidad | D2: Precio Total | E2: IVA | F2: Total
D5: Total Servicios | E5: IVA | F5: Total
A8: Valores
A9: Valor Unitario | B9: Precio maximo autorizado | C9: Descuento adicional | D9: Precio con Descuento | E9: Valor X Capacidad | F9: Precio Total | G9: Incluir IVA | H9: IVA | I9: Total
F12: Total Servicios | H12: IVA | I12: Total

Sheet ListaProveedores (hidden)
A1: ProveedorServicios
A2: Avanxo - Segm 1. Amazon
A3: UT Goldsvada - Segm 1. Amazon
A4: Hightech - Segm 1. Amazon
A5: S3 SAS - Segm 1. Amazon
A6: UT Gestion integral cloud - Segm 1. Amazon
A7: UT Nubepublica2019 - Segm 1. Amazon
A8: Clouxter - Segm 1. Amazon

Sheet tempProveedores (hidden)
A1: Avanxo - Segm 1. Amazon
A2: UT Goldsvada - Segm 1. Amazon
A3: Hightech - Segm 1. Amazon
A4: S3 SAS - Segm 1. Amazon
A5: UT Gestion integral cloud - Segm 1. Amazon
A6: UT Nubepublica2019 - Segm 1. Amazon
A7: Clouxter - Segm 1. Amazon

Sheet ListasAutomaticas (hidden)
A1: codservicio
A2: CO-AD-01-01
A3: CO-AD-01-02
A4: CO-AD-01-03
A5: CO-AD-01-04
A6: CO-AD-02-01
A7: CO-AD-02-02
A8: CO-AD-02-03
A9: CO-AD-02-04
A10: CO-EX-01-01
A11: CO-EX-01-02
A12: CO-EX-01-03
A13: CO-EX-01-04
A14: CO-EX-02-01
A15: CO-EX-02-02
A16: CO-EX-02-03
A17: CO-EX-02-04
A18: CO-EX-03-01
A19: CO-EX-03-02
A20: CO-EX-03-03
A21: CO-EX-03-04
A22: CO-EX-04-01
A23: CO-EX-04-02
A24: CO-EX-04-03
A25: CO-EX-04-04
A26: CO-EX-05-01
A27: CO-EX-05-02
A28: CO-EX-05-03
A29: CO-EX-05-04
A30: CO-EX-06-01
A31: CO-EX-06-02
A32: CO-EX-06-03
A33: CO-EX-06-04
A34: CO-EX-07-01
A35: CO-EX-07-02
A36: CO-EX-07-03
A37: CO-EX-07-04
A38: CO-EX-08-01
A39: CO-EX-08-02
A40: CO-EX-08-03
A41: CO-EX-08-04
A42: CO-EX-09-01
A43: CO-EX-09-02
A44: CO-EX-09-03
A45: CO-EX-09-04
A46: CO-EX-10-01
A47: CO-EX-10-02
A48: CO-EX-10-03
A49: CO-EX-10-04
A50: CO-EX-11-01
A51: CO-EX-11-02
A52: CO-EX-11-03
A53: CO-EX-11-04
A54: CO-EX-12-01
A55: CO-EX-12-02
A56: CO-EX-12-03
A57: CO-EX-12-04
A58: CO-EX-13-01
A59: CO-EX-13-02
A60: CO-EX-13-03
A61: CO-EX-13-04
A62: CO-EX-14-01
A63: CO-EX-14-02
A64: CO-EX-14-03
A65: CO-EX-14-04
A66: CO-EX-15-01
A67: CO-EX-15-02
A68: CO-EX-15-03
A69: CO-EX-15-04
A70: CO-EX-16-01
A71: CO-EX-16-02
A72: CO-EX-16-03
A73: CO-EX-16-04
A74: CO-EX-17-01
A75: CO-EX-17-02
A76: CO-EX-17-03
A77: CO-EX-17-04
A78: CO-EX-18-01
A79: CO-EX-18-02
A80: CO-EX-18-03
A81: CO-EX-18-04
A82: CO-EX-19-01
A83: CO-EX-19-02
A84: CO-EX-19-03
A85: CO-EX-19-04
A86: CO-EX-20-01
A87: CO-EX-20-02
A88: CO-EX-20-03
A89: CO-EX-20-04
A90: CO-EX-21-01
A91: CO-EX-21-02
A92: CO-EX-21-03
A93: CO-EX-21-04
A94: CO-EX-22-01
A95: CO-EX-22-02
A96: CO-EX-22-03
A97: CO-EX-22-04
A98: CO-EX-23-01
A99: CO-EX-23-02
A100: CO-EX-23-03
A101: CO-EX-23-04
A102: CO-EX-24-01
A103: CO-EX-24-02
A104: CO-EX-24-03
A105: CO-EX-24-04
A106: CO-EX-25-01
A107: CO-EX-25-02
A108: CO-EX-25-03
A109: CO-EX-25-04
A110: CO-EX-26-01
A111: CO-EX-26-02
A112: CO-EX-26-03
A113: CO-EX-26-04
A114: CO-EX-27-01
A115: CO-EX-27-02
A116: CO-EX-27-03
A117: CO-EX-27-04
A118: CO-EX-28-01
A119: CO-EX-28-02
A120: CO-EX-28-03
A121: CO-EX-28-04
A122: CO-EX-29-01
A123: CO-EX-29-02
A124: CO-EX-29-03
A125: CO-EX-29-04
A126: CO-EX-30-01
A127: CO-EX-30-02
A128: CO-EX-30-03
A129: CO-EX-30-04
A130: CO-EX-31-01
A131: CO-EX-31-02
A132: CO-EX-31-03
A133: CO-EX-31-04
A134: CO-EX-32-01
A135: CO-EX-32-02
A136: CO-EX-32-03
A137: CO-EX-32-04
A138: CO-EX-33-01
A139: CO-EX-33-02
A140: CO-EX-33-03
A141: CO-EX-33-04
A142: CO-EX-34-01
A143: CO-EX-34-02
A144: CO-EX-34-03
A145: CO-EX-34-04
A146: CO-EX-35-01
A147: CO-EX-35-02
A148: CO-EX-35-03
A149: CO-EX-35-04
A150: CO-EX-36-01
A151: CO-EX-36-02
A152: CO-EX-36-03
A153: CO-EX-36-04
A154: CO-MI-02
A155: CO-SL-01-01
A156: CO-SL-01-02
A157: CO-SL-01-03
A158: CO-SL-01-04
A159: CO-SL-01-05
A160: CO-SL-01-06
A161: CO-SL-01-07
A162: CO-SL-01-08
A163: CO-SL-02-01
A164: CO-SL-02-02
A165: CO-SL-02-03
A166: CO-SL-02-04
A167: CO-SL-03-01
A168: CO-SL-03-02
A169: CO-SL-03-03
A170: CO-SL-03-04
A171: CO-SL-04-01
A172: CO-SL-04-02
A173: CO-SL-04-03
A174: CO-SL-04-04
A175: CO-SO-01-01
A176: CO-SO-01-02
A177: CO-SO-02-01
A178: CO-SO-02-02

Sheet Parametros (hidden)
A1: Limite de filas | B1: 240

Sheet CSV (hidden)
A1: Tipo (servicio o artÃ­culo) | B1: Cantidad | C1: CÃ³digo de unidad de medida* | D1: PosiciÃ³n | E1: Precio base | F1: Divisa | G1: DescripciÃ³n | H1: MercancÃ­a
A2: item | B2: 1 | C2: Und | E2: "295151100,9328" | F2: COP | G2: npu03--CO-NP-01 - Servicios en la Nube-NA_NA-NA - 1 Unidad
A3: item | B3: 1 | C3: Und | E3: "35418132,1119" | F3: COP | G3: npu03--CO-GE-01 - Tasa de intermediaciÃ³n para servicios autogestionados-Servicio de ComputaciÃ³n en la Nube_NA-NA - 1 Tasa
A4: item | B4: 2 | C4: Hora | E4: "103572,6141" | F4: COP | G4: npu03--CO-MI-01 - Servicio de PreparaciÃ³n para la migraciÃ³n-Servicios de migraciÃ³n_NA-NA - 1 Precio por hora
A5: item | B5: 1 | C5: Und | E5: "6768802,69" | F5: COP | G5: npu03--IVA
